Workbook

Sheet Data
A1: Notation & Variables: | M1: GLM Bootstrap: | Y1: Link Ratio Equivalents:
A3: Cumulative Data | M3: Cumulative Data | Y3: Actual Age-to-Age Factors
B4: 1 | C4: 2 | D4: 3 | E4: 4 | F4: 5 | G4: 6 | N4: 1 | O4: 2 | P4: 3 | Q4: 4 | R4: 5 | S4: 6 | Z4: 1 | AA4: 2 | AB4: 3 | AC4: 4 | AD4: 5 | AE4: 6
A5: 1 | B5: ="c("&$A5&","&B$4&")" -> c(1,1) | C5: c(1,2) | D5: c(1,3) | E5: c(1,4) | F5: c(1,5) | G5: c(1,6) | M5: 1 | N5: 95 | O5: 150 | P5: 170 | Q5: 200 | R5: 215 | S5: 220 | Y5: 1 | AA5: =O5/N5 -> 1.578947368 | AB5: =P5/O5 -> 1.133333333 | AC5: =Q5/P5 -> 1.176470588 | AD5: =R5/Q5 -> 1.075 | AE5: =S5/R5 -> 1.023255814
A6: 2 | B6: ="c("&$A6&","&B$4&")" -> c(2,1) | C6: c(2,2) | D6: c(2,3) | E6: c(2,4) | F6: c(2,5) | M6: 2 | N6: 110 | O6: 160 | P6: 175 | Q6: 205 | R6: 210 | Y6: 2 | AA6: =O6/N6 -> 1.454545455 | AB6: 1.09375 | AC6: 1.171428571 | AD6: 1.024390244
A7: 3 | B7: c(3,1) | C7: c(3,2) | D7: c(3,3) | E7: c(3,4) | M7: 3 | N7: 105 | O7: 165 | P7: 190 | Q7: 210 | Y7: 3 | AA7: 1.571428571 | AB7: 1.151515152 | AC7: 1.105263158
A8: 4 | B8: c(4,1) | C8: c(4,2) | D8: c(4,3) | M8: 4 | N8: 120 | O8: 155 | P8: 185 | Y8: 4 | AA8: 1.291666667 | AB8: 1.193548387
A9: 5 | B9: c(5,1) | C9: c(5,2) | M9: 5 | N9: 130 | O9: 170 | Y9: 5 | AA9: 1.307692308
A10: 6 | B10: c(6,1) | M10: 6 | N10: 125 | Y10: 6
Z11: Average: | AA11: =AVERAGE(AA5:AA9) -> 1.440856074 | AB11: =AVERAGE(AB5:AB9) -> 1.143036718 | AC11: =AVERAGE(AC5:AC9) -> 1.151054106 | AD11: =AVERAGE(AD5:AD9) -> 1.049695122 | AE11: =AVERAGE(AE5:AE9) -> 1.023255814
A12: Incremental Data | M12: Incremental Data
B13: 1 | C13: 2 | D13: 3 | E13: 4 | F13: 5 | G13: 6 | N13: 1 | O13: 2 | P13: 3 | Q13: 4 | R13: 5 | S13: 6
A14: 1 | B14: ="q("&$A14&","&B$4&")" -> q(1,1) | C14: ="q("&$A14&","&C$4&")" -> q(1,2) | D14: q(1,3) | E14: q(1,4) | F14: q(1,5) | G14: ="q("&$A14&","&G$4&")" -> q(1,6) | M14: 1 | N14: =N5 -> 95 | O14: =O5-N5 -> 55 | P14: =P5-O5 -> 20 | Q14: =Q5-P5 -> 30 | R14: =R5-Q5 -> 15 | S14: =S5-R5 -> 5
A15: 2 | B15: q(2,1) | C15: q(2,2) | D15: q(2,3) | E15: q(2,4) | F15: q(2,5) | M15: 2 | N15: 110 | O15: =O6-N6 -> 50 | P15: =P6-O6 -> 15 | Q15: =Q6-P6 -> 30 | R15: =R6-Q6 -> 5
A16: 3 | B16: q(3,1) | C16: q(3,2) | D16: q(3,3) | E16: q(3,4) | M16: 3 | N16: 105 | O16: =O7-N7 -> 60 | P16: =P7-O7 -> 25 | Q16: =Q7-P7 -> 20
A17: 4 | B17: q(4,1) | C17: q(4,2) | D17: q(4,3) | M17: 4 | N17: 120 | O17: =O8-N8 -> 35 | P17: =P8-O8 -> 30
A18: 5 | B18: q(5,1) | C18: q(5,2) | M18: 5 | N18: 130 | O18: =O9-N9 -> 40
A19: 6 | B19: q(6,1) | M19: 6 | N19: 125
A21: Log-Link of Incremental Data | M21: Log-Link of Incremental Data
B22: 1 | C22: 2 | D22: 3 | E22: 4 | F22: 5 | G22: 6 | N22: 1 | O22: 2 | P22: 3 | Q22: 4 | R22: 5 | S22: 6
A23: 1 | B23: ="ln[q("&$A23&","&B$4&")]" -> ln[q(1,1)] | C23: ="ln[q("&$A23&","&C$4&")]" -> ln[q(1,2)] | D23: ln[q(1,3)] | E23: ="ln[q("&$A23&","&E$4&")]" -> ln[q(1,4)] | F23: ="ln[q("&$A23&","&F$4&")]" -> ln[q(1,5)] | G23: ="ln[q("&$A23&","&G$4&")]" -> ln[q(1,6)] | M23: 1 | N23: =LN(N14) -> 4.553876892 | O23: =LN(O14) -> 4.007333185 | P23: 2.995732274 | Q23: =LN(Q14) -> 3.401197382 | R23: =LN(R14) -> 2.708050201 | S23: =LN(S14) -> 1.609437912
A24: 2 | B24: ln[q(2,1)] | C24: ln[q(2,2)] | D24: ln[q(2,3)] | E24: ln[q(2,4)] | F24: ln[q(2,5)] | M24: 2 | N24: 4.700480366 | O24: 3.912023005 | P24: 2.708050201 | Q24: =LN(Q15) -> 3.401197382 | R24: 1.609437912
A25: 3 | B25: ln[q(3,1)] | C25: ln[q(3,2)] | D25: ln[q(3,3)] | E25: ln[q(3,4)] | M25: 3 | N25: 4.65396035 | O25: 4.094344562 | P25: =LN(P16) -> 3.218875825 | Q25: =LN(Q16) -> 2.995732274
A26: 4 | B26: ln[q(4,1)] | C26: ln[q(4,2)] | D26: ln[q(4,3)] | M26: 4 | N26: 4.787491743 | O26: =LN(O17) -> 3.555348061 | P26: =LN(P17) -> 3.401197382
A27: 5 | B27: ln[q(5,1)] | C27: ln[q(5,2)] | M27: 5 | N27: 4.86753445 | O27: =LN(O18) -> 3.688879454
A28: 6 | B28: ln[q(6,1)] | M28: 6 | N28: 4.828313737
Z29: Model Parameters from Maximum Likelihood
A30: Design Matrix | N30: α1 | O30: β2 | P30: β3 | Q30: β4 | R30: β5 | S30: β6 | U30: X x A | AA30: Actual | AC30: Estimate | AD30: Loglikelihood | AG30: Maximum Likelihood Steps:
A31: X | B31: 1 | C31: 0 | D31: 0 | E31: 0 | F31: 0 | G31: 0 | M31: A | N31: 4.737653892 | O31: -0.8664542256 | P31: -0.7576828227 | Q31: 0.1698923228 | R31: -0.9808220224 | S31: -0.6931759699 | U31: =SUMPRODUCT(B31:G31,$N$31:$S$31) -> 4.737653892 | Z31: q(1,1) | AA31: =N14 -> 95 | AB31: m1,1 | AC31: =EXP(U31) -> 114.1660414 | AD31: =IF($F$55=0,-(((AA31-AC31)^2)/2)-0.5*LN(2*PI()),IF($F$55=1,-AC31+LN(AC31)*AA31-GAMMALN(AA31+1),IF($F$55=2,-LN(AC31)-AA31/AC31,-0.5*(LN(2*PI())+3*LN(AA31))-(AA31-AC31)^2/(2*AC31^2*AA31)))) -> -4.90398051 | AF31: 1) | AG31: Enter Starting Values for vector A (Row 31)
B32: 1 | C32: 0 | D32: 0 | E32: 0 | F32: 0 | G32: 0 | U32: =SUMPRODUCT(B32:G32,$N$31:$S$31) -> 4.737653892 | Z32: q(2,1) | AA32: =N15 -> 110 | AB32: m2,1 | AC32: =EXP(U32) -> 114.1660414 | AD32: =IF($F$55=0,-(((AA32-AC32)^2)/2)-0.5*LN(2*PI()),IF($F$55=1,-AC32+LN(AC32)*AA32-GAMMALN(AA32+1),IF($F$55=2,-LN(AC32)-AA32/AC32,-0.5*(LN(2*PI())+3*LN(AA32))-(AA32-AC32)^2/(2*AC32^2*AA32)))) -> -3.346889782 | AF32: 2) | AG32: Use Solver to Maximize Total Loglikelihood
B33: 1 | C33: 0 | D33: 0 | E33: 0 | F33: 0 | G33: 0 | U33: 4.737653892 | Z33: q(3,1) | AA33: =N16 -> 105 | AB33: m3,1 | AC33: 114.1660414 | AD33: -3.62493184
B34: 1 | C34: 0 | D34: 0 | E34: 0 | F34: 0 | G34: 0 | U34: 4.737653892 | Z34: q(4,1) | AA34: =N17 -> 120 | AB34: m4,1 | AC34: 114.1660414 | AD34: -3.459962313
B35: 1 | C35: 0 | D35: 0 | E35: 0 | F35: 0 | G35: 0 | U35: 4.737653892 | Z35: q(5,1) | AA35: =N18 -> 130 | AB35: m5,1 | AC35: 114.1660414 | AD35: -4.403860751
B36: 1 | C36: 0 | D36: 0 | E36: 0 | F36: 0 | G36: 0 | U36: 4.737653892 | Z36: q(6,1) | AA36: =N19 -> 125 | AB36: m6,1 | AC36: 114.1660414 | AD36: -3.8322841
B37: 1 | C37: 1 | D37: 0 | E37: 0 | F37: 0 | G37: 0 | U37: 3.871199667 | Z37: q(1,2) | AA37: =O14 -> 55 | AB37: m1,2 | AC37: 47.99993548 | AD37: -3.411399258
B38: 1 | C38: 1 | D38: 0 | E38: 0 | F38: 0 | G38: 0 | U38: 3.871199667 | Z38: q(2,2) | AA38: =O15 -> 50 | AB38: m2,2 | AC38: 47.99993548 | AD38: -2.917719095
B39: 1 | C39: 1 | D39: 0 | E39: 0 | F39: 0 | G39: 0 | U39: 3.871199667 | Z39: q(3,2) | AA39: =O16 -> 60 | AB39: m3,2 | AC39: 47.99993548 | AD39: -4.356128899
B40: 1 | C40: 1 | D40: 0 | E40: 0 | F40: 0 | G40: 0 | U40: 3.871199667 | Z40: q(4,2) | AA40: =O17 -> 35 | AB40: m4,2 | AC40: 47.99993548 | AD40: -4.644122748
B41: 1 | C41: 1 | D41: 0 | E41: 0 | F41: 0 | G41: 0 | U41: 3.871199667 | Z41: q(5,2) | AA41: =O18 -> 40 | AB41: m5,2 | AC41: 47.99993548 | AD41: -3.472588525
B42: 1 | C42: 1 | D42: 1 | E42: 0 | F42: 0 | G42: 0 | U42: 3.113516844 | Z42: q(1,3) | AA42: =P14 -> 20 | AB42: m1,3 | AC42: 22.50003453 | AD42: -2.565314114
B43: 1 | C43: 1 | D43: 1 | E43: 0 | F43: 0 | G43: 0 | U43: 3.113516844 | Z43: q(2,3) | AA43: =P15 -> 15 | AB43: m2,3 | AC43: 22.50003453 | AD43: -3.696553257
B44: 1 | C44: 1 | D44: 1 | E44: 0 | F44: 0 | G44: 0 | U44: 3.113516844 | Z44: q(3,3) | AA44: =P16 -> 25 | AB44: m3,3 | AC44: 22.50003453 | AD44: -2.665718656
B45: 1 | C45: 1 | D45: 1 | E45: 0 | F45: 0 | G45: 0 | U45: 3.113516844 | Z45: q(4,3) | AA45: =P17 -> 30 | AB45: m4,3 | AC45: 22.50003453 | AD45: -3.752765561
B46: 1 | C46: 1 | D46: 1 | E46: 1 | F46: 0 | G46: 0 | U46: 3.283409167 | Z46: q(1,4) | AA46: =Q14 -> 30 | AB46: m1,4 | AC46: 26.66652856 | AD46: -2.822489899
B47: 1 | C47: 1 | D47: 1 | E47: 1 | F47: 0 | G47: 0 | U47: 3.283409167 | Z47: q(2,4) | AA47: =Q15 -> 30 | AB47: m2,4 | AC47: 26.66652856 | AD47: -2.822489899
B48: 1 | C48: 1 | D48: 1 | E48: 1 | F48: 0 | G48: 0 | U48: 3.283409167 | Z48: q(3,4) | AA48: =Q16 -> 20 | AB48: m3,4 | AC48: 26.66652856 | AD48: -3.33396168
B49: 1 | C49: 1 | D49: 1 | E49: 1 | F49: 1 | G49: 0 | U49: 2.302587144 | Z49: q(1,5) | AA49: =R14 -> 15 | AB49: m1,5 | AC49: 10.00002052 | AD49: -3.360484731
B50: 1 | C50: 1 | D50: 1 | E50: 1 | F50: 1 | G50: 0 | U50: 2.302587144 | Z50: q(2,5) | AA50: =R15 -> 5 | AB50: m2,5 | AC50: 10.00002052 | AD50: -3.274576535
B51: 1 | C51: 1 | D51: 1 | E51: 1 | F51: 1 | G51: 1 | U51: 1.609411175 | Z51: q(1,6) | AA51: =S14 -> 5 | AB51: m1,6 | AC51: 4.999866312 | AD51: -1.740302182
A53: Model Parameters from Iteratively Weighted Least Squares | AA53: =COUNTIF(AA31:AA51,"<>0") -> 21 | AC53: Total | AD53: =SUM(AD31:AD51) -> -72.40852434
B54: Value | C54: t-Stat | D54: p-Value | F54: Error Distribution
A55: α1 | B55: =GLM!BR130 -> 4.737659369 | C55: =B55/SQRT(ScaleParameter*GLM!AM130) -> 88.20713883 | D55: =_xlfn.T.DIST.2T(ABS(C55),$T$113) -> 8.687311984e-22 | E55: z = | F55: 1 | AJ55: 0 | AK55: Normal
A56: β2 | B56: =GLM!BR131 -> -0.8664583581 | C56: =B56/SQRT(ScaleParameter*GLM!AN131) -> -8.217171528 | D56: =_xlfn.T.DIST.2T(ABS(C56),$T$113) -> 6.181841038e-07 | F56: =VLOOKUP(F55,ErrorTable,2) -> Poisson | AJ56: 1 | AK56: Poisson
A57: β3 | B57: =GLM!BR132 -> -0.7576857017 | C57: =B57/SQRT(ScaleParameter*GLM!AO132) -> -4.36067394 | D57: 0.0005593026341 | AJ57: 2 | AK57: Gamma
A58: β4 | B58: =GLM!BR133 -> 0.1698990368 | C58: =B58/SQRT(ScaleParameter*GLM!AP133) -> 0.7865517856 | D58: 0.4437939868 | AJ58: 3 | AK58: Inverse Gaussian
A59: β5 | B59: =GLM!BR134 -> -0.980829253 | C59: =B59/SQRT(ScaleParameter*GLM!AQ134) -> -2.790924052 | D59: 0.01370840051
A60: β6 | B60: =GLM!BR135 -> -0.6931471806 | C60: =B60/SQRT(ScaleParameter*GLM!AR135) -> -0.98616611 | D60: 0.339692679
A67: Log-Link of Fitted Values | M67: Log-Link of Fitted Values
B68: 1 | C68: 2 | D68: 3 | E68: 4 | F68: 5 | G68: 6 | N68: 1 | O68: 2 | P68: 3 | Q68: 4 | R68: 5 | S68: 6
A69: 1 | B69: ln[m1,1] | C69: ln[m1,2] | D69: ln[m1,3] | E69: ln[m1,4] | F69: ln[m1,5] | G69: ln[m1,6] | M69: 1 | N69: =B$55 -> 4.737659369 | O69: =B$55+B$56 -> 3.871201011 | P69: =$B$55+$B$56+$B$57 -> 3.113515309 | Q69: =$B$55+$B$56+$B$57+$B$58 -> 3.283414346 | R69: =$B$55+$B$56+$B$57+$B$58+$B$59 -> 2.302585093 | S69: =$B$55+$B$56+$B$57+$B$58+$B$59+$B$60 -> 1.609437912
A70: 2 | B70: ln[m2,1] | C70: ln[m2,2] | D70: ln[m2,3] | E70: ln[m2,4] | F70: ln[m2,5] | M70: 2 | N70: 4.737659369 | O70: =B$55+B$56 -> 3.871201011 | P70: =$B$55+$B$56+$B$57 -> 3.113515309 | Q70: =$B$55+$B$56+$B$57+$B$58 -> 3.283414346 | R70: =$B$55+$B$56+$B$57+$B$58+$B$59 -> 2.302585093
A71: 3 | B71: ln[m3,1] | C71: ln[m3,2] | D71: ln[m3,3] | E71: ln[m3,4] | M71: 3 | N71: 4.737659369 | O71: =B$55+B$56 -> 3.871201011 | P71: =$B$55+$B$56+$B$57 -> 3.113515309 | Q71: =$B$55+$B$56+$B$57+$B$58 -> 3.283414346
A72: 4 | B72: ln[m4,1] | C72: ln[m4,2] | D72: ln[m4,3] | M72: 4 | N72: 4.737659369 | O72: =B$55+B$56 -> 3.871201011 | P72: =$B$55+$B$56+$B$57 -> 3.113515309
A73: 5 | B73: ln[m5,1] | C73: ln[m5,2] | M73: 5 | N73: 4.737659369 | O73: =B$55+B$56 -> 3.871201011
A74: 6 | B74: ln[m6,1] | M74: 6 | N74: 4.737659369
A76: Fitted Incremental Values | M76: Fitted Incremental Values | Y76: Fitted Cumulative Values
B77: 1 | C77: 2 | D77: 3 | E77: 4 | F77: 5 | G77: 6 | N77: 1 | O77: 2 | P77: 3 | Q77: 4 | R77: 5 | S77: 6 | Z77: 1 | AA77: 2 | AB77: 3 | AC77: 4 | AD77: 5 | AE77: 6
A78: 1 | B78: m1,1 | C78: m1,2 | D78: m1,3 | E78: m1,4 | F78: m1,5 | G78: m1,6 | M78: 1 | N78: =EXP(N69) -> 114.1666667 | O78: =EXP(O69) -> 48 | P78: 22.5 | Q78: =EXP(Q69) -> 26.66666667 | R78: =EXP(R69) -> 10 | S78: =EXP(S69) -> 5 | Y78: 1 | Z78: =N78 -> 114.1666667 | AA78: =Z78+O78 -> 162.1666667 | AB78: =AA78+P78 -> 184.6666667 | AC78: =AB78+Q78 -> 211.3333333 | AD78: =AC78+R78 -> 221.3333333 | AE78: =AD78+S78 -> 226.3333333
A79: 2 | B79: m2,1 | C79: m2,2 | D79: m2,3 | E79: m2,4 | F79: m2,5 | M79: 2 | N79: 114.1666667 | O79: 48 | P79: 22.5 | Q79: =EXP(Q70) -> 26.66666667 | R79: 10 | Y79: 2 | Z79: 114.1666667 | AA79: =Z79+O79 -> 162.1666667 | AB79: =AA79+P79 -> 184.6666667 | AC79: =AB79+Q79 -> 211.3333333 | AD79: =AC79+R79 -> 221.3333333
A80: 3 | B80: m3,1 | C80: m3,2 | D80: m3,3 | E80: m3,4 | M80: 3 | N80: 114.1666667 | O80: 48 | P80: =EXP(P71) -> 22.5 | Q80: =EXP(Q71) -> 26.66666667 | Y80: 3 | Z80: 114.1666667 | AA80: =Z80+O80 -> 162.1666667 | AB80: =AA80+P80 -> 184.6666667 | AC80: =AB80+Q80 -> 211.3333333
A81: 4 | B81: m4,1 | C81: m4,2 | D81: m4,3 | M81: 4 | N81: 114.1666667 | O81: =EXP(O72) -> 48 | P81: =EXP(P72) -> 22.5 | Y81: 4 | Z81: 114.1666667 | AA81: =Z81+O81 -> 162.1666667 | AB81: =AA81+P81 -> 184.6666667
A82: 5 | B82: m5,1 | C82: m5,2 | M82: 5 | N82: 114.1666667 | O82: =EXP(O73) -> 48 | Y82: 5 | Z82: 114.1666667 | AA82: =Z82+O82 -> 162.1666667
A83: 6 | B83: m6,1 | M83: 6 | N83: 114.1666667 | Y83: 6 | Z83: 114.1666667
A85: Unscaled Pearson Residuals | M85: Unscaled Pearson Residuals | Y85: Fitted Age-to-Age Factors | AI85: Age-to-Age Factor Differences
B86: 1 | C86: 2 | D86: 3 | E86: 4 | F86: 5 | G86: 6 | N86: 1 | O86: 2 | P86: 3 | Q86: 4 | R86: 5 | S86: 6 | Z86: 1 | AA86: 2 | AB86: 3 | AC86: 4 | AD86: 5 | AE86: 6 | AJ86: 1 | AK86: 2 | AL86: 3 | AM86: 4 | AN86: 5 | AO86: 6
A87: 1 | B87: r1,1 | C87: r1,2 | D87: r1,3 | E87: r1,4 | F87: r1,5 | G87: r1,6 | M87: 1 | N87: =(N14-N78)/SQRT(N78^$F$55) -> -1.793812018 | O87: =(O14-O78)/SQRT(O78^$F$55) -> 1.010362971 | P87: =(P14-P78)/SQRT(P78^$F$55) -> -0.5270462767 | Q87: =(Q14-Q78)/SQRT(Q78^$F$55) -> 0.6454972244 | R87: =(R14-R78)/SQRT(R78^$F$55) -> 1.58113883 | S87: =(S14-S78)/SQRT(S78^$F$55) -> -7.94410929e-16 | Y87: 1 | AA87: =AA78/Z78 -> 1.420437956 | AB87: =AB78/AA78 -> 1.138746146 | AC87: =AC78/AB78 -> 1.144404332 | AD87: =AD78/AC78 -> 1.047318612 | AE87: =AE78/AD78 -> 1.022590361 | AI87: 1 | AK87: =AA5-AA87 -> 0.1585094122 | AL87: =AB5-AB87 -> -0.005412812607 | AM87: =AC5-AC87 -> 0.03206625611 | AN87: =AD5-AD87 -> 0.02768138801 | AO87: =AE5-AE87 -> 0.0006654525077
A88: 2 | B88: r2,1 | C88: r2,2 | D88: r2,3 | E88: r2,4 | F88: r2,5 | M88: 2 | N88: =(N15-N79)/SQRT(N79^$F$55) -> -0.3899591344 | O88: =(O15-O79)/SQRT(O79^$F$55) -> 0.2886751346 | P88: =(P15-P79)/SQRT(P79^$F$55) -> -1.58113883 | Q88: =(Q15-Q79)/SQRT(Q79^$F$55) -> 0.6454972244 | R88: =(R15-R79)/SQRT(R79^$F$55) -> -1.58113883 | Y88: 2 | AA88: =AA79/Z79 -> 1.420437956 | AB88: 1.138746146 | AC88: 1.144404332 | AD88: 1.047318612 | AI88: 2 | AK88: =AA6-AA88 -> 0.03410749834 | AL88: =AB6-AB88 -> -0.04499614594 | AM88: =AC6-AC88 -> 0.0270242393 | AN88: =AD6-AD88 -> -0.02292836808
A89: 3 | B89: r3,1 | C89: r3,2 | D89: r3,3 | E89: r3,4 | M89: 3 | N89: =(N16-N80)/SQRT(N80^$F$55) -> -0.8579100957 | O89: =(O16-O80)/SQRT(O80^$F$55) -> 1.732050808 | P89: =(P16-P80)/SQRT(P80^$F$55) -> 0.5270462767 | Q89: =(Q16-Q80)/SQRT(Q80^$F$55) -> -1.290994449 | Y89: 3 | AA89: 1.420437956 | AB89: 1.138746146 | AC89: 1.144404332 | AI89: 3 | AK89: =AA7-AA89 -> 0.1509906152 | AL89: =AB7-AB89 -> 0.01276900557 | AM89: =AC7-AC89 -> -0.03914117424
A90: 4 | B90: r4,1 | C90: r4,2 | D90: r4,3 | M90: 4 | N90: =(N17-N81)/SQRT(N81^$F$55) -> 0.5459427882 | O90: =(O17-O81)/SQRT(O81^$F$55) -> -1.876388375 | P90: =(P17-P81)/SQRT(P81^$F$55) -> 1.58113883 | Y90: 4 | AA90: 1.420437956 | AB90: 1.138746146 | AI90: 4 | AK90: =AA8-AA90 -> -0.1287712895 | AL90: =AB8-AB90 -> 0.05480224116
A91: 5 | B91: r5,1 | C91: r5,2 | M91: 5 | N91: =(N18-N82)/SQRT(N82^$F$55) -> 1.481844711 | O91: =(O18-O82)/SQRT(O82^$F$55) -> -1.154700538 | Y91: 5 | AA91: 1.420437956 | AI91: 5 | AK91: =AA9-AA91 -> -0.1127456485
A92: 6 | B92: r6,1 | M92: 6 | N92: =(N19-N83)/SQRT(N83^$F$55) -> 1.01389375 | Y92: 6 | AI92: 6
A94: Hat Matrix Factors | M94: Hat Matrix Factors
B95: 1 | C95: 2 | D95: 3 | E95: 4 | F95: 5 | G95: 6 | N95: 1 | O95: 2 | P95: 3 | Q95: 4 | R95: 5 | S95: 6
A96: 1 | B96: fH1,1 | C96: fH1,2 | D96: fH1,3 | E96: fH1,4 | F96: fH1,5 | G96: fH1,6 | M96: 1 | N96: ='Hat Matrix'!A49 -> 1.095445115 | O96: ='Hat Matrix'!G55 -> 1.118033989 | P96: ='Hat Matrix'!L60 -> 1.154700538 | Q96: ='Hat Matrix'!P64 -> 1.224744871 | R96: ='Hat Matrix'!S67 -> 1.414213562 | S96: ='Hat Matrix'!U69 -> 0
A97: 2 | B97: fH2,1 | C97: fH2,2 | D97: fH2,3 | E97: fH2,4 | F97: fH2,5 | M97: 2 | N97: ='Hat Matrix'!B50 -> 1.095445115 | O97: ='Hat Matrix'!H56 -> 1.118033989 | P97: ='Hat Matrix'!M61 -> 1.154700538 | Q97: ='Hat Matrix'!Q65 -> 1.224744871 | R97: ='Hat Matrix'!T68 -> 1.414213562
A98: 3 | B98: fH3,1 | C98: fH3,2 | D98: fH3,3 | E98: fH3,4 | M98: 3 | N98: ='Hat Matrix'!C51 -> 1.095445115 | O98: ='Hat Matrix'!I57 -> 1.118033989 | P98: ='Hat Matrix'!N62 -> 1.154700538 | Q98: ='Hat Matrix'!R66 -> 1.224744871
A99: 4 | B99: fH4,1 | C99: fH4,2 | D99: fH4,3 | M99: 4 | N99: ='Hat Matrix'!D52 -> 1.095445115 | O99: ='Hat Matrix'!J58 -> 1.118033989 | P99: ='Hat Matrix'!O63 -> 1.154700538
A100: 5 | B100: fH5,1 | C100: fH5,2 | M100: 5 | N100: ='Hat Matrix'!E53 -> 1.095445115 | O100: ='Hat Matrix'!K59 -> 1.118033989
A101: 6 | B101: fH6,1 | M101: 6 | N101: ='Hat Matrix'!F54 -> 1.095445115
A103: Standardized Pearson Residuals | M103: Standardized Pearson Residuals
B104: 1 | C104: 2 | D104: 3 | E104: 4 | F104: 5 | G104: 6 | N104: 1 | O104: 2 | P104: 3 | Q104: 4 | R104: 5 | S104: 6
A105: 1 | B105: rH1,1 | C105: rH1,2 | D105: rH1,3 | E105: rH1,4 | F105: rH1,5 | G105: rH1,6 | M105: 1 | N105: =N87*N96 -> -1.965022613 | O105: =O87*O96 -> 1.129620143 | P105: -0.6085806195 | Q105: 0.790569415 | R105: 2.236067977 | S105: =S87*S96 -> 0
A106: 2 | B106: rH2,1 | C106: rH2,2 | D106: rH2,3 | E106: rH2,4 | F106: rH2,5 | M106: 2 | N106: -0.4271788289 | O106: 0.3227486122 | P106: -1.825741858 | Q106: 0.790569415 | R106: -2.236067977
A107: 3 | B107: rH3,1 | C107: rH3,2 | D107: rH3,3 | E107: rH3,4 | M107: 3 | N107: -0.9397934235 | O107: 1.936491673 | P107: 0.6085806195 | Q107: -1.58113883
A108: 4 | B108: rH4,1 | C108: rH4,2 | D108: rH4,3 | M108: 4 | N108: 0.5980503604 | O108: -2.097865979 | P108: 1.825741858
A109: 5 | B109: rH5,1 | C109: rH5,2 | M109: 5 | N109: 1.62327955 | O109: -1.290994449
A110: 6 | B110: rH6,1 | M110: 6 | N110: 1.110664955
M112: Pearson chi-squared statistic | T112: =SUMSQ(N87:S92) -> 29.64162612
M113: Degrees of freedom | P113: =COUNT(N14:S19) -> 21 | Q113: - | R113: =COUNT(B55:B65) -> 6 | S113: = | T113: =P113-R113 -> 15
M114: Scale Parameter | T114: =T112/T113 -> 1.976108408
M115: Degrees of Freedom Adjustment Factor | T115: =SQRT(P113/T113) -> 1.183215957
M116: Number of Non-Zero Residuals | T116: =COUNTIF(N105:N110,"<>0")+COUNTIF(O105:O109,"<>0")+COUNTIF(P105:P108,"<>0")+COUNTIF(Q105:Q107,"<>0")+COUNTIF(R105:R106,"<>0")+COUNTIF(S105,"<>0") -> 20
M118: Random Selections
N119: 1 | O119: 2 | P119: 3 | Q119: 4 | R119: 5 | S119: 6 | Y119: Residual Lookup Table
M120: 1 | N120: =RANDBETWEEN(1,NonZeroCount) -> 13 | O120: 15 | P120: 9 | Q120: 5 | R120: 3 | S120: 3 | Y120: 1 | Z120: =N105 -> -1.965022613 | AA120: =Z120 -> -1.965022613
M121: 2 | N121: =RANDBETWEEN(1,NonZeroCount) -> 6 | O121: =RANDBETWEEN(1,NonZeroCount) -> 6 | P121: =RANDBETWEEN(1,NonZeroCount) -> 3 | Q121: =RANDBETWEEN(1,NonZeroCount) -> 17 | R121: =RANDBETWEEN(1,NonZeroCount) -> 8 | Y121: 2 | Z121: -0.4271788289 | AA121: =Z121 -> -0.4271788289
M122: 3 | N122: =RANDBETWEEN(1,NonZeroCount) -> 4 | O122: =RANDBETWEEN(1,NonZeroCount) -> 18 | P122: =RANDBETWEEN(1,NonZeroCount) -> 11 | Q122: =RANDBETWEEN(1,NonZeroCount) -> 17 | Y122: 3 | Z122: -0.9397934235 | AA122: -0.9397934235
M123: 4 | N123: =RANDBETWEEN(1,NonZeroCount) -> 15 | O123: =RANDBETWEEN(1,NonZeroCount) -> 1 | P123: =RANDBETWEEN(1,NonZeroCount) -> 15 | Y123: 4 | Z123: 0.5980503604 | AA123: 0.5980503604
M124: 5 | N124: =RANDBETWEEN(1,NonZeroCount) -> 10 | O124: =RANDBETWEEN(1,NonZeroCount) -> 11 | Y124: 5 | Z124: 1.62327955 | AA124: 1.62327955
M125: 6 | N125: =RANDBETWEEN(1,NonZeroCount) -> 15 | Y125: 6 | Z125: 1.110664955 | AA125: 1.110664955
Y126: 7 | Z126: =O105 -> 1.129620143 | AA126: 1.129620143
M127: Random Residuals | Y127: 8 | Z127: =O106 -> 0.3227486122 | AA127: 0.3227486122
N128: 1 | O128: 2 | P128: 3 | Q128: 4 | R128: 5 | S128: 6 | Y128: 9 | Z128: =O107 -> 1.936491673 | AA128: 1.936491673
M129: 1 | N129: =VLOOKUP(N120,$Y$120:$AA$140,3) -> -1.825741858 | O129: =VLOOKUP(O120,$Y$120:$AA$140,3) -> 1.825741858 | P129: 1.936491673 | Q129: 1.62327955 | R129: -0.9397934235 | S129: =VLOOKUP(S120,$Y$120:$AA$140,3) -> -0.9397934235 | Y129: 10 | Z129: =O108 -> -2.097865979 | AA129: -2.097865979
M130: 2 | N130: 1.110664955 | O130: 1.110664955 | P130: -0.9397934235 | Q130: 0.790569415 | R130: 0.3227486122 | Y130: 11 | Z130: =O109 -> -1.290994449 | AA130: -1.290994449
M131: 3 | N131: 0.5980503604 | O131: -1.58113883 | P131: -1.290994449 | Q131: 0.790569415 | Y131: 12 | Z131: =P105 -> -0.6085806195 | AA131: -0.6085806195
M132: 4 | N132: 1.825741858 | O132: -1.965022613 | P132: 1.825741858 | Y132: 13 | Z132: =P106 -> -1.825741858 | AA132: -1.825741858
M133: 5 | N133: -2.097865979 | O133: -1.290994449 | Y133: 14 | Z133: =P107 -> 0.6085806195 | AA133: 0.6085806195
M134: 6 | N134: 1.825741858 | Y134: 15 | Z134: =P108 -> 1.825741858 | AA134: 1.825741858
Y135: 16 | Z135: =Q105 -> 0.790569415 | AA135: 0.790569415
A136: Sample Incremental Triangle | M136: Sample Incremental Triangle | Y136: 17 | Z136: =Q106 -> 0.790569415 | AA136: 0.790569415
B137: 1 | C137: 2 | D137: 3 | E137: 4 | F137: 5 | G137: 6 | N137: 1 | O137: 2 | P137: 3 | Q137: 4 | R137: 5 | S137: 6 | Y137: 18 | Z137: =Q107 -> -1.58113883 | AA137: -1.58113883
A138: 1 | B138: ="q'("&$A138&","&B$4&")" -> q'(1,1) | C138: ="q'("&$A138&","&C$4&")" -> q'(1,2) | D138: q'(1,3) | E138: ="q'("&$A138&","&E$4&")" -> q'(1,4) | F138: ="q'("&$A138&","&F$4&")" -> q'(1,5) | G138: ="q'("&$A138&","&G$4&")" -> q'(1,6) | M138: 1 | N138: =N78+N129*SQRT(N78^$F$55) -> 94.65883348 | O138: =O78+O129*SQRT(O78^$F$55) -> 60.64911064 | P138: =P78+P129*SQRT(P78^$F$55) -> 31.68558654 | Q138: =Q78+Q129*SQRT(Q78^$F$55) -> 35.04924622 | R138: =R78+R129*SQRT(R78^$F$55) -> 7.028112252 | S138: =S78+S129*SQRT(S78^$F$55) -> 2.89855802 | Y138: 19 | Z138: =R105 -> 2.236067977 | AA138: 2.236067977
A139: 2 | B139: q'(2,1) | C139: q'(2,2) | D139: q'(2,3) | E139: q'(2,4) | F139: q'(2,5) | M139: 2 | N139: =N79+N130*SQRT(N79^$F$55) -> 126.0339887 | O139: =O79+O130*SQRT(O79^$F$55) -> 55.69491253 | P139: =P79+P130*SQRT(P79^$F$55) -> 18.04216838 | Q139: =Q79+Q130*SQRT(Q79^$F$55) -> 30.74914957 | R139: =R79+R130*SQRT(R79^$F$55) -> 11.02062073 | Y139: 20 | Z139: =R106 -> -2.236067977 | AA139: -2.236067977
A140: 3 | B140: q'(3,1) | C140: q'(3,2) | D140: q'(3,3) | E140: q'(3,4) | M140: 3 | N140: =N80+N131*SQRT(N80^$F$55) -> 120.5567632 | O140: =O80+O131*SQRT(O80^$F$55) -> 37.04554885 | P140: =P80+P131*SQRT(P80^$F$55) -> 16.37627564 | Q140: =Q80+Q131*SQRT(Q80^$F$55) -> 30.74914957 | Y140: 21 | Z140: =S105 -> 0
A141: 4 | B141: q'(4,1) | C141: q'(4,2) | D141: q'(4,3) | M141: 4 | N141: =N81+N132*SQRT(N81^$F$55) -> 133.6744999 | O141: =O81+O132*SQRT(O81^$F$55) -> 34.38592399 | P141: =P81+P132*SQRT(P81^$F$55) -> 31.16025404
A142: 5 | B142: q'(5,1) | C142: q'(5,2) | M142: 5 | N142: =N82+N133*SQRT(N82^$F$55) -> 91.75121983 | O142: =O82+O133*SQRT(O82^$F$55) -> 39.05572809
A143: 6 | B143: q'(6,1) | M143: 6 | N143: =N83+N134*SQRT(N83^$F$55) -> 133.6744999
A145: Sample Cumulative Triangle | M145: Sample Triangle Fitted Values | Y145: Sample Fitted Cumulative Triangle
B146: 1 | C146: 2 | D146: 3 | E146: 4 | F146: 5 | G146: 6 | N146: 1 | O146: 2 | P146: 3 | Q146: 4 | R146: 5 | S146: 6 | Z146: 1 | AA146: 2 | AB146: 3 | AC146: 4 | AD146: 5 | AE146: 6
A147: 1 | B147: ="c'("&$A147&","&B$4&")" -> c'(1,1) | C147: ="c'("&$A147&","&C$4&")" -> c'(1,2) | D147: c'(1,3) | E147: ="c'("&$A147&","&E$4&")" -> c'(1,4) | F147: ="c'("&$A147&","&F$4&")" -> c'(1,5) | G147: ="c'("&$A147&","&G$4&")" -> c'(1,6) | M147: 1 | N147: =EXP($B$155) -> 116.7249675 | O147: =EXP($B$155+$B$156) -> 45.36624482 | P147: =EXP($B$155+$B$156+$B$157) -> 24.31607115 | Q147: =EXP($B$155+$B$156+$B$157+$B$158) -> 32.18251512 | R147: =EXP($B$155+$B$156+$B$157+$B$158+$B$159) -> 9.024366489 | S147: =EXP($B$155+$B$156+$B$157+$B$158+$B$159+$B$160) -> 2.89855802 | Y147: 1 | Z147: =N147 -> 116.7249675 | AA147: =O147+Z147 -> 162.0912123 | AB147: =P147+AA147 -> 186.4072835 | AC147: =Q147+AB147 -> 218.5897986 | AD147: =R147+AC147 -> 227.6141651 | AE147: =S147+AD147 -> 230.5127231
A148: 2 | B148: c'(2,1) | C148: c'(2,2) | D148: c'(2,3) | E148: c'(2,4) | F148: c'(2,5) | M148: 2 | N148: 116.7249675 | O148: =EXP($B$155+$B$156) -> 45.36624482 | P148: =EXP($B$155+$B$156+$B$157) -> 24.31607115 | Q148: =EXP($B$155+$B$156+$B$157+$B$158) -> 32.18251512 | R148: =EXP($B$155+$B$156+$B$157+$B$158+$B$159) -> 9.024366489 | Y148: 2 | Z148: 116.7249675 | AA148: =O148+Z148 -> 162.0912123 | AB148: 186.4072835 | AC148: 218.5897986 | AD148: 227.6141651
A149: 3 | B149: c'(3,1) | C149: c'(3,2) | D149: c'(3,3) | E149: c'(3,4) | M149: 3 | N149: 116.7249675 | O149: =EXP($B$155+$B$156) -> 45.36624482 | P149: =EXP($B$155+$B$156+$B$157) -> 24.31607115 | Q149: =EXP($B$155+$B$156+$B$157+$B$158) -> 32.18251512 | Y149: 3 | Z149: 116.7249675 | AA149: 162.0912123 | AB149: 186.4072835 | AC149: 218.5897986
A150: 4 | B150: c'(4,1) | C150: c'(4,2) | D150: c'(4,3) | M150: 4 | N150: 116.7249675 | O150: =EXP($B$155+$B$156) -> 45.36624482 | P150: =EXP($B$155+$B$156+$B$157) -> 24.31607115 | Y150: 4 | Z150: 116.7249675 | AA150: 162.0912123 | AB150: 186.4072835
A151: 5 | B151: c'(5,1) | C151: c'(5,2) | M151: 5 | N151: 116.7249675 | O151: =EXP($B$155+$B$156) -> 45.36624482 | Y151: 5 | Z151: 116.7249675 | AA151: 162.0912123
A152: 6 | B152: c'(6,1) | M152: 6 | N152: 116.7249675 | Y152: 6 | Z152: 116.7249675
A154: Sample Data Parameters | Y154: Sample Fitted Age-to-Age Factors
A155: α1 | B155: ='GLM 2'!BR130 -> 4.759820462 | Z155: 1 | AA155: 2 | AB155: 3 | AC155: 4 | AD155: 5 | AE155: 6
A156: β2 | B156: ='GLM 2'!BR131 -> -0.94505214 | Y156: 1 | AA156: =AA147/Z147 -> 1.388659306 | AB156: =AB147/AA147 -> 1.15001474 | AC156: =AC147/AB147 -> 1.172646232 | AD156: =AD147/AC147 -> 1.041284481 | AE156: =AE147/AD147 -> 1.012734524
A157: β3 | B157: ='GLM 2'!BR132 -> -0.6236308265 | Y157: 2 | AA157: =AA148/Z148 -> 1.388659306 | AB157: =AB148/AA148 -> 1.15001474 | AC157: =AC148/AB148 -> 1.172646232 | AD157: =AD148/AC148 -> 1.041284481
A158: β4 | B158: ='GLM 2'!BR133 -> 0.2802858005 | Y158: 3 | AA158: =AA149/Z149 -> 1.388659306 | AB158: =AB149/AA149 -> 1.15001474 | AC158: =AC149/AB149 -> 1.172646232
A159: β5 | B159: ='GLM 2'!BR134 -> -1.27149499 | Y159: 4 | AA159: =AA150/Z150 -> 1.388659306 | AB159: =AB150/AA150 -> 1.15001474
A160: β6 | B160: ='GLM 2'!BR135 -> -1.135714928 | Y160: 5 | AA160: =AA151/Z151 -> 1.388659306
Y161: 6
M165: Projected Incremental Data | U165: Point
N166: 1 | O166: 2 | P166: 3 | Q166: 4 | R166: 5 | S166: 6 | U166: Estimate
M167: 1
M168: 2 | S168: =EXP($B$155+$B$156+$B$157+$B$158+$B$159+$B$160) -> 2.89855802 | U168: =SUM(N168:S168) -> 2.89855802
M169: 3 | R169: =EXP($B$155+$B$156+$B$157+$B$158+$B$159) -> 9.024366489 | S169: =EXP($B$155+$B$156+$B$157+$B$158+$B$159+$B$160) -> 2.89855802 | U169: =SUM(N169:S169) -> 11.92292451
M170: 4 | Q170: =EXP($B$155+$B$156+$B$157+$B$158) -> 32.18251512 | R170: =EXP($B$155+$B$156+$B$157+$B$158+$B$159) -> 9.024366489 | S170: =EXP($B$155+$B$156+$B$157+$B$158+$B$159+$B$160) -> 2.89855802 | U170: =SUM(N170:S170) -> 44.10543963
M171: 5 | P171: =EXP($B$155+$B$156+$B$157) -> 24.31607115 | Q171: =EXP($B$155+$B$156+$B$157+$B$158) -> 32.18251512 | R171: =EXP($B$155+$B$156+$B$157+$B$158+$B$159) -> 9.024366489 | S171: =EXP($B$155+$B$156+$B$157+$B$158+$B$159+$B$160) -> 2.89855802 | U171: =SUM(N171:S171) -> 68.42151078
M172: 6 | O172: =EXP($B$155+$B$156) -> 45.36624482 | P172: =EXP($B$155+$B$156+$B$157) -> 24.31607115 | Q172: =EXP($B$155+$B$156+$B$157+$B$158) -> 32.18251512 | R172: =EXP($B$155+$B$156+$B$157+$B$158+$B$159) -> 9.024366489 | S172: =EXP($B$155+$B$156+$B$157+$B$158+$B$159+$B$160) -> 2.89855802 | U172: =SUM(N172:S172) -> 113.7877556
U173: =SUM(U168:U172) -> 241.1361885
M174: Random Values
N175: 1 | O175: 2 | P175: 3 | Q175: 4 | R175: 5 | S175: 6
M176: 1
M177: 2 | S177: =RAND() -> 0.8406693558
M178: 3 | R178: =RAND() -> 0.1250805216 | S178: =RAND() -> 0.4383674489
M179: 4 | Q179: =RAND() -> 0.7295405669 | R179: =RAND() -> 0.2189343553 | S179: =RAND() -> 0.6048055356
M180: 5 | P180: =RAND() -> 0.1223882292 | Q180: =RAND() -> 0.9944918181 | R180: =RAND() -> 0.1464689542 | S180: =RAND() -> 0.4841761414
M181: 6 | O181: =RAND() -> 0.9098841443 | P181: =RAND() -> 0.6599354421 | Q181: =RAND() -> 0.2763287916 | R181: =RAND() -> 0.7397684753 | S181: =RAND() -> 0.5695711755
M183: Incremental Data w/ Process Variance | U183: Possible
N184: 1 | O184: 2 | P184: 3 | Q184: 4 | R184: 5 | S184: 6 | U184: Outcome
M185: 1
M186: 2 | S186: =GAMMAINV(S177,S168/ScaleParameter,ScaleParameter) -> 5.019278737 | U186: =SUM(N186:S186) -> 5.019278737
M187: 3 | R187: =GAMMAINV(R178,R169/ScaleParameter,ScaleParameter) -> 4.549160052 | S187: =GAMMAINV(S178,S169/ScaleParameter,ScaleParameter) -> 1.967745088 | U187: =SUM(N187:S187) -> 6.51690514
M188: 4 | Q188: =GAMMAINV(Q179,Q170/ScaleParameter,ScaleParameter) -> 36.59271539 | R188: =GAMMAINV(R179,R170/ScaleParameter,ScaleParameter) -> 5.620550368 | S188: =GAMMAINV(S179,S170/ScaleParameter,ScaleParameter) -> 2.868443899 | U188: =SUM(N188:S188) -> 45.08170966
M189: 5 | P189: =GAMMAINV(P180,P171/ScaleParameter,ScaleParameter) -> 16.58885825 | Q189: =GAMMAINV(Q180,Q171/ScaleParameter,ScaleParameter) -> 56.01498852 | R189: =GAMMAINV(R180,R171/ScaleParameter,ScaleParameter) -> 4.815251694 | S189: =GAMMAINV(S180,S171/ScaleParameter,ScaleParameter) -> 2.192006167 | U189: =SUM(N189:S189) -> 79.61110463
M190: 6 | O190: =GAMMAINV(O181,O172/ScaleParameter,ScaleParameter) -> 58.49775897 | P190: =GAMMAINV(P181,P172/ScaleParameter,ScaleParameter) -> 26.58601888 | Q190: =GAMMAINV(Q181,Q172/ScaleParameter,ScaleParameter) -> 27.07666232 | R190: =GAMMAINV(R181,R172/ScaleParameter,ScaleParameter) -> 11.24895671 | S190: =GAMMAINV(S181,S172/ScaleParameter,ScaleParameter) -> 2.655100828 | U190: =SUM(N190:S190) -> 126.0644977
U191: =SUM(U186:U190) -> 262.2934959

Sheet GLM
A1: GLM Estimation of Model Parameters | G1: rho = | H1: =Data!F55 -> 1 | J1: parameters = | K1: =Data!R113 -> 6
A2: Newton-Raphson Interation Sequence -- Iteration 1
B3: y(i) | D3: xb(i) | F3: W(i,i) | AB3: XWX | AI3: zz(i) | AK3: factor | AM3: xwx-1 | AT3: aa1(i,j) | BP3: aa2(j) | BR3: beta(j) | BT3: beta_diff = | BU3: =SUM(BT5:BT15) -> 0.2682396521 | BV3: beta_old = | BW3: =SUM(BR5:BR15) -> 1.609437912
B4: 1 | D4: 1 | F4: 1 | G4: 2 | H4: 3 | I4: 4 | J4: 5 | K4: 6 | L4: 7 | M4: 8 | N4: 9 | O4: 10 | P4: 11 | Q4: 12 | R4: 13 | S4: 14 | T4: 15 | U4: 16 | V4: 17 | W4: 18 | X4: 19 | Y4: 20 | Z4: 21 | AB4: 1 | AC4: 2 | AD4: 3 | AE4: 4 | AF4: 5 | AG4: 6 | AI4: 1 | AM4: 1 | AN4: 2 | AO4: 3 | AP4: 4 | AQ4: 5 | AR4: 6 | AT4: 1 | AU4: 2 | AV4: 3 | AW4: 4 | AX4: 5 | AY4: 6 | AZ4: 7 | BA4: 8 | BB4: 9 | BC4: 10 | BD4: 11 | BE4: 12 | BF4: 13 | BG4: 14 | BH4: 15 | BI4: 16 | BJ4: 17 | BK4: 18 | BL4: 19 | BM4: 20 | BN4: 21
A5: 1 | B5: =Data!N14 -> 95 | D5: =IF(B5<0,-LN(-B5),LN(B5)) -> 4.553876892 | F5: =IF($A5=F$4,IF($B5<0,-(EXP(-$D5)^(2-$H$1)),IF($B5=0,0,EXP($D5)^(2-$H$1))),0) -> 95 | G5: 0 | H5: 0 | I5: 0 | J5: 0 | K5: 0 | L5: 0 | M5: 0 | N5: 0 | O5: 0 | P5: =IF($A5=P$4,IF($B5<0,-(EXP(-$D5)^(2-$H$1)),IF($B5=0,0,EXP($D5)^(2-$H$1))),0) -> 0 | Q5: 0 | R5: 0 | S5: 0 | T5: 0 | U5: 0 | V5: 0 | W5: 0 | X5: 0 | Y5: 0 | Z5: 0 | AB5: =MMULT(TRANSPOSE(DesignMatrix),MMULT(F5:Z25,DesignMatrix)) -> 1120 | AC5: 435 | AD5: 195 | AE5: 105 | AF5: 25 | AG5: 5 | AI5: =IF(B5<0,D5+(B5+EXP(-D5))/-EXP(-D5),IF(B5=0,0,D5+(B5-EXP(D5))/EXP(D5))) -> 4.553876892 | AK5: =OFFSET(AA4,A5,A5) -> 1120 | AM5: =MINVERSE(AB5:AG10) -> 0.001459854015 | AN5: -0.001459854015 | AO5: 1.982541115e-19 | AP5: -3.39200394e-19 | AQ5: -1.982541115e-19 | AR5: 0 | AT5: =MMULT(AM5:AR10,TRANSPOSE(DesignMatrix)) -> 0.001459854015 | AU5: 0.001459854015 | AV5: 0.001459854015 | AW5: 0.001459854015 | AX5: 0.001459854015 | AY5: 0.001459854015 | AZ5: 0 | BA5: 0 | BB5: 0 | BC5: 0 | BD5: 0 | BE5: 1.982541115e-19 | BF5: 1.982541115e-19 | BG5: 1.982541115e-19 | BH5: 1.982541115e-19 | BI5: -1.409462824e-19 | BJ5: -1.409462824e-19 | BK5: -1.409462824e-19 | BL5: -3.39200394e-19 | BM5: -3.39200394e-19 | BN5: -3.39200394e-19 | BP5: =MMULT(F5:Z25,AI5:AI25) -> 432.6183047 | BR5: =MMULT(AT5:BN10,BP5:BP25) -> 4.743291513 | BT5: =BR5/$K$1 -> 0.7905485855
A6: 2 | B6: =Data!N15 -> 110 | D6: =IF(B6<0,-LN(-B6),LN(B6)) -> 4.700480366 | F6: 0 | G6: 110 | H6: 0 | I6: 0 | J6: 0 | K6: 0 | L6: 0 | M6: 0 | N6: 0 | O6: 0 | P6: 0 | Q6: 0 | R6: 0 | S6: 0 | T6: 0 | U6: 0 | V6: 0 | W6: 0 | X6: 0 | Y6: 0 | Z6: 0 | AB6: 435 | AC6: 435 | AD6: 195 | AE6: 105 | AF6: 25 | AG6: 5 | AI6: =IF(B6<0,D6+(B6+EXP(-D6))/-EXP(-D6),IF(B6=0,0,D6+(B6-EXP(D6))/EXP(D6))) -> 4.700480366 | AK6: =OFFSET(AA4,A6,A6) -> 435 | AM6: -0.001459854015 | AN6: 0.005626520681 | AO6: -0.004166666667 | AP6: 7.502144164e-19 | AQ6: 4.173000378e-19 | AR6: -4.173000378e-19 | AT6: -0.001459854015 | AU6: -0.001459854015 | AV6: -0.001459854015 | AW6: -0.001459854015 | AX6: -0.001459854015 | AY6: -0.001459854015 | AZ6: 0.004166666667 | BA6: 0.004166666667 | BB6: 0.004166666667 | BC6: 0.004166666667 | BD6: 0.004166666667 | BE6: 8.67361738e-19 | BF6: 8.67361738e-19 | BG6: 8.67361738e-19 | BH6: 8.67361738e-19 | BI6: 1.617576154e-18 | BJ6: 1.617576154e-18 | BK6: 1.617576154e-18 | BL6: 2.034876192e-18 | BM6: 2.034876192e-18 | BN6: 1.617576154e-18 | BP6: 517.0528402 | BR6: -0.8530518903 | BT6: -0.142175315
A7: 3 | B7: =Data!N16 -> 105 | D7: 4.65396035 | F7: 0 | G7: 0 | H7: 105 | I7: 0 | J7: 0 | K7: 0 | L7: 0 | M7: 0 | N7: 0 | O7: 0 | P7: 0 | Q7: 0 | R7: 0 | S7: 0 | T7: 0 | U7: 0 | V7: 0 | W7: 0 | X7: 0 | Y7: 0 | Z7: 0 | AB7: 195 | AC7: 195 | AD7: 195 | AE7: 105 | AF7: 25 | AG7: 5 | AI7: 4.65396035 | AK7: =OFFSET(AA4,A7,A7) -> 195 | AM7: 2.69845874e-19 | AN7: -0.004166666667 | AO7: 0.01527777778 | AP7: -0.01111111111 | AQ7: -2.579845169e-18 | AR7: 1.031938068e-18 | AT7: 2.69845874e-19 | AU7: 2.69845874e-19 | AV7: 2.69845874e-19 | AW7: 2.69845874e-19 | AX7: 2.69845874e-19 | AY7: 2.69845874e-19 | AZ7: -0.004166666667 | BA7: -0.004166666667 | BB7: -0.004166666667 | BC7: -0.004166666667 | BD7: -0.004166666667 | BE7: 0.01111111111 | BF7: 0.01111111111 | BG7: 0.01111111111 | BH7: 0.01111111111 | BI7: 0 | BJ7: 0 | BK7: 0 | BL7: -2.579845169e-18 | BM7: -2.579845169e-18 | BN7: -1.547907102e-18 | BP7: 488.6658368 | BR7: -0.7453150056 | BT7: -0.1242191676
A8: 4 | B8: =Data!N17 -> 120 | D8: 4.787491743 | F8: 0 | G8: 0 | H8: 0 | I8: 120 | J8: 0 | K8: 0 | L8: 0 | M8: 0 | N8: 0 | O8: 0 | P8: 0 | Q8: 0 | R8: 0 | S8: 0 | T8: 0 | U8: 0 | V8: 0 | W8: 0 | X8: 0 | Y8: 0 | Z8: 0 | AB8: 105 | AC8: 105 | AD8: 105 | AE8: 105 | AF8: 25 | AG8: 5 | AI8: 4.787491743 | AK8: =OFFSET(AA4,A8,A8) -> 105 | AM8: -2.409338161e-20 | AN8: 5.68603806e-19 | AO8: -0.01111111111 | AP8: 0.02361111111 | AQ8: -0.0125 | AR8: 2.2909364e-18 | AT8: -2.409338161e-20 | AU8: -2.409338161e-20 | AV8: -2.409338161e-20 | AW8: -2.409338161e-20 | AX8: -2.409338161e-20 | AY8: -2.409338161e-20 | AZ8: 5.445104244e-19 | BA8: 5.445104244e-19 | BB8: 5.445104244e-19 | BC8: 5.445104244e-19 | BD8: 5.445104244e-19 | BE8: -0.01111111111 | BF8: -0.01111111111 | BG8: -0.01111111111 | BH8: -0.01111111111 | BI8: 0.0125 | BJ8: 0.0125 | BK8: 0.0125 | BL8: -1.734723476e-18 | BM8: -1.734723476e-18 | BN8: 5.56212924e-19 | BP8: 574.4990091 | BR8: 0.1549064873 | BT8: 0.02581774789
A9: 5 | B9: =Data!N18 -> 130 | D9: 4.86753445 | F9: 0 | G9: 0 | H9: 0 | I9: 0 | J9: 130 | K9: 0 | L9: 0 | M9: 0 | N9: 0 | O9: 0 | P9: 0 | Q9: 0 | R9: 0 | S9: 0 | T9: 0 | U9: 0 | V9: 0 | W9: 0 | X9: 0 | Y9: 0 | Z9: 0 | AB9: 25 | AC9: 25 | AD9: 25 | AE9: 25 | AF9: 25 | AG9: 5 | AI9: 4.86753445 | AK9: =OFFSET(AA4,A9,A9) -> 25 | AM9: -7.583349156e-36 | AN9: 1.734723476e-19 | AO9: -6.938893904e-19 | AP9: -0.0125 | AQ9: 0.0625 | AR9: -0.05 | AT9: -7.583349156e-36 | AU9: -7.583349156e-36 | AV9: -7.583349156e-36 | AW9: -7.583349156e-36 | AX9: -7.583349156e-36 | AY9: -7.583349156e-36 | AZ9: 1.734723476e-19 | BA9: 1.734723476e-19 | BB9: 1.734723476e-19 | BC9: 1.734723476e-19 | BD9: 1.734723476e-19 | BE9: -5.204170428e-19 | BF9: -5.204170428e-19 | BG9: -5.204170428e-19 | BH9: -5.204170428e-19 | BI9: -0.0125 | BJ9: -0.0125 | BK9: -0.0125 | BL9: 0.05 | BM9: 0.05 | BN9: 0 | BP9: 632.7794786 | BR9: -0.8664339757 | BT9: -0.1444056626
A10: 6 | B10: =Data!N19 -> 125 | D10: 4.828313737 | F10: 0 | G10: 0 | H10: 0 | I10: 0 | J10: 0 | K10: 125 | L10: 0 | M10: 0 | N10: 0 | O10: 0 | P10: 0 | Q10: 0 | R10: 0 | S10: 0 | T10: 0 | U10: 0 | V10: 0 | W10: 0 | X10: 0 | Y10: 0 | Z10: 0 | AB10: 5 | AC10: 5 | AD10: 5 | AE10: 5 | AF10: 5 | AG10: 5 | AI10: 4.828313737 | AK10: =OFFSET(AA4,A10,A10) -> 5 | AM10: 4.33680869e-20 | AN10: -7.806255642e-19 | AO10: 3.469446952e-18 | AP10: -1.734723476e-18 | AQ10: -0.05 | AR10: 0.25 | AT10: 4.33680869e-20 | AU10: 4.33680869e-20 | AV10: 4.33680869e-20 | AW10: 4.33680869e-20 | AX10: 4.33680869e-20 | AY10: 4.33680869e-20 | AZ10: -7.372574773e-19 | BA10: -7.372574773e-19 | BB10: -7.372574773e-19 | BC10: -7.372574773e-19 | BD10: -7.372574773e-19 | BE10: 2.732189475e-18 | BF10: 2.732189475e-18 | BG10: 2.732189475e-18 | BH10: 2.732189475e-18 | BI10: 9.974659987e-19 | BJ10: 9.974659987e-19 | BK10: 9.974659987e-19 | BL10: -0.05 | BM10: -0.05 | BN10: 0.2 | BP10: 603.5392172 | BR10: -0.8239592165 | BT10: -0.1373265361
A11: 7 | B11: =Data!O14 -> 55 | D11: 4.007333185 | F11: 0 | G11: 0 | H11: 0 | I11: 0 | J11: 0 | K11: 0 | L11: 55 | M11: 0 | N11: 0 | O11: 0 | P11: 0 | Q11: 0 | R11: 0 | S11: 0 | T11: 0 | U11: 0 | V11: 0 | W11: 0 | X11: 0 | Y11: 0 | Z11: 0 | AI11: 4.007333185 | BP11: 220.4033252
A12: 8 | B12: =Data!O15 -> 50 | D12: 3.912023005 | F12: 0 | G12: 0 | H12: 0 | I12: 0 | J12: 0 | K12: 0 | L12: 0 | M12: 50 | N12: 0 | O12: 0 | P12: 0 | Q12: 0 | R12: 0 | S12: 0 | T12: 0 | U12: 0 | V12: 0 | W12: 0 | X12: 0 | Y12: 0 | Z12: 0 | AI12: 3.912023005 | BP12: 195.6011503
A13: 9 | B13: =Data!O16 -> 60 | D13: 4.094344562 | F13: 0 | G13: 0 | H13: 0 | I13: 0 | J13: 0 | K13: 0 | L13: 0 | M13: 0 | N13: 60 | O13: 0 | P13: 0 | Q13: 0 | R13: 0 | S13: 0 | T13: 0 | U13: 0 | V13: 0 | W13: 0 | X13: 0 | Y13: 0 | Z13: 0 | AI13: 4.094344562 | BP13: 245.6606737
A14: 10 | B14: =Data!O17 -> 35 | D14: 3.555348061 | F14: 0 | G14: 0 | H14: 0 | I14: 0 | J14: 0 | K14: 0 | L14: 0 | M14: 0 | N14: 0 | O14: 35 | P14: 0 | Q14: 0 | R14: 0 | S14: 0 | T14: 0 | U14: 0 | V14: 0 | W14: 0 | X14: 0 | Y14: 0 | Z14: 0 | AI14: 3.555348061 | BP14: 124.4371822
A15: 11 | B15: =Data!O18 -> 40 | D15: 3.688879454 | F15: =IF($A15=F$4,IF($B15<0,-(EXP(-$D15)^(2-$H$1)),IF($B15=0,0,EXP($D15)^(2-$H$1))),0) -> 0 | G15: 0 | H15: 0 | I15: 0 | J15: 0 | K15: 0 | L15: 0 | M15: 0 | N15: 0 | O15: 0 | P15: =IF($A15=P$4,IF($B15<0,-(EXP(-$D15)^(2-$H$1)),IF($B15=0,0,EXP($D15)^(2-$H$1))),0) -> 40 | Q15: 0 | R15: 0 | S15: 0 | T15: 0 | U15: 0 | V15: 0 | W15: 0 | X15: 0 | Y15: 0 | Z15: 0 | AI15: 3.688879454 | BP15: 147.5551782
A16: 12 | B16: =Data!P14 -> 20 | D16: 2.995732274 | F16: 0 | G16: 0 | H16: 0 | I16: 0 | J16: 0 | K16: 0 | L16: 0 | M16: 0 | N16: 0 | O16: 0 | P16: 0 | Q16: 20 | R16: 0 | S16: 0 | T16: 0 | U16: 0 | V16: 0 | W16: 0 | X16: 0 | Y16: 0 | Z16: 0 | AI16: 2.995732274 | BP16: 59.91464547
A17: 13 | B17: =Data!P15 -> 15 | D17: 2.708050201 | F17: 0 | G17: 0 | H17: 0 | I17: 0 | J17: 0 | K17: 0 | L17: 0 | M17: 0 | N17: 0 | O17: 0 | P17: 0 | Q17: 0 | R17: 15 | S17: 0 | T17: 0 | U17: 0 | V17: 0 | W17: 0 | X17: 0 | Y17: 0 | Z17: 0 | AI17: 2.708050201 | BP17: 40.62075302
A18: 14 | B18: =Data!P16 -> 25 | D18: 3.218875825 | F18: 0 | G18: 0 | H18: 0 | I18: 0 | J18: 0 | K18: 0 | L18: 0 | M18: 0 | N18: 0 | O18: 0 | P18: 0 | Q18: 0 | R18: 0 | S18: 25 | T18: 0 | U18: 0 | V18: 0 | W18: 0 | X18: 0 | Y18: 0 | Z18: 0 | AI18: 3.218875825 | BP18: 80.47189562
A19: 15 | B19: =Data!P17 -> 30 | D19: 3.401197382 | F19: 0 | G19: 0 | H19: 0 | I19: 0 | J19: 0 | K19: 0 | L19: 0 | M19: 0 | N19: 0 | O19: 0 | P19: 0 | Q19: 0 | R19: 0 | S19: 0 | T19: 30 | U19: 0 | V19: 0 | W19: 0 | X19: 0 | Y19: 0 | Z19: 0 | AI19: 3.401197382 | BP19: 102.0359214
A20: 16 | B20: =Data!Q14 -> 30 | D20: 3.401197382 | F20: 0 | G20: 0 | H20: 0 | I20: 0 | J20: 0 | K20: 0 | L20: 0 | M20: 0 | N20: 0 | O20: 0 | P20: 0 | Q20: 0 | R20: 0 | S20: 0 | T20: 0 | U20: 30 | V20: 0 | W20: 0 | X20: 0 | Y20: 0 | Z20: 0 | AI20: 3.401197382 | BP20: 102.0359214
A21: 17 | B21: =Data!Q15 -> 30 | D21: 3.401197382 | F21: 0 | G21: 0 | H21: 0 | I21: 0 | J21: 0 | K21: 0 | L21: 0 | M21: 0 | N21: 0 | O21: 0 | P21: 0 | Q21: 0 | R21: 0 | S21: 0 | T21: 0 | U21: 0 | V21: 30 | W21: 0 | X21: 0 | Y21: 0 | Z21: 0 | AI21: 3.401197382 | BP21: 102.0359214
A22: 18 | B22: =Data!Q16 -> 20 | D22: 2.995732274 | F22: 0 | G22: 0 | H22: 0 | I22: 0 | J22: 0 | K22: 0 | L22: 0 | M22: 0 | N22: 0 | O22: 0 | P22: 0 | Q22: 0 | R22: 0 | S22: 0 | T22: 0 | U22: 0 | V22: 0 | W22: 20 | X22: 0 | Y22: 0 | Z22: 0 | AI22: 2.995732274 | BP22: 59.91464547
A23: 19 | B23: =Data!R14 -> 15 | D23: 2.708050201 | F23: 0 | G23: 0 | H23: 0 | I23: 0 | J23: 0 | K23: 0 | L23: 0 | M23: 0 | N23: 0 | O23: 0 | P23: 0 | Q23: 0 | R23: 0 | S23: 0 | T23: 0 | U23: 0 | V23: 0 | W23: 0 | X23: 15 | Y23: 0 | Z23: 0 | AI23: 2.708050201 | BP23: 40.62075302
A24: 20 | B24: =Data!R15 -> 5 | D24: 1.609437912 | F24: 0 | G24: 0 | H24: 0 | I24: 0 | J24: 0 | K24: 0 | L24: 0 | M24: 0 | N24: 0 | O24: 0 | P24: 0 | Q24: 0 | R24: 0 | S24: 0 | T24: 0 | U24: 0 | V24: 0 | W24: 0 | X24: 0 | Y24: 5 | Z24: 0 | AI24: 1.609437912 | BP24: 8.047189562
A25: 21 | B25: =Data!S14 -> 5 | D25: 1.609437912 | F25: 0 | G25: 0 | H25: 0 | I25: 0 | J25: 0 | K25: 0 | L25: 0 | M25: 0 | N25: 0 | O25: 0 | P25: 0 | Q25: 0 | R25: 0 | S25: 0 | T25: 0 | U25: 0 | V25: 0 | W25: 0 | X25: 0 | Y25: 0 | Z25: 5 | AI25: 1.609437912 | BP25: 8.047189562
A27: Newton-Raphson Interation Sequence -- Iteration 2
B28: y(i) | D28: xb(i) | F28: W(i,i) | AB28: XWX | AI28: zz(i) | AK28: factor | AM28: xwx-1 | AT28: aa1(i,j) | BP28: aa2(j) | BR28: beta(j) | BT28: beta_diff = | BU28: =SUM(BT30:BT40) -> -1.554312234e-15 | BV28: beta_old = | BW28: =SUM(BR30:BR40) -> 1.609437912
B29: 1 | D29: 1 | F29: 1 | G29: 2 | H29: 3 | I29: 4 | J29: 5 | K29: 6 | L29: 7 | M29: 8 | N29: 9 | O29: 10 | P29: 11 | Q29: 12 | R29: 13 | S29: 14 | T29: 15 | U29: 16 | V29: 17 | W29: 18 | X29: 19 | Y29: 20 | Z29: 21 | AB29: 1 | AC29: 2 | AD29: 3 | AE29: 4 | AF29: 5 | AG29: 6 | AI29: 1 | AM29: 1 | AN29: 2 | AO29: 3 | AP29: 4 | AQ29: 5 | AR29: 6 | AT29: 1 | AU29: 2 | AV29: 3 | AW29: 4 | AX29: 5 | AY29: 6 | AZ29: 7 | BA29: 8 | BB29: 9 | BC29: 10 | BD29: 11 | BE29: 12 | BF29: 13 | BG29: 14 | BH29: 15 | BI29: 16 | BJ29: 17 | BK29: 18 | BL29: 19 | BM29: 20 | BN29: 21
A30: 1 | B30: =B5 -> 95 | D30: =MMULT(DesignMatrix,BR5:BR10) -> 4.743291513 | F30: =IF($A30=F$4,IF($B30<0,-(EXP(-$D30)^(2-$H$1)),IF($B30=0,0,EXP($D30)^(2-$H$1))),0) -> 114.8114839 | G30: 0 | H30: 0 | I30: 0 | J30: 0 | K30: 0 | L30: 0 | M30: 0 | N30: 0 | O30: 0 | P30: =IF($A30=P$4,IF($B30<0,-(EXP(-$D30)^(2-$H$1)),IF($B30=0,0,EXP($D30)^(2-$H$1))),0) -> 0 | Q30: 0 | R30: 0 | S30: 0 | T30: 0 | U30: 0 | V30: 0 | W30: 0 | X30: 0 | Y30: 0 | Z30: 0 | AB30: =MMULT(TRANSPOSE(DesignMatrix),MMULT(F30:Z50,DesignMatrix)) -> 1135.472896 | AC30: 446.6039921 | AD30: 201.9909516 | AE30: 109.1192509 | AF30: 27.79507057 | AG30: 5 | AI30: =IF(B30<0,D30+(B30+EXP(-D30))/-EXP(-D30),IF(B30=0,0,D30+(B30-EXP(D30))/EXP(D30))) -> 4.570734873 | AK30: =OFFSET(AA29,A30,A30) -> 1135.472896 | AM30: =MINVERSE(AB30:AG35) -> 0.001451655017 | AN30: -0.001451655017 | AO30: -3.58306485e-19 | AP30: 2.709744793e-19 | AQ30: 2.444406707e-19 | AR30: -1.955525365e-19 | AT30: =MMULT(AM30:AR35,TRANSPOSE(DesignMatrix)) -> 0.001451655017 | AU30: 0.001451655017 | AV30: 0.001451655017 | AW30: 0.001451655017 | AX30: 0.001451655017 | AY30: 0.001451655017 | AZ30: 4.33680869e-19 | BA30: 4.33680869e-19 | BB30: 4.33680869e-19 | BC30: 4.33680869e-19 | BD30: 4.33680869e-19 | BE30: 7.537438396e-20 | BF30: 7.537438396e-20 | BG30: 7.537438396e-20 | BH30: 7.537438396e-20 | BI30: 3.463488633e-19 | BJ30: 3.463488633e-19 | BK30: 3.463488633e-19 | BL30: 5.907895339e-19 | BM30: 5.907895339e-19 | BN30: 3.952369974e-19 | BP30: =MMULT(F30:Z50,AI30:AI50) -> 524.7728535 | BR30: =MMULT(AT30:BN35,BP30:BP50) -> 4.7376752 | BT30: =BR30-BW3/$K$1 -> 4.469435548
A31: 2 | B31: =B6 -> 110 | D31: 4.743291513 | F31: 0 | G31: 114.8114839 | H31: 0 | I31: 0 | J31: 0 | K31: 0 | L31: 0 | M31: 0 | N31: 0 | O31: 0 | P31: 0 | Q31: 0 | R31: 0 | S31: 0 | T31: 0 | U31: 0 | V31: 0 | W31: 0 | X31: 0 | Y31: 0 | Z31: 0 | AB31: 446.6039921 | AC31: 446.6039921 | AD31: 201.9909516 | AE31: 109.1192509 | AF31: 27.79507057 | AG31: 5 | AI31: =IF(B31<0,D31+(B31+EXP(-D31))/-EXP(-D31),IF(B31=0,0,D31+(B31-EXP(D31))/EXP(D31))) -> 4.701383824 | AK31: =OFFSET(AA29,A31,A31) -> 446.6039921 | AM31: -0.001451655017 | AN31: 0.005539744507 | AO31: -0.00408808949 | AP31: 3.529233736e-19 | AQ31: -7.170771255e-19 | AR31: 8.195167149e-19 | AT31: -0.001451655017 | AU31: -0.001451655017 | AV31: -0.001451655017 | AW31: -0.001451655017 | AX31: -0.001451655017 | AY31: -0.001451655017 | AZ31: 0.00408808949 | BA31: 0.00408808949 | BB31: 0.00408808949 | BC31: 0.00408808949 | BD31: 0.00408808949 | BE31: -8.67361738e-19 | BF31: -8.67361738e-19 | BG31: -8.67361738e-19 | BH31: -8.67361738e-19 | BI31: -5.144383644e-19 | BJ31: -5.144383644e-19 | BK31: -5.144383644e-19 | BL31: -1.23151549e-18 | BM31: -1.23151549e-18 | BN31: -4.11998775e-19 | BP31: 539.7728535 | BR31: -0.8662940992 | BT31: =BR31-BW3/$K$1 -> -1.134533751
A32: 3 | B32: 105 | D32: 4.743291513 | F32: 0 | G32: 0 | H32: 114.8114839 | I32: 0 | J32: 0 | K32: 0 | L32: 0 | M32: 0 | N32: 0 | O32: 0 | P32: 0 | Q32: 0 | R32: 0 | S32: 0 | T32: 0 | U32: 0 | V32: 0 | W32: 0 | X32: 0 | Y32: 0 | Z32: 0 | AB32: 201.9909516 | AC32: 201.9909516 | AD32: 201.9909516 | AE32: 109.1192509 | AF32: 27.79507057 | AG32: 5 | AI32: 4.657834174 | AK32: =OFFSET(AA29,A32,A32) -> 201.9909516 | AM32: 1.494296723e-19 | AN32: -0.00408808949 | AO32: 0.01485563216 | AP32: -0.01076754267 | AQ32: -3.763159077e-19 | AR32: -1.003509087e-18 | AT32: 1.494296723e-19 | AU32: 1.494296723e-19 | AV32: 1.494296723e-19 | AW32: 1.494296723e-19 | AX32: 1.494296723e-19 | AY32: 1.494296723e-19 | AZ32: -0.00408808949 | BA32: -0.00408808949 | BB32: -0.00408808949 | BC32: -0.00408808949 | BD32: -0.00408808949 | BE32: 0.01076754267 | BF32: 0.01076754267 | BG32: 0.01076754267 | BH32: 0.01076754267 | BI32: 1.734723476e-18 | BJ32: 1.734723476e-18 | BK32: 1.734723476e-18 | BL32: 1.358407568e-18 | BM32: 1.358407568e-18 | BN32: 3.548984811e-19 | BP32: 534.7728535 | BR32: -0.7573776432 | BT32: =BR32-BW3/$K$1 -> -1.025617295
A33: 4 | B33: 120 | D33: 4.743291513 | F33: 0 | G33: 0 | H33: 0 | I33: 114.8114839 | J33: 0 | K33: 0 | L33: 0 | M33: 0 | N33: 0 | O33: 0 | P33: 0 | Q33: 0 | R33: 0 | S33: 0 | T33: 0 | U33: 0 | V33: 0 | W33: 0 | X33: 0 | Y33: 0 | Z33: 0 | AB33: 109.1192509 | AC33: 109.1192509 | AD33: 109.1192509 | AE33: 109.1192509 | AF33: 27.79507057 | AG33: 5 | AI33: 4.788483125 | AK33: =OFFSET(AA29,A33,A33) -> 109.1192509 | AM33: -3.627393509e-19 | AN33: 1.920464491e-18 | AO33: -0.01076754267 | AP33: 0.02306400844 | AQ33: -0.01229646577 | AR33: 2.212877487e-18 | AT33: -3.627393509e-19 | AU33: -3.627393509e-19 | AV33: -3.627393509e-19 | AW33: -3.627393509e-19 | AX33: -3.627393509e-19 | AY33: -3.627393509e-19 | AZ33: 1.55772514e-18 | BA33: 1.55772514e-18 | BB33: 1.55772514e-18 | BC33: 1.55772514e-18 | BD33: 1.55772514e-18 | BE33: -0.01076754267 | BF33: -0.01076754267 | BG33: -0.01076754267 | BH33: -0.01076754267 | BI33: 0.01229646577 | BJ33: 0.01229646577 | BK33: 0.01229646577 | BL33: 0 | BM33: 0 | BN33: 2.212877487e-18 | BP33: 549.7728535 | BR33: 0.1695449092 | BT33: =BR33-BW3/$K$1 -> -0.09869474286
A34: 5 | B34: 130 | D34: 4.743291513 | F34: 0 | G34: 0 | H34: 0 | I34: 0 | J34: 114.8114839 | K34: 0 | L34: 0 | M34: 0 | N34: 0 | O34: 0 | P34: 0 | Q34: 0 | R34: 0 | S34: 0 | T34: 0 | U34: 0 | V34: 0 | W34: 0 | X34: 0 | Y34: 0 | Z34: 0 | AB34: 27.79507057 | AC34: 27.79507057 | AD34: 27.79507057 | AE34: 27.79507057 | AF34: 27.79507057 | AG34: 5 | AI34: 4.875582426 | AK34: =OFFSET(AA29,A34,A34) -> 27.79507057 | AM34: 3.655113109e-19 | AN34: -1.099987273e-18 | AO34: -9.501020153e-19 | AP34: -0.01229646577 | AQ34: 0.05616559954 | AR34: -0.04386913377 | AT34: 3.655113109e-19 | AU34: 3.655113109e-19 | AV34: 3.655113109e-19 | AW34: 3.655113109e-19 | AX34: 3.655113109e-19 | AY34: 3.655113109e-19 | AZ34: -7.344759621e-19 | BA34: -7.344759621e-19 | BB34: -7.344759621e-19 | BC34: -7.344759621e-19 | BD34: -7.344759621e-19 | BE34: -1.684577977e-18 | BF34: -1.684577977e-18 | BG34: -1.684577977e-18 | BH34: -1.684577977e-18 | BI34: -0.01229646577 | BJ34: -0.01229646577 | BK34: -0.01229646577 | BL34: 0.04386913377 | BM34: 0.04386913377 | BN34: 0 | BP34: 559.7728535 | BR34: -0.9727685624 | BT34: =BR34-BW3/$K$1 -> -1.241008214
A35: 6 | B35: 125 | D35: 4.743291513 | F35: 0 | G35: 0 | H35: 0 | I35: 0 | J35: 0 | K35: 114.8114839 | L35: 0 | M35: 0 | N35: 0 | O35: 0 | P35: 0 | Q35: 0 | R35: 0 | S35: 0 | T35: 0 | U35: 0 | V35: 0 | W35: 0 | X35: 0 | Y35: 0 | Z35: 0 | AB35: 5 | AC35: 5 | AD35: 5 | AE35: 5 | AF35: 5 | AG35: 5 | AI35: 4.832032776 | AK35: =OFFSET(AA29,A35,A35) -> 5 | AM35: -1.522016324e-19 | AN35: 4.230455114e-19 | AO35: -2.166751032e-18 | AP35: 5.076546137e-18 | AQ35: -0.04386913377 | AR35: 0.2438691338 | AT35: -1.522016324e-19 | AU35: -1.522016324e-19 | AV35: -1.522016324e-19 | AW35: -1.522016324e-19 | AX35: -1.522016324e-19 | AY35: -1.522016324e-19 | AZ35: 2.70843879e-19 | BA35: 2.70843879e-19 | BB35: 2.70843879e-19 | BC35: 2.70843879e-19 | BD35: 2.70843879e-19 | BE35: -1.895907153e-18 | BF35: -1.895907153e-18 | BG35: -1.895907153e-18 | BH35: -1.895907153e-18 | BI35: 3.180638984e-18 | BJ35: 3.180638984e-18 | BK35: 3.180638984e-18 | BL35: -0.04386913377 | BM35: -0.04386913377 | BN35: 0.2 | BP35: 554.7728535 | BR35: -0.7013418918 | BT35: =BR35-BW3/$K$1 -> -0.9695815439
A36: 7 | B36: 55 | D36: 3.890239623 | F36: 0 | G36: 0 | H36: 0 | I36: 0 | J36: 0 | K36: 0 | L36: 48.9226081 | M36: 0 | N36: 0 | O36: 0 | P36: 0 | Q36: 0 | R36: 0 | S36: 0 | T36: 0 | U36: 0 | V36: 0 | W36: 0 | X36: 0 | Y36: 0 | Z36: 0 | AI36: 4.014464233 | BP36: 196.3980604
A37: 8 | B37: 50 | D37: 3.890239623 | F37: 0 | G37: 0 | H37: 0 | I37: 0 | J37: 0 | K37: 0 | L37: 0 | M37: 48.9226081 | N37: 0 | O37: 0 | P37: 0 | Q37: 0 | R37: 0 | S37: 0 | T37: 0 | U37: 0 | V37: 0 | W37: 0 | X37: 0 | Y37: 0 | Z37: 0 | AI37: 3.912261995 | BP37: 191.3980604
A38: 9 | B38: 60 | D38: 3.890239623 | F38: 0 | G38: 0 | H38: 0 | I38: 0 | J38: 0 | K38: 0 | L38: 0 | M38: 0 | N38: 48.9226081 | O38: 0 | P38: 0 | Q38: 0 | R38: 0 | S38: 0 | T38: 0 | U38: 0 | V38: 0 | W38: 0 | X38: 0 | Y38: 0 | Z38: 0 | AI38: 4.11666647 | BP38: 201.3980604
A39: 10 | B39: 35 | D39: 3.890239623 | F39: 0 | G39: 0 | H39: 0 | I39: 0 | J39: 0 | K39: 0 | L39: 0 | M39: 0 | N39: 0 | O39: 48.9226081 | P39: 0 | Q39: 0 | R39: 0 | S39: 0 | T39: 0 | U39: 0 | V39: 0 | W39: 0 | X39: 0 | Y39: 0 | Z39: 0 | AI39: 3.605655284 | BP39: 176.3980604
A40: 11 | B40: 40 | D40: 3.890239623 | F40: =IF($A40=F$4,IF($B40<0,-(EXP(-$D40)^(2-$H$1)),IF($B40=0,0,EXP($D40)^(2-$H$1))),0) -> 0 | G40: 0 | H40: 0 | I40: 0 | J40: 0 | K40: 0 | L40: 0 | M40: 0 | N40: 0 | O40: 0 | P40: =IF($A40=P$4,IF($B40<0,-(EXP(-$D40)^(2-$H$1)),IF($B40=0,0,EXP($D40)^(2-$H$1))),0) -> 48.9226081 | Q40: 0 | R40: 0 | S40: 0 | T40: 0 | U40: 0 | V40: 0 | W40: 0 | X40: 0 | Y40: 0 | Z40: 0 | AI40: 3.707857521 | BP40: 181.3980604
A41: 12 | B41: 20 | D41: 3.144924617 | F41: 0 | G41: 0 | H41: 0 | I41: 0 | J41: 0 | K41: 0 | L41: 0 | M41: 0 | N41: 0 | O41: 0 | P41: 0 | Q41: 23.21792518 | R41: 0 | S41: 0 | T41: 0 | U41: 0 | V41: 0 | W41: 0 | X41: 0 | Y41: 0 | Z41: 0 | AI41: 3.006328031 | BP41: 69.80069928
A42: 13 | B42: 15 | D42: 3.144924617 | F42: 0 | G42: 0 | H42: 0 | I42: 0 | J42: 0 | K42: 0 | L42: 0 | M42: 0 | N42: 0 | O42: 0 | P42: 0 | Q42: 0 | R42: 23.21792518 | S42: 0 | T42: 0 | U42: 0 | V42: 0 | W42: 0 | X42: 0 | Y42: 0 | Z42: 0 | AI42: 2.790977177 | BP42: 64.80069928
A43: 14 | B43: 25 | D43: 3.144924617 | F43: 0 | G43: 0 | H43: 0 | I43: 0 | J43: 0 | K43: 0 | L43: 0 | M43: 0 | N43: 0 | O43: 0 | P43: 0 | Q43: 0 | R43: 0 | S43: 23.21792518 | T43: 0 | U43: 0 | V43: 0 | W43: 0 | X43: 0 | Y43: 0 | Z43: 0 | AI43: 3.221678884 | BP43: 74.80069928
A44: 15 | B44: 30 | D44: 3.144924617 | F44: 0 | G44: 0 | H44: 0 | I44: 0 | J44: 0 | K44: 0 | L44: 0 | M44: 0 | N44: 0 | O44: 0 | P44: 0 | Q44: 0 | R44: 0 | S44: 0 | T44: 23.21792518 | U44: 0 | V44: 0 | W44: 0 | X44: 0 | Y44: 0 | Z44: 0 | AI44: 3.437029737 | BP44: 79.80069928
A45: 16 | B45: 30 | D45: 3.299831105 | F45: 0 | G45: 0 | H45: 0 | I45: 0 | J45: 0 | K45: 0 | L45: 0 | M45: 0 | N45: 0 | O45: 0 | P45: 0 | Q45: 0 | R45: 0 | S45: 0 | T45: 0 | U45: 27.10806011 | V45: 0 | W45: 0 | X45: 0 | Y45: 0 | Z45: 0 | AI45: 3.406513024 | BP45: 92.34395982
A46: 17 | B46: 30 | D46: 3.299831105 | F46: 0 | G46: 0 | H46: 0 | I46: 0 | J46: 0 | K46: 0 | L46: 0 | M46: 0 | N46: 0 | O46: 0 | P46: 0 | Q46: 0 | R46: 0 | S46: 0 | T46: 0 | U46: 0 | V46: 27.10806011 | W46: 0 | X46: 0 | Y46: 0 | Z46: 0 | AI46: 3.406513024 | BP46: 92.34395982
A47: 18 | B47: 20 | D47: 3.299831105 | F47: 0 | G47: 0 | H47: 0 | I47: 0 | J47: 0 | K47: 0 | L47: 0 | M47: 0 | N47: 0 | O47: 0 | P47: 0 | Q47: 0 | R47: 0 | S47: 0 | T47: 0 | U47: 0 | V47: 0 | W47: 27.10806011 | X47: 0 | Y47: 0 | Z47: 0 | AI47: 3.037619051 | BP47: 82.34395982
A48: 19 | B48: 15 | D48: 2.433397129 | F48: 0 | G48: 0 | H48: 0 | I48: 0 | J48: 0 | K48: 0 | L48: 0 | M48: 0 | N48: 0 | O48: 0 | P48: 0 | Q48: 0 | R48: 0 | S48: 0 | T48: 0 | U48: 0 | V48: 0 | W48: 0 | X48: 11.39753528 | Y48: 0 | Z48: 0 | AI48: 2.749471142 | BP48: 31.33719435
A49: 20 | B49: 5 | D49: 2.433397129 | F49: 0 | G49: 0 | H49: 0 | I49: 0 | J49: 0 | K49: 0 | L49: 0 | M49: 0 | N49: 0 | O49: 0 | P49: 0 | Q49: 0 | R49: 0 | S49: 0 | T49: 0 | U49: 0 | V49: 0 | W49: 0 | X49: 0 | Y49: 11.39753528 | Z49: 0 | AI49: 1.872088467 | BP49: 21.33719435
A50: 21 | B50: 5 | D50: 1.609437912 | F50: 0 | G50: 0 | H50: 0 | I50: 0 | J50: 0 | K50: 0 | L50: 0 | M50: 0 | N50: 0 | O50: 0 | P50: 0 | Q50: 0 | R50: 0 | S50: 0 | T50: 0 | U50: 0 | V50: 0 | W50: 0 | X50: 0 | Y50: 0 | Z50: 5 | AI50: 1.609437912 | BP50: 8.047189562
A52: Newton-Raphson Interation Sequence -- Iteration 3
B53: y(i) | D53: xb(i) | F53: W(i,i) | AB53: XWX | AI53: zz(i) | AK53: factor | AM53: xwx-1 | AT53: aa1(i,j) | BP53: aa2(j) | BR53: beta(j) | BT53: beta_diff = | BU53: =SUM(BT55:BT65) -> 3.774758284e-15 | BV53: beta_old = | BW53: =SUM(BR55:BR65) -> 1.609437912
B54: 1 | D54: 1 | F54: 1 | G54: 2 | H54: 3 | I54: 4 | J54: 5 | K54: 6 | L54: 7 | M54: 8 | N54: 9 | O54: 10 | P54: 11 | Q54: 12 | R54: 13 | S54: 14 | T54: 15 | U54: 16 | V54: 17 | W54: 18 | X54: 19 | Y54: 20 | Z54: 21 | AB54: 1 | AC54: 2 | AD54: 3 | AE54: 4 | AF54: 5 | AG54: 6 | AI54: 1 | AM54: 1 | AN54: 2 | AO54: 3 | AP54: 4 | AQ54: 5 | AR54: 6 | AT54: 1 | AU54: 2 | AV54: 3 | AW54: 4 | AX54: 5 | AY54: 6 | AZ54: 7 | BA54: 8 | BB54: 9 | BC54: 10 | BD54: 11 | BE54: 12 | BF54: 13 | BG54: 14 | BH54: 15 | BI54: 16 | BJ54: 17 | BK54: 18 | BL54: 19 | BM54: 20 | BN54: 21
A55: 1 | B55: =B30 -> 95 | D55: =MMULT(DesignMatrix,BR30:BR35) -> 4.7376752 | F55: =IF($A55=F$4,IF($B55<0,-(EXP(-$D55)^(2-$H$1)),IF($B55=0,0,EXP($D55)^(2-$H$1))),0) -> 114.168474 | G55: 0 | H55: 0 | I55: 0 | J55: 0 | K55: 0 | L55: 0 | M55: 0 | N55: 0 | O55: 0 | P55: =IF($A55=P$4,IF($B55<0,-(EXP(-$D55)^(2-$H$1)),IF($B55=0,0,EXP($D55)^(2-$H$1))),0) -> 0 | Q55: 0 | R55: 0 | S55: 0 | T55: 0 | U55: 0 | V55: 0 | W55: 0 | X55: 0 | Y55: 0 | Z55: 0 | AB55: =MMULT(TRANSPOSE(DesignMatrix),MMULT(F55:Z75,DesignMatrix)) -> 1120.273304 | AC55: 435.2624594 | AD55: 195.219234 | AE55: 105.17529 | AF55: 25.1645676 | AG55: 5 | AI55: =IF(B55<0,D55+(B55+EXP(-D55))/-EXP(-D55),IF(B55=0,0,D55+(B55-EXP(D55))/EXP(D55))) -> 4.569778815 | AK55: =OFFSET(AA54,A55,A55) -> 1120.273304 | AM55: =MINVERSE(AB55:AG60) -> 0.001459830904 | AN55: -0.001459830904 | AO55: 6.513610333e-20 | AP55: 2.318932322e-20 | AQ55: -2.229814633e-19 | AR55: 0 | AT55: =MMULT(AM55:AR60,TRANSPOSE(DesignMatrix)) -> 0.001459830904 | AU55: 0.001459830904 | AV55: 0.001459830904 | AW55: 0.001459830904 | AX55: 0.001459830904 | AY55: 0.001459830904 | AZ55: 0 | BA55: 0 | BB55: 0 | BC55: 0 | BD55: 0 | BE55: 6.513610333e-20 | BF55: 6.513610333e-20 | BG55: 6.513610333e-20 | BH55: 6.513610333e-20 | BI55: 8.832542655e-20 | BJ55: 8.832542655e-20 | BK55: 8.832542655e-20 | BL55: -1.346560368e-19 | BM55: -1.346560368e-19 | BN55: -1.346560368e-19 | BP55: =MMULT(F55:Z75,AI55:AI75) -> 521.724674 | BR55: =MMULT(AT55:BN60,BP55:BP75) -> 4.737659369 | BT55: =BR55-BW28/$K$1 -> 4.469419717
A56: 2 | B56: =B31 -> 110 | D56: 4.7376752 | F56: 0 | G56: 114.168474 | H56: 0 | I56: 0 | J56: 0 | K56: 0 | L56: 0 | M56: 0 | N56: 0 | O56: 0 | P56: 0 | Q56: 0 | R56: 0 | S56: 0 | T56: 0 | U56: 0 | V56: 0 | W56: 0 | X56: 0 | Y56: 0 | Z56: 0 | AB56: 435.2624594 | AC56: 435.2624594 | AD56: 195.219234 | AE56: 105.17529 | AF56: 25.1645676 | AG56: 5 | AI56: =IF(B56<0,D56+(B56+EXP(-D56))/-EXP(-D56),IF(B56=0,0,D56+(B56-EXP(D56))/EXP(D56))) -> 4.701163597 | AK56: =OFFSET(AA54,A56,A56) -> 435.2624594 | AM56: -0.001459830904 | AN56: 0.005625747265 | AO56: -0.004165916361 | AP56: -4.617450657e-19 | AQ56: 5.21429468e-19 | AR56: 0 | AT56: -0.001459830904 | AU56: -0.001459830904 | AV56: -0.001459830904 | AW56: -0.001459830904 | AX56: -0.001459830904 | AY56: -0.001459830904 | AZ56: 0.004165916361 | BA56: 0.004165916361 | BB56: 0.004165916361 | BC56: 0.004165916361 | BD56: 0.004165916361 | BE56: 0 | BF56: 0 | BG56: 0 | BH56: 0 | BI56: -4.617450657e-19 | BJ56: -4.617450657e-19 | BK56: -4.617450657e-19 | BL56: 5.968440228e-20 | BM56: 5.968440228e-20 | BN56: 5.968440228e-20 | BP56: 536.724674 | BR56: -0.866458342 | BT56: =BR56-BW28/$K$1 -> -1.134697994
A57: 3 | B57: 105 | D57: 4.7376752 | F57: 0 | G57: 0 | H57: 114.168474 | I57: 0 | J57: 0 | K57: 0 | L57: 0 | M57: 0 | N57: 0 | O57: 0 | P57: 0 | Q57: 0 | R57: 0 | S57: 0 | T57: 0 | U57: 0 | V57: 0 | W57: 0 | X57: 0 | Y57: 0 | Z57: 0 | AB57: 195.219234 | AC57: 195.219234 | AD57: 195.219234 | AE57: 105.17529 | AF57: 25.1645676 | AG57: 5 | AI57: 4.657368669 | AK57: =OFFSET(AA54,A57,A57) -> 195.219234 | AM57: -1.541223894e-19 | AN57: -0.004165916361 | AO57: 0.01527160493 | AP57: -0.01110568857 | AQ57: -1.804626922e-18 | AR57: 0 | AT57: -1.541223894e-19 | AU57: -1.541223894e-19 | AV57: -1.541223894e-19 | AW57: -1.541223894e-19 | AX57: -1.541223894e-19 | AY57: -1.541223894e-19 | AZ57: -0.004165916361 | BA57: -0.004165916361 | BB57: -0.004165916361 | BC57: -0.004165916361 | BD57: -0.004165916361 | BE57: 0.01110568857 | BF57: 0.01110568857 | BG57: 0.01110568857 | BH57: 0.01110568857 | BI57: -1.734723476e-18 | BJ57: -1.734723476e-18 | BK57: -1.734723476e-18 | BL57: -3.539350398e-18 | BM57: -3.539350398e-18 | BN57: -3.539350398e-18 | BP57: 531.724674 | BR57: -0.7576855988 | BT57: =BR57-BW28/$K$1 -> -1.025925251
A58: 4 | B58: 120 | D58: 4.7376752 | F58: 0 | G58: 0 | H58: 0 | I58: 114.168474 | J58: 0 | K58: 0 | L58: 0 | M58: 0 | N58: 0 | O58: 0 | P58: 0 | Q58: 0 | R58: 0 | S58: 0 | T58: 0 | U58: 0 | V58: 0 | W58: 0 | X58: 0 | Y58: 0 | Z58: 0 | AB58: 105.17529 | AC58: 105.17529 | AD58: 105.17529 | AE58: 105.17529 | AF58: 25.1645676 | AG58: 5 | AI58: 4.788753451 | AK58: =OFFSET(AA54,A58,A58) -> 105.17529 | AM58: 3.275714897e-19 | AN58: -2.533847367e-18 | AO58: -0.01110568857 | AP58: 0.02360401342 | AQ58: -0.01249832485 | AR58: -4.57714428e-18 | AT58: 3.275714897e-19 | AU58: 3.275714897e-19 | AV58: 3.275714897e-19 | AW58: 3.275714897e-19 | AX58: 3.275714897e-19 | AY58: 3.275714897e-19 | AZ58: -2.206275878e-18 | BA58: -2.206275878e-18 | BB58: -2.206275878e-18 | BC58: -2.206275878e-18 | BD58: -2.206275878e-18 | BE58: -0.01110568857 | BF58: -0.01110568857 | BG58: -0.01110568857 | BH58: -0.01110568857 | BI58: 0.01249832485 | BJ58: 0.01249832485 | BK58: 0.01249832485 | BL58: 5.204170428e-18 | BM58: 5.204170428e-18 | BN58: 6.270261483e-19 | BP58: 546.724674 | BR58: 0.1698989267 | BT58: =BR58-BW28/$K$1 -> -0.09834072542
A59: 5 | B59: 130 | D59: 4.7376752 | F59: 0 | G59: 0 | H59: 0 | I59: 0 | J59: 114.168474 | K59: 0 | L59: 0 | M59: 0 | N59: 0 | O59: 0 | P59: 0 | Q59: 0 | R59: 0 | S59: 0 | T59: 0 | U59: 0 | V59: 0 | W59: 0 | X59: 0 | Y59: 0 | Z59: 0 | AB59: 25.1645676 | AC59: 25.1645676 | AD59: 25.1645676 | AE59: 25.1645676 | AF59: 25.1645676 | AG59: 5 | AI59: 4.876343305 | AK59: =OFFSET(AA54,A59,A59) -> 25.1645676 | AM59: -1.304349502e-19 | AN59: 8.707267508e-19 | AO59: -3.102588809e-18 | AP59: -0.01249832485 | AQ59: 0.06209026355 | AR59: -0.04959193869 | AT59: -1.304349502e-19 | AU59: -1.304349502e-19 | AV59: -1.304349502e-19 | AW59: -1.304349502e-19 | AX59: -1.304349502e-19 | AY59: -1.304349502e-19 | AZ59: 7.402918007e-19 | BA59: 7.402918007e-19 | BB59: 7.402918007e-19 | BC59: 7.402918007e-19 | BD59: 7.402918007e-19 | BE59: -2.362297008e-18 | BF59: -2.362297008e-18 | BG59: -2.362297008e-18 | BH59: -2.362297008e-18 | BI59: -0.01249832485 | BJ59: -0.01249832485 | BK59: -0.01249832485 | BL59: 0.04959193869 | BM59: 0.04959193869 | BN59: 1.387778781e-17 | BP59: 556.724674 | BR59: -0.9807957769 | BT59: =BR59-BW28/$K$1 -> -1.249035429
A60: 6 | B60: 125 | D60: 4.7376752 | F60: 0 | G60: 0 | H60: 0 | I60: 0 | J60: 0 | K60: 114.168474 | L60: 0 | M60: 0 | N60: 0 | O60: 0 | P60: 0 | Q60: 0 | R60: 0 | S60: 0 | T60: 0 | U60: 0 | V60: 0 | W60: 0 | X60: 0 | Y60: 0 | Z60: 0 | AB60: 5 | AC60: 5 | AD60: 5 | AE60: 5 | AF60: 5 | AG60: 5 | AI60: 4.832548378 | AK60: =OFFSET(AA54,A60,A60) -> 5 | AM60: -2.164864977e-19 | AN60: 7.770861966e-19 | AO60: 1.021013627e-18 | AP60: -5.195675946e-18 | AQ60: -0.04959193869 | AR60: 0.2495919387 | AT60: -2.164864977e-19 | AU60: -2.164864977e-19 | AV60: -2.164864977e-19 | AW60: -2.164864977e-19 | AX60: -2.164864977e-19 | AY60: -2.164864977e-19 | AZ60: 5.605996988e-19 | BA60: 5.605996988e-19 | BB60: 5.605996988e-19 | BC60: 5.605996988e-19 | BD60: 5.605996988e-19 | BE60: 1.581613326e-18 | BF60: 1.581613326e-18 | BG60: 1.581613326e-18 | BH60: 1.581613326e-18 | BI60: -3.61406262e-18 | BJ60: -3.61406262e-18 | BK60: -3.61406262e-18 | BL60: -0.04959193869 | BM60: -0.04959193869 | BN60: 0.2 | BP60: 551.724674 | BR60: -0.6931806657 | BT60: =BR60-BW28/$K$1 -> -0.9614203177
A61: 7 | B61: 55 | D61: 3.871381101 | F61: 0 | G61: 0 | H61: 0 | I61: 0 | J61: 0 | K61: 0 | L61: 48.00864508 | M61: 0 | N61: 0 | O61: 0 | P61: 0 | Q61: 0 | R61: 0 | S61: 0 | T61: 0 | U61: 0 | V61: 0 | W61: 0 | X61: 0 | Y61: 0 | Z61: 0 | AI61: 4.0170081 | BP61: 192.8511162
A62: 8 | B62: 50 | D62: 3.871381101 | F62: 0 | G62: 0 | H62: 0 | I62: 0 | J62: 0 | K62: 0 | L62: 0 | M62: 48.00864508 | N62: 0 | O62: 0 | P62: 0 | Q62: 0 | R62: 0 | S62: 0 | T62: 0 | U62: 0 | V62: 0 | W62: 0 | X62: 0 | Y62: 0 | Z62: 0 | AI62: 3.912860191 | BP62: 187.8511162
A63: 9 | B63: 60 | D63: 3.871381101 | F63: 0 | G63: 0 | H63: 0 | I63: 0 | J63: 0 | K63: 0 | L63: 0 | M63: 0 | N63: 48.00864508 | O63: 0 | P63: 0 | Q63: 0 | R63: 0 | S63: 0 | T63: 0 | U63: 0 | V63: 0 | W63: 0 | X63: 0 | Y63: 0 | Z63: 0 | AI63: 4.121156009 | BP63: 197.8511162
A64: 10 | B64: 35 | D64: 3.871381101 | F64: 0 | G64: 0 | H64: 0 | I64: 0 | J64: 0 | K64: 0 | L64: 0 | M64: 0 | N64: 0 | O64: 48.00864508 | P64: 0 | Q64: 0 | R64: 0 | S64: 0 | T64: 0 | U64: 0 | V64: 0 | W64: 0 | X64: 0 | Y64: 0 | Z64: 0 | AI64: 3.600416464 | BP64: 172.8511162
A65: 11 | B65: 40 | D65: 3.871381101 | F65: =IF($A65=F$4,IF($B65<0,-(EXP(-$D65)^(2-$H$1)),IF($B65=0,0,EXP($D65)^(2-$H$1))),0) -> 0 | G65: 0 | H65: 0 | I65: 0 | J65: 0 | K65: 0 | L65: 0 | M65: 0 | N65: 0 | O65: 0 | P65: =IF($A65=P$4,IF($B65<0,-(EXP(-$D65)^(2-$H$1)),IF($B65=0,0,EXP($D65)^(2-$H$1))),0) -> 48.00864508 | Q65: 0 | R65: 0 | S65: 0 | T65: 0 | U65: 0 | V65: 0 | W65: 0 | X65: 0 | Y65: 0 | Z65: 0 | AI65: 3.704564373 | BP65: 177.8511162
A66: 12 | B66: 20 | D66: 3.114003457 | F66: 0 | G66: 0 | H66: 0 | I66: 0 | J66: 0 | K66: 0 | L66: 0 | M66: 0 | N66: 0 | O66: 0 | P66: 0 | Q66: 22.51098602 | R66: 0 | S66: 0 | T66: 0 | U66: 0 | V66: 0 | W66: 0 | X66: 0 | Y66: 0 | Z66: 0 | AI66: 3.002458543 | BP66: 67.58830226
A67: 13 | B67: 15 | D67: 3.114003457 | F67: 0 | G67: 0 | H67: 0 | I67: 0 | J67: 0 | K67: 0 | L67: 0 | M67: 0 | N67: 0 | O67: 0 | P67: 0 | Q67: 0 | R67: 22.51098602 | S67: 0 | T67: 0 | U67: 0 | V67: 0 | W67: 0 | X67: 0 | Y67: 0 | Z67: 0 | AI67: 2.780344771 | BP67: 62.58830226
A68: 14 | B68: 25 | D68: 3.114003457 | F68: 0 | G68: 0 | H68: 0 | I68: 0 | J68: 0 | K68: 0 | L68: 0 | M68: 0 | N68: 0 | O68: 0 | P68: 0 | Q68: 0 | R68: 0 | S68: 22.51098602 | T68: 0 | U68: 0 | V68: 0 | W68: 0 | X68: 0 | Y68: 0 | Z68: 0 | AI68: 3.224572314 | BP68: 72.58830226
A69: 15 | B69: 30 | D69: 3.114003457 | F69: 0 | G69: 0 | H69: 0 | I69: 0 | J69: 0 | K69: 0 | L69: 0 | M69: 0 | N69: 0 | O69: 0 | P69: 0 | Q69: 0 | R69: 0 | S69: 0 | T69: 22.51098602 | U69: 0 | V69: 0 | W69: 0 | X69: 0 | Y69: 0 | Z69: 0 | AI69: 3.446686085 | BP69: 77.58830226
A70: 16 | B70: 30 | D70: 3.283548367 | F70: 0 | G70: 0 | H70: 0 | I70: 0 | J70: 0 | K70: 0 | L70: 0 | M70: 0 | N70: 0 | O70: 0 | P70: 0 | Q70: 0 | R70: 0 | S70: 0 | T70: 0 | U70: 26.67024079 | V70: 0 | W70: 0 | X70: 0 | Y70: 0 | Z70: 0 | AI70: 3.408397604 | BP70: 90.90278479
A71: 17 | B71: 30 | D71: 3.283548367 | F71: 0 | G71: 0 | H71: 0 | I71: 0 | J71: 0 | K71: 0 | L71: 0 | M71: 0 | N71: 0 | O71: 0 | P71: 0 | Q71: 0 | R71: 0 | S71: 0 | T71: 0 | U71: 0 | V71: 26.67024079 | W71: 0 | X71: 0 | Y71: 0 | Z71: 0 | AI71: 3.408397604 | BP71: 90.90278479
A72: 18 | B72: 20 | D72: 3.283548367 | F72: 0 | G72: 0 | H72: 0 | I72: 0 | J72: 0 | K72: 0 | L72: 0 | M72: 0 | N72: 0 | O72: 0 | P72: 0 | Q72: 0 | R72: 0 | S72: 0 | T72: 0 | U72: 0 | V72: 0 | W72: 26.67024079 | X72: 0 | Y72: 0 | Z72: 0 | AI72: 3.033447858 | BP72: 80.90278479
A73: 19 | B73: 15 | D73: 2.310779804 | F73: 0 | G73: 0 | H73: 0 | I73: 0 | J73: 0 | K73: 0 | L73: 0 | M73: 0 | N73: 0 | O73: 0 | P73: 0 | Q73: 0 | R73: 0 | S73: 0 | T73: 0 | U73: 0 | V73: 0 | W73: 0 | X73: 10.0822838 | Y73: 0 | Z73: 0 | AI73: 2.798537965 | BP73: 28.21565398
A74: 20 | B74: 5 | D74: 2.310779804 | F74: 0 | G74: 0 | H74: 0 | I74: 0 | J74: 0 | K74: 0 | L74: 0 | M74: 0 | N74: 0 | O74: 0 | P74: 0 | Q74: 0 | R74: 0 | S74: 0 | T74: 0 | U74: 0 | V74: 0 | W74: 0 | X74: 0 | Y74: 10.0822838 | Z74: 0 | AI74: 1.806699191 | BP74: 18.21565398
A75: 21 | B75: 5 | D75: 1.609437912 | F75: 0 | G75: 0 | H75: 0 | I75: 0 | J75: 0 | K75: 0 | L75: 0 | M75: 0 | N75: 0 | O75: 0 | P75: 0 | Q75: 0 | R75: 0 | S75: 0 | T75: 0 | U75: 0 | V75: 0 | W75: 0 | X75: 0 | Y75: 0 | Z75: 5 | AI75: 1.609437912 | BP75: 8.047189562
A77: Newton-Raphson Interation Sequence -- Iteration 4
B78: y(i) | D78: xb(i) | F78: W(i,i) | AB78: XWX | AI78: zz(i) | AK78: factor | AM78: xwx-1 | AT78: aa1(i,j) | BP78: aa2(j) | BR78: beta(j) | BT78: beta_diff = | BU78: =SUM(BT80:BT90) -> -2.331468352e-15 | BV78: beta_old = | BW78: =SUM(BR80:BR90) -> 1.609437912
B79: 1 | D79: 1 | F79: 1 | G79: 2 | H79: 3 | I79: 4 | J79: 5 | K79: 6 | L79: 7 | M79: 8 | N79: 9 | O79: 10 | P79: 11 | Q79: 12 | R79: 13 | S79: 14 | T79: 15 | U79: 16 | V79: 17 | W79: 18 | X79: 19 | Y79: 20 | Z79: 21 | AB79: 1 | AC79: 2 | AD79: 3 | AE79: 4 | AF79: 5 | AG79: 6 | AI79: 1 | AM79: 1 | AN79: 2 | AO79: 3 | AP79: 4 | AQ79: 5 | AR79: 6 | AT79: 1 | AU79: 2 | AV79: 3 | AW79: 4 | AX79: 5 | AY79: 6 | AZ79: 7 | BA79: 8 | BB79: 9 | BC79: 10 | BD79: 11 | BE79: 12 | BF79: 13 | BG79: 14 | BH79: 15 | BI79: 16 | BJ79: 17 | BK79: 18 | BL79: 19 | BM79: 20 | BN79: 21
A80: 1 | B80: =B55 -> 95 | D80: =MMULT(DesignMatrix,BR55:BR60) -> 4.737659369 | F80: =IF($A80=F$4,IF($B80<0,-(EXP(-$D80)^(2-$H$1)),IF($B80=0,0,EXP($D80)^(2-$H$1))),0) -> 114.1666667 | G80: 0 | H80: 0 | I80: 0 | J80: 0 | K80: 0 | L80: 0 | M80: 0 | N80: 0 | O80: 0 | P80: =IF($A80=P$4,IF($B80<0,-(EXP(-$D80)^(2-$H$1)),IF($B80=0,0,EXP($D80)^(2-$H$1))),0) -> 0 | Q80: 0 | R80: 0 | S80: 0 | T80: 0 | U80: 0 | V80: 0 | W80: 0 | X80: 0 | Y80: 0 | Z80: 0 | AB80: =MMULT(TRANSPOSE(DesignMatrix),MMULT(F80:Z100,DesignMatrix)) -> 1120.000685 | AC80: 435.000685 | AD80: 195.0006812 | AE80: 105.0006704 | AF80: 25.00066971 | AG80: 5 | AI80: =IF(B80<0,D80+(B80+EXP(-D80))/-EXP(-D80),IF(B80=0,0,D80+(B80-EXP(D80))/EXP(D80))) -> 4.569776157 | AK80: =OFFSET(AA79,A80,A80) -> 1120.000685 | AM80: =MINVERSE(AB80:AG85) -> 0.001459854014 | AN80: -0.001459854014 | AO80: -1.332014849e-19 | AP80: -5.73077422e-20 | AQ80: -9.912699513e-20 | AR80: -1.982539903e-19 | AT80: =MMULT(AM80:AR85,TRANSPOSE(DesignMatrix)) -> 0.001459854014 | AU80: 0.001459854014 | AV80: 0.001459854014 | AW80: 0.001459854014 | AX80: 0.001459854014 | AY80: 0.001459854014 | AZ80: 0 | BA80: 0 | BB80: 0 | BC80: 0 | BD80: 0 | BE80: -1.332014849e-19 | BF80: -1.332014849e-19 | BG80: -1.332014849e-19 | BH80: -1.332014849e-19 | BI80: -1.905092271e-19 | BJ80: -1.905092271e-19 | BK80: -1.905092271e-19 | BL80: -2.896362223e-19 | BM80: -2.896362223e-19 | BN80: -4.878902125e-19 | BP80: =MMULT(F80:Z100,AI80:AI100) -> 521.7161114 | BR80: =MMULT(AT80:BN85,BP80:BP100) -> 4.737659369 | BT80: =BR80-BW53/$K$1 -> 4.469419717
A81: 2 | B81: =B56 -> 110 | D81: 4.737659369 | F81: 0 | G81: 114.1666667 | H81: 0 | I81: 0 | J81: 0 | K81: 0 | L81: 0 | M81: 0 | N81: 0 | O81: 0 | P81: 0 | Q81: 0 | R81: 0 | S81: 0 | T81: 0 | U81: 0 | V81: 0 | W81: 0 | X81: 0 | Y81: 0 | Z81: 0 | AB81: 435.000685 | AC81: 435.000685 | AD81: 195.0006812 | AE81: 105.0006704 | AF81: 25.00066971 | AG81: 5 | AI81: =IF(B81<0,D81+(B81+EXP(-D81))/-EXP(-D81),IF(B81=0,0,D81+(B81-EXP(D81))/EXP(D81))) -> 4.701163019 | AK81: =OFFSET(AA79,A81,A81) -> 435.000685 | AM81: -0.001459854014 | AN81: 0.005626520614 | AO81: -0.004166666599 | AP81: 2.930355415e-19 | AQ81: -3.129747269e-19 | AR81: 4.172996358e-19 | AT81: -0.001459854014 | AU81: -0.001459854014 | AV81: -0.001459854014 | AW81: -0.001459854014 | AX81: -0.001459854014 | AY81: -0.001459854014 | AZ81: 0.004166666599 | BA81: 0.004166666599 | BB81: 0.004166666599 | BC81: 0.004166666599 | BD81: 0.004166666599 | BE81: 0 | BF81: 0 | BG81: 0 | BH81: 0 | BI81: 2.930355415e-19 | BJ81: 2.930355415e-19 | BK81: 2.930355415e-19 | BL81: -1.993918537e-20 | BM81: -1.993918537e-20 | BN81: 3.973604505e-19 | BP81: 536.7161114 | BR81: -0.8664583581 | BT81: =BR81-BW53/$K$1 -> -1.13469801
A82: 3 | B82: 105 | D82: 4.737659369 | F82: 0 | G82: 0 | H82: 114.1666667 | I82: 0 | J82: 0 | K82: 0 | L82: 0 | M82: 0 | N82: 0 | O82: 0 | P82: 0 | Q82: 0 | R82: 0 | S82: 0 | T82: 0 | U82: 0 | V82: 0 | W82: 0 | X82: 0 | Y82: 0 | Z82: 0 | AB82: 195.0006812 | AC82: 195.0006812 | AD82: 195.0006812 | AE82: 105.0006704 | AF82: 25.00066971 | AG82: 5 | AI82: 4.657367398 | AK82: =OFFSET(AA79,A82,A82) -> 195.0006812 | AM82: -1.541976239e-19 | AN82: -0.004166666599 | AO82: 0.01527777639 | AP82: -0.01111110979 | AQ82: -1.031936071e-18 | AR82: -1.031936071e-18 | AT82: -1.541976239e-19 | AU82: -1.541976239e-19 | AV82: -1.541976239e-19 | AW82: -1.541976239e-19 | AX82: -1.541976239e-19 | AY82: -1.541976239e-19 | AZ82: -0.004166666599 | BA82: -0.004166666599 | BB82: -0.004166666599 | BC82: -0.004166666599 | BD82: -0.004166666599 | BE82: 0.01111110979 | BF82: 0.01111110979 | BG82: 0.01111110979 | BH82: 0.01111110979 | BI82: 1.734723476e-18 | BJ82: 1.734723476e-18 | BK82: 1.734723476e-18 | BL82: 7.027874045e-19 | BM82: 7.027874045e-19 | BN82: -3.29148667e-19 | BP82: 531.7161114 | BR82: -0.7576857017 | BT82: =BR82-BW53/$K$1 -> -1.025925354
A83: 4 | B83: 120 | D83: 4.737659369 | F83: 0 | G83: 0 | H83: 0 | I83: 114.1666667 | J83: 0 | K83: 0 | L83: 0 | M83: 0 | N83: 0 | O83: 0 | P83: 0 | Q83: 0 | R83: 0 | S83: 0 | T83: 0 | U83: 0 | V83: 0 | W83: 0 | X83: 0 | Y83: 0 | Z83: 0 | AB83: 105.0006704 | AC83: 105.0006704 | AD83: 105.0006704 | AE83: 105.0006704 | AF83: 25.00066971 | AG83: 5 | AI83: 4.78875426 | AK83: =OFFSET(AA79,A83,A83) -> 105.0006704 | AM83: 3.710380565e-19 | AN83: -3.189963527e-18 | AO83: -0.01111110979 | AP83: 0.02361110968 | AQ83: -0.01249999989 | AR83: 0 | AT83: 3.710380565e-19 | AU83: 3.710380565e-19 | AV83: 3.710380565e-19 | AW83: 3.710380565e-19 | AX83: 3.710380565e-19 | AY83: 3.710380565e-19 | AZ83: -2.81892547e-18 | BA83: -2.81892547e-18 | BB83: -2.81892547e-18 | BC83: -2.81892547e-18 | BD83: -2.81892547e-18 | BE83: -0.01111110979 | BF83: -0.01111110979 | BG83: -0.01111110979 | BH83: -0.01111110979 | BI83: 0.01249999989 | BJ83: 0.01249999989 | BK83: 0.01249999989 | BL83: 1.734723476e-18 | BM83: 1.734723476e-18 | BN83: 1.734723476e-18 | BP83: 546.7161114 | BR83: 0.1698990368 | BT83: =BR83-BW53/$K$1 -> -0.09834061528
A84: 5 | B84: 130 | D84: 4.737659369 | F84: 0 | G84: 0 | H84: 0 | I84: 0 | J84: 114.1666667 | K84: 0 | L84: 0 | M84: 0 | N84: 0 | O84: 0 | P84: 0 | Q84: 0 | R84: 0 | S84: 0 | T84: 0 | U84: 0 | V84: 0 | W84: 0 | X84: 0 | Y84: 0 | Z84: 0 | AB84: 25.00066971 | AC84: 25.00066971 | AD84: 25.00066971 | AE84: 25.00066971 | AF84: 25.00066971 | AG84: 5 | AI84: 4.8763455 | AK84: =OFFSET(AA79,A84,A84) -> 25.00066971 | AM84: -3.903069715e-19 | AN84: 1.301054209e-18 | AO84: -2.428554774e-18 | AP84: -0.01249999989 | AQ84: 0.06249832566 | AR84: -0.04999832577 | AT84: -3.903069715e-19 | AU84: -3.903069715e-19 | AV84: -3.903069715e-19 | AW84: -3.903069715e-19 | AX84: -3.903069715e-19 | AY84: -3.903069715e-19 | AZ84: 9.10747238e-19 | BA84: 9.10747238e-19 | BB84: 9.10747238e-19 | BC84: 9.10747238e-19 | BD84: 9.10747238e-19 | BE84: -1.517807536e-18 | BF84: -1.517807536e-18 | BG84: -1.517807536e-18 | BH84: -1.517807536e-18 | BI84: -0.01249999989 | BJ84: -0.01249999989 | BK84: -0.01249999989 | BL84: 0.04999832577 | BM84: 0.04999832577 | BN84: -6.938893904e-18 | BP84: 556.7161114 | BR84: -0.9808292525 | BT84: =BR84-BW53/$K$1 -> -1.249068905
A85: 6 | B85: 125 | D85: 4.737659369 | F85: 0 | G85: 0 | H85: 0 | I85: 0 | J85: 0 | K85: 114.1666667 | L85: 0 | M85: 0 | N85: 0 | O85: 0 | P85: 0 | Q85: 0 | R85: 0 | S85: 0 | T85: 0 | U85: 0 | V85: 0 | W85: 0 | X85: 0 | Y85: 0 | Z85: 0 | AB85: 5 | AC85: 5 | AD85: 5 | AE85: 5 | AF85: 5 | AG85: 5 | AI85: 4.83254988 | AK85: =OFFSET(AA79,A85,A85) -> 5 | AM85: 1.73466539e-19 | AN85: 3.469330779e-19 | AO85: -2.428670953e-18 | AP85: 1.734711859e-18 | AQ85: -0.04999832577 | AR85: 0.2499983258 | AT85: 1.73466539e-19 | AU85: 1.73466539e-19 | AV85: 1.73466539e-19 | AW85: 1.73466539e-19 | AX85: 1.73466539e-19 | AY85: 1.73466539e-19 | AZ85: 5.203996169e-19 | BA85: 5.203996169e-19 | BB85: 5.203996169e-19 | BC85: 5.203996169e-19 | BD85: 5.203996169e-19 | BE85: -1.908271336e-18 | BF85: -1.908271336e-18 | BG85: -1.908271336e-18 | BH85: -1.908271336e-18 | BI85: -1.735594773e-19 | BJ85: -1.735594773e-19 | BK85: -1.735594773e-19 | BL85: -0.04999832577 | BM85: -0.04999832577 | BN85: 0.2 | BP85: 551.7161114 | BR85: -0.6931471811 | BT85: =BR85-BW53/$K$1 -> -0.9613868332
A86: 7 | B86: 55 | D86: 3.871201027 | F86: 0 | G86: 0 | H86: 0 | I86: 0 | J86: 0 | K86: 0 | L86: 48.00000078 | M86: 0 | N86: 0 | O86: 0 | P86: 0 | Q86: 0 | R86: 0 | S86: 0 | T86: 0 | U86: 0 | V86: 0 | W86: 0 | X86: 0 | Y86: 0 | Z86: 0 | AI86: 4.017034342 | BP86: 192.8176515
A87: 8 | B87: 50 | D87: 3.871201027 | F87: 0 | G87: 0 | H87: 0 | I87: 0 | J87: 0 | K87: 0 | L87: 0 | M87: 48.00000078 | N87: 0 | O87: 0 | P87: 0 | Q87: 0 | R87: 0 | S87: 0 | T87: 0 | U87: 0 | V87: 0 | W87: 0 | X87: 0 | Y87: 0 | Z87: 0 | AI87: 3.912867677 | BP87: 187.8176515
A88: 9 | B88: 60 | D88: 3.871201027 | F88: 0 | G88: 0 | H88: 0 | I88: 0 | J88: 0 | K88: 0 | L88: 0 | M88: 0 | N88: 48.00000078 | O88: 0 | P88: 0 | Q88: 0 | R88: 0 | S88: 0 | T88: 0 | U88: 0 | V88: 0 | W88: 0 | X88: 0 | Y88: 0 | Z88: 0 | AI88: 4.121201007 | BP88: 197.8176515
A89: 10 | B89: 35 | D89: 3.871201027 | F89: 0 | G89: 0 | H89: 0 | I89: 0 | J89: 0 | K89: 0 | L89: 0 | M89: 0 | N89: 0 | O89: 48.00000078 | P89: 0 | Q89: 0 | R89: 0 | S89: 0 | T89: 0 | U89: 0 | V89: 0 | W89: 0 | X89: 0 | Y89: 0 | Z89: 0 | AI89: 3.600367682 | BP89: 172.8176515
A90: 11 | B90: 40 | D90: 3.871201027 | F90: =IF($A90=F$4,IF($B90<0,-(EXP(-$D90)^(2-$H$1)),IF($B90=0,0,EXP($D90)^(2-$H$1))),0) -> 0 | G90: 0 | H90: 0 | I90: 0 | J90: 0 | K90: 0 | L90: 0 | M90: 0 | N90: 0 | O90: 0 | P90: =IF($A90=P$4,IF($B90<0,-(EXP(-$D90)^(2-$H$1)),IF($B90=0,0,EXP($D90)^(2-$H$1))),0) -> 48.00000078 | Q90: 0 | R90: 0 | S90: 0 | T90: 0 | U90: 0 | V90: 0 | W90: 0 | X90: 0 | Y90: 0 | Z90: 0 | AI90: 3.704534347 | BP90: 177.8176515
A91: 12 | B91: 20 | D91: 3.113515428 | F91: 0 | G91: 0 | H91: 0 | I91: 0 | J91: 0 | K91: 0 | L91: 0 | M91: 0 | N91: 0 | O91: 0 | P91: 0 | Q91: 22.50000268 | R91: 0 | S91: 0 | T91: 0 | U91: 0 | V91: 0 | W91: 0 | X91: 0 | Y91: 0 | Z91: 0 | AI91: 3.002404211 | BP91: 67.5541028
A92: 13 | B92: 15 | D92: 3.113515428 | F92: 0 | G92: 0 | H92: 0 | I92: 0 | J92: 0 | K92: 0 | L92: 0 | M92: 0 | N92: 0 | O92: 0 | P92: 0 | Q92: 0 | R92: 22.50000268 | S92: 0 | T92: 0 | U92: 0 | V92: 0 | W92: 0 | X92: 0 | Y92: 0 | Z92: 0 | AI92: 2.780182016 | BP92: 62.5541028
A93: 14 | B93: 25 | D93: 3.113515428 | F93: 0 | G93: 0 | H93: 0 | I93: 0 | J93: 0 | K93: 0 | L93: 0 | M93: 0 | N93: 0 | O93: 0 | P93: 0 | Q93: 0 | R93: 0 | S93: 22.50000268 | T93: 0 | U93: 0 | V93: 0 | W93: 0 | X93: 0 | Y93: 0 | Z93: 0 | AI93: 3.224626407 | BP93: 72.5541028
A94: 15 | B94: 30 | D94: 3.113515428 | F94: 0 | G94: 0 | H94: 0 | I94: 0 | J94: 0 | K94: 0 | L94: 0 | M94: 0 | N94: 0 | O94: 0 | P94: 0 | Q94: 0 | R94: 0 | S94: 0 | T94: 22.50000268 | U94: 0 | V94: 0 | W94: 0 | X94: 0 | Y94: 0 | Z94: 0 | AI94: 3.446848603 | BP94: 77.5541028
A95: 16 | B95: 30 | D95: 3.283414355 | F95: 0 | G95: 0 | H95: 0 | I95: 0 | J95: 0 | K95: 0 | L95: 0 | M95: 0 | N95: 0 | O95: 0 | P95: 0 | Q95: 0 | R95: 0 | S95: 0 | T95: 0 | U95: 26.66666691 | V95: 0 | W95: 0 | X95: 0 | Y95: 0 | Z95: 0 | AI95: 3.408414345 | BP95: 90.89105001
A96: 17 | B96: 30 | D96: 3.283414355 | F96: 0 | G96: 0 | H96: 0 | I96: 0 | J96: 0 | K96: 0 | L96: 0 | M96: 0 | N96: 0 | O96: 0 | P96: 0 | Q96: 0 | R96: 0 | S96: 0 | T96: 0 | U96: 0 | V96: 26.66666691 | W96: 0 | X96: 0 | Y96: 0 | Z96: 0 | AI96: 3.408414345 | BP96: 90.89105001
A97: 18 | B97: 20 | D97: 3.283414355 | F97: 0 | G97: 0 | H97: 0 | I97: 0 | J97: 0 | K97: 0 | L97: 0 | M97: 0 | N97: 0 | O97: 0 | P97: 0 | Q97: 0 | R97: 0 | S97: 0 | T97: 0 | U97: 0 | V97: 0 | W97: 26.66666691 | X97: 0 | Y97: 0 | Z97: 0 | AI97: 3.033414348 | BP97: 80.89105001
A98: 19 | B98: 15 | D98: 2.302618578 | F98: 0 | G98: 0 | H98: 0 | I98: 0 | J98: 0 | K98: 0 | L98: 0 | M98: 0 | N98: 0 | O98: 0 | P98: 0 | Q98: 0 | R98: 0 | S98: 0 | T98: 0 | U98: 0 | V98: 0 | W98: 0 | X98: 10.00033486 | Y98: 0 | Z98: 0 | AI98: 2.802568351 | BP98: 28.02662197
A99: 20 | B99: 5 | D99: 2.302618578 | F99: 0 | G99: 0 | H99: 0 | I99: 0 | J99: 0 | K99: 0 | L99: 0 | M99: 0 | N99: 0 | O99: 0 | P99: 0 | Q99: 0 | R99: 0 | S99: 0 | T99: 0 | U99: 0 | V99: 0 | W99: 0 | X99: 0 | Y99: 10.00033486 | Z99: 0 | AI99: 1.802601836 | BP99: 18.02662197
A100: 21 | B100: 5 | D100: 1.609437912 | F100: 0 | G100: 0 | H100: 0 | I100: 0 | J100: 0 | K100: 0 | L100: 0 | M100: 0 | N100: 0 | O100: 0 | P100: 0 | Q100: 0 | R100: 0 | S100: 0 | T100: 0 | U100: 0 | V100: 0 | W100: 0 | X100: 0 | Y100: 0 | Z100: 5 | AI100: 1.609437912 | BP100: 8.047189562
A102: Newton-Raphson Interation Sequence -- Iteration 5
B103: y(i) | D103: xb(i) | F103: W(i,i) | AB103: XWX | AI103: zz(i) | AK103: factor | AM103: xwx-1 | AT103: aa1(i,j) | BP103: aa2(j) | BR103: beta(j) | BT103: beta_diff = | BU103: =SUM(BT105:BT115) -> 3.552713679e-15 | BV103: beta_old = | BW103: =SUM(BR105:BR115) -> 1.609437912
B104: 1 | D104: 1 | F104: 1 | G104: 2 | H104: 3 | I104: 4 | J104: 5 | K104: 6 | L104: 7 | M104: 8 | N104: 9 | O104: 10 | P104: 11 | Q104: 12 | R104: 13 | S104: 14 | T104: 15 | U104: 16 | V104: 17 | W104: 18 | X104: 19 | Y104: 20 | Z104: 21 | AB104: 1 | AC104: 2 | AD104: 3 | AE104: 4 | AF104: 5 | AG104: 6 | AI104: 1 | AM104: 1 | AN104: 2 | AO104: 3 | AP104: 4 | AQ104: 5 | AR104: 6 | AT104: 1 | AU104: 2 | AV104: 3 | AW104: 4 | AX104: 5 | AY104: 6 | AZ104: 7 | BA104: 8 | BB104: 9 | BC104: 10 | BD104: 11 | BE104: 12 | BF104: 13 | BG104: 14 | BH104: 15 | BI104: 16 | BJ104: 17 | BK104: 18 | BL104: 19 | BM104: 20 | BN104: 21
A105: 1 | B105: =B80 -> 95 | D105: =MMULT(DesignMatrix,BR80:BR85) -> 4.737659369 | F105: =IF($A105=F$4,IF($B105<0,-(EXP(-$D105)^(2-$H$1)),IF($B105=0,0,EXP($D105)^(2-$H$1))),0) -> 114.1666667 | G105: 0 | H105: 0 | I105: 0 | J105: 0 | K105: 0 | L105: 0 | M105: 0 | N105: 0 | O105: 0 | P105: =IF($A105=P$4,IF($B105<0,-(EXP(-$D105)^(2-$H$1)),IF($B105=0,0,EXP($D105)^(2-$H$1))),0) -> 0 | Q105: 0 | R105: 0 | S105: 0 | T105: 0 | U105: 0 | V105: 0 | W105: 0 | X105: 0 | Y105: 0 | Z105: 0 | AB105: =MMULT(TRANSPOSE(DesignMatrix),MMULT(F105:Z125,DesignMatrix)) -> 1120 | AC105: 435 | AD105: 195 | AE105: 105 | AF105: 25.00000001 | AG105: 5 | AI105: =IF(B105<0,D105+(B105+EXP(-D105))/-EXP(-D105),IF(B105=0,0,D105+(B105-EXP(D105))/EXP(D105))) -> 4.569776157 | AK105: =OFFSET(AA104,A105,A105) -> 1120 | AM105: =MINVERSE(AB105:AG110) -> 0.001459854015 | AN105: -0.001459854015 | AO105: 5.622362694e-19 | AP105: 7.744301231e-21 | AQ105: -2.478176394e-20 | AR105: 0 | AT105: =MMULT(AM105:AR110,TRANSPOSE(DesignMatrix)) -> 0.001459854015 | AU105: 0.001459854015 | AV105: 0.001459854015 | AW105: 0.001459854015 | AX105: 0.001459854015 | AY105: 0.001459854015 | AZ105: -2.168404345e-19 | BA105: -2.168404345e-19 | BB105: -2.168404345e-19 | BC105: -2.168404345e-19 | BD105: -2.168404345e-19 | BE105: 3.453958349e-19 | BF105: 3.453958349e-19 | BG105: 3.453958349e-19 | BH105: 3.453958349e-19 | BI105: 3.531401362e-19 | BJ105: 3.531401362e-19 | BK105: 3.531401362e-19 | BL105: 3.283583722e-19 | BM105: 3.283583722e-19 | BN105: 3.283583722e-19 | BP105: =MMULT(F105:Z125,AI105:AI125) -> 521.7161113 | BR105: =MMULT(AT105:BN110,BP105:BP125) -> 4.737659369 | BT105: =BR105-BW78/$K$1 -> 4.469419717
A106: 2 | B106: =B81 -> 110 | D106: 4.737659369 | F106: 0 | G106: 114.1666667 | H106: 0 | I106: 0 | J106: 0 | K106: 0 | L106: 0 | M106: 0 | N106: 0 | O106: 0 | P106: 0 | Q106: 0 | R106: 0 | S106: 0 | T106: 0 | U106: 0 | V106: 0 | W106: 0 | X106: 0 | Y106: 0 | Z106: 0 | AB106: 435 | AC106: 435 | AD106: 195 | AE106: 105 | AF106: 25.00000001 | AG106: 5 | AI106: =IF(B106<0,D106+(B106+EXP(-D106))/-EXP(-D106),IF(B106=0,0,D106+(B106-EXP(D106))/EXP(D106))) -> 4.701163019 | AK106: =OFFSET(AA104,A106,A106) -> 435 | AM106: -0.001459854015 | AN106: 0.005626520681 | AO106: -0.004166666667 | AP106: 7.502144164e-19 | AQ106: -2.086500189e-19 | AR106: 0 | AT106: -0.001459854015 | AU106: -0.001459854015 | AV106: -0.001459854015 | AW106: -0.001459854015 | AX106: -0.001459854015 | AY106: -0.001459854015 | AZ106: 0.004166666667 | BA106: 0.004166666667 | BB106: 0.004166666667 | BC106: 0.004166666667 | BD106: 0.004166666667 | BE106: -8.67361738e-19 | BF106: -8.67361738e-19 | BG106: -8.67361738e-19 | BH106: -8.67361738e-19 | BI106: -1.171473216e-19 | BJ106: -1.171473216e-19 | BK106: -1.171473216e-19 | BL106: -3.257973405e-19 | BM106: -3.257973405e-19 | BN106: -3.257973405e-19 | BP106: 536.7161113 | BR106: -0.8664583581 | BT106: =BR106-BW78/$K$1 -> -1.13469801
A107: 3 | B107: 105 | D107: 4.737659369 | F107: 0 | G107: 0 | H107: 114.1666667 | I107: 0 | J107: 0 | K107: 0 | L107: 0 | M107: 0 | N107: 0 | O107: 0 | P107: 0 | Q107: 0 | R107: 0 | S107: 0 | T107: 0 | U107: 0 | V107: 0 | W107: 0 | X107: 0 | Y107: 0 | Z107: 0 | AB107: 195 | AC107: 195 | AD107: 195 | AE107: 105 | AF107: 25.00000001 | AG107: 5 | AI107: 4.657367398 | AK107: =OFFSET(AA104,A107,A107) -> 195 | AM107: 0 | AN107: -0.004166666667 | AO107: 0.01527777778 | AP107: -0.01111111111 | AQ107: 2.063876135e-18 | AR107: 0 | AT107: 0 | AU107: 0 | AV107: 0 | AW107: 0 | AX107: 0 | AY107: 0 | AZ107: -0.004166666667 | BA107: -0.004166666667 | BB107: -0.004166666667 | BC107: -0.004166666667 | BD107: -0.004166666667 | BE107: 0.01111111111 | BF107: 0.01111111111 | BG107: 0.01111111111 | BH107: 0.01111111111 | BI107: 0 | BJ107: 0 | BK107: 0 | BL107: 2.063876135e-18 | BM107: 2.063876135e-18 | BN107: 2.063876135e-18 | BP107: 531.7161113 | BR107: -0.7576857017 | BT107: =BR107-BW78/$K$1 -> -1.025925354
A108: 4 | B108: 120 | D108: 4.737659369 | F108: 0 | G108: 0 | H108: 0 | I108: 114.1666667 | J108: 0 | K108: 0 | L108: 0 | M108: 0 | N108: 0 | O108: 0 | P108: 0 | Q108: 0 | R108: 0 | S108: 0 | T108: 0 | U108: 0 | V108: 0 | W108: 0 | X108: 0 | Y108: 0 | Z108: 0 | AB108: 105 | AC108: 105 | AD108: 105 | AE108: 105 | AF108: 25.00000001 | AG108: 5 | AI108: 4.78875426 | AK108: =OFFSET(AA104,A108,A108) -> 105 | AM108: 0 | AN108: 1.223943786e-18 | AO108: -0.01111111111 | AP108: 0.02361111111 | AQ108: -0.0125 | AR108: 0 | AT108: 0 | AU108: 0 | AV108: 0 | AW108: 0 | AX108: 0 | AY108: 0 | AZ108: 1.223943786e-18 | BA108: 1.223943786e-18 | BB108: 1.223943786e-18 | BC108: 1.223943786e-18 | BD108: 1.223943786e-18 | BE108: -0.01111111111 | BF108: -0.01111111111 | BG108: -0.01111111111 | BH108: -0.01111111111 | BI108: 0.0125 | BJ108: 0.0125 | BK108: 0.0125 | BL108: 0 | BM108: 0 | BN108: 0 | BP108: 546.7161113 | BR108: 0.1698990368 | BT108: =BR108-BW78/$K$1 -> -0.09834061528
A109: 5 | B109: 130 | D109: 4.737659369 | F109: 0 | G109: 0 | H109: 0 | I109: 0 | J109: 114.1666667 | K109: 0 | L109: 0 | M109: 0 | N109: 0 | O109: 0 | P109: 0 | Q109: 0 | R109: 0 | S109: 0 | T109: 0 | U109: 0 | V109: 0 | W109: 0 | X109: 0 | Y109: 0 | Z109: 0 | AB109: 25.00000001 | AC109: 25.00000001 | AD109: 25.00000001 | AE109: 25.00000001 | AF109: 25.00000001 | AG109: 5 | AI109: 4.8763455 | AK109: =OFFSET(AA104,A109,A109) -> 25.00000001 | AM109: 0 | AN109: -4.336808691e-19 | AO109: 1.38777878e-18 | AP109: -0.0125 | AQ109: 0.06249999997 | AR109: -0.04999999997 | AT109: 0 | AU109: 0 | AV109: 0 | AW109: 0 | AX109: 0 | AY109: 0 | AZ109: -4.336808691e-19 | BA109: -4.336808691e-19 | BB109: -4.336808691e-19 | BC109: -4.336808691e-19 | BD109: -4.336808691e-19 | BE109: 9.540979111e-19 | BF109: 9.540979111e-19 | BG109: 9.540979111e-19 | BH109: 9.540979111e-19 | BI109: -0.0125 | BJ109: -0.0125 | BK109: -0.0125 | BL109: 0.04999999997 | BM109: 0.04999999997 | BN109: 0 | BP109: 556.7161113 | BR109: -0.980829253 | BT109: =BR109-BW78/$K$1 -> -1.249068905
A110: 6 | B110: 125 | D110: 4.737659369 | F110: 0 | G110: 0 | H110: 0 | I110: 0 | J110: 0 | K110: 114.1666667 | L110: 0 | M110: 0 | N110: 0 | O110: 0 | P110: 0 | Q110: 0 | R110: 0 | S110: 0 | T110: 0 | U110: 0 | V110: 0 | W110: 0 | X110: 0 | Y110: 0 | Z110: 0 | AB110: 5 | AC110: 5 | AD110: 5 | AE110: 5 | AF110: 5 | AG110: 5 | AI110: 4.83254988 | AK110: =OFFSET(AA104,A110,A110) -> 5 | AM110: 0 | AN110: 5.204170429e-19 | AO110: 3.469446958e-19 | AP110: -1.734723476e-18 | AQ110: -0.04999999997 | AR110: 0.25 | AT110: 0 | AU110: 0 | AV110: 0 | AW110: 0 | AX110: 0 | AY110: 0 | AZ110: 5.204170429e-19 | BA110: 5.204170429e-19 | BB110: 5.204170429e-19 | BC110: 5.204170429e-19 | BD110: 5.204170429e-19 | BE110: 8.673617387e-19 | BF110: 8.673617387e-19 | BG110: 8.673617387e-19 | BH110: 8.673617387e-19 | BI110: -8.673617371e-19 | BJ110: -8.673617371e-19 | BK110: -8.673617371e-19 | BL110: -0.04999999997 | BM110: -0.04999999997 | BN110: 0.2 | BP110: 551.7161113 | BR110: -0.6931471806 | BT110: =BR110-BW78/$K$1 -> -0.9613868326
A111: 7 | B111: 55 | D111: 3.871201011 | F111: 0 | G111: 0 | H111: 0 | I111: 0 | J111: 0 | K111: 0 | L111: 48 | M111: 0 | N111: 0 | O111: 0 | P111: 0 | Q111: 0 | R111: 0 | S111: 0 | T111: 0 | U111: 0 | V111: 0 | W111: 0 | X111: 0 | Y111: 0 | Z111: 0 | AI111: 4.017034344 | BP111: 192.8176485
A112: 8 | B112: 50 | D112: 3.871201011 | F112: 0 | G112: 0 | H112: 0 | I112: 0 | J112: 0 | K112: 0 | L112: 0 | M112: 48 | N112: 0 | O112: 0 | P112: 0 | Q112: 0 | R112: 0 | S112: 0 | T112: 0 | U112: 0 | V112: 0 | W112: 0 | X112: 0 | Y112: 0 | Z112: 0 | AI112: 3.912867678 | BP112: 187.8176485
A113: 9 | B113: 60 | D113: 3.871201011 | F113: 0 | G113: 0 | H113: 0 | I113: 0 | J113: 0 | K113: 0 | L113: 0 | M113: 0 | N113: 48 | O113: 0 | P113: 0 | Q113: 0 | R113: 0 | S113: 0 | T113: 0 | U113: 0 | V113: 0 | W113: 0 | X113: 0 | Y113: 0 | Z113: 0 | AI113: 4.121201011 | BP113: 197.8176485
A114: 10 | B114: 35 | D114: 3.871201011 | F114: 0 | G114: 0 | H114: 0 | I114: 0 | J114: 0 | K114: 0 | L114: 0 | M114: 0 | N114: 0 | O114: 48 | P114: 0 | Q114: 0 | R114: 0 | S114: 0 | T114: 0 | U114: 0 | V114: 0 | W114: 0 | X114: 0 | Y114: 0 | Z114: 0 | AI114: 3.600367678 | BP114: 172.8176485
A115: 11 | B115: 40 | D115: 3.871201011 | F115: =IF($A115=F$4,IF($B115<0,-(EXP(-$D115)^(2-$H$1)),IF($B115=0,0,EXP($D115)^(2-$H$1))),0) -> 0 | G115: 0 | H115: 0 | I115: 0 | J115: 0 | K115: 0 | L115: 0 | M115: 0 | N115: 0 | O115: 0 | P115: =IF($A115=P$4,IF($B115<0,-(EXP(-$D115)^(2-$H$1)),IF($B115=0,0,EXP($D115)^(2-$H$1))),0) -> 48 | Q115: 0 | R115: 0 | S115: 0 | T115: 0 | U115: 0 | V115: 0 | W115: 0 | X115: 0 | Y115: 0 | Z115: 0 | AI115: 3.704534344 | BP115: 177.8176485
A116: 12 | B116: 20 | D116: 3.113515309 | F116: 0 | G116: 0 | H116: 0 | I116: 0 | J116: 0 | K116: 0 | L116: 0 | M116: 0 | N116: 0 | O116: 0 | P116: 0 | Q116: 22.5 | R116: 0 | S116: 0 | T116: 0 | U116: 0 | V116: 0 | W116: 0 | X116: 0 | Y116: 0 | Z116: 0 | AI116: 3.002404198 | BP116: 67.55409446
A117: 13 | B117: 15 | D117: 3.113515309 | F117: 0 | G117: 0 | H117: 0 | I117: 0 | J117: 0 | K117: 0 | L117: 0 | M117: 0 | N117: 0 | O117: 0 | P117: 0 | Q117: 0 | R117: 22.5 | S117: 0 | T117: 0 | U117: 0 | V117: 0 | W117: 0 | X117: 0 | Y117: 0 | Z117: 0 | AI117: 2.780181976 | BP117: 62.55409446
A118: 14 | B118: 25 | D118: 3.113515309 | F118: 0 | G118: 0 | H118: 0 | I118: 0 | J118: 0 | K118: 0 | L118: 0 | M118: 0 | N118: 0 | O118: 0 | P118: 0 | Q118: 0 | R118: 0 | S118: 22.5 | T118: 0 | U118: 0 | V118: 0 | W118: 0 | X118: 0 | Y118: 0 | Z118: 0 | AI118: 3.22462642 | BP118: 72.55409446
A119: 15 | B119: 30 | D119: 3.113515309 | F119: 0 | G119: 0 | H119: 0 | I119: 0 | J119: 0 | K119: 0 | L119: 0 | M119: 0 | N119: 0 | O119: 0 | P119: 0 | Q119: 0 | R119: 0 | S119: 0 | T119: 22.5 | U119: 0 | V119: 0 | W119: 0 | X119: 0 | Y119: 0 | Z119: 0 | AI119: 3.446848643 | BP119: 77.55409446
A120: 16 | B120: 30 | D120: 3.283414346 | F120: 0 | G120: 0 | H120: 0 | I120: 0 | J120: 0 | K120: 0 | L120: 0 | M120: 0 | N120: 0 | O120: 0 | P120: 0 | Q120: 0 | R120: 0 | S120: 0 | T120: 0 | U120: 26.66666667 | V120: 0 | W120: 0 | X120: 0 | Y120: 0 | Z120: 0 | AI120: 3.408414346 | BP120: 90.89104923
A121: 17 | B121: 30 | D121: 3.283414346 | F121: 0 | G121: 0 | H121: 0 | I121: 0 | J121: 0 | K121: 0 | L121: 0 | M121: 0 | N121: 0 | O121: 0 | P121: 0 | Q121: 0 | R121: 0 | S121: 0 | T121: 0 | U121: 0 | V121: 26.66666667 | W121: 0 | X121: 0 | Y121: 0 | Z121: 0 | AI121: 3.408414346 | BP121: 90.89104923
A122: 18 | B122: 20 | D122: 3.283414346 | F122: 0 | G122: 0 | H122: 0 | I122: 0 | J122: 0 | K122: 0 | L122: 0 | M122: 0 | N122: 0 | O122: 0 | P122: 0 | Q122: 0 | R122: 0 | S122: 0 | T122: 0 | U122: 0 | V122: 0 | W122: 26.66666667 | X122: 0 | Y122: 0 | Z122: 0 | AI122: 3.033414346 | BP122: 80.89104923
A123: 19 | B123: 15 | D123: 2.302585094 | F123: 0 | G123: 0 | H123: 0 | I123: 0 | J123: 0 | K123: 0 | L123: 0 | M123: 0 | N123: 0 | O123: 0 | P123: 0 | Q123: 0 | R123: 0 | S123: 0 | T123: 0 | U123: 0 | V123: 0 | W123: 0 | X123: 10.00000001 | Y123: 0 | Z123: 0 | AI123: 2.802585093 | BP123: 28.02585094
A124: 20 | B124: 5 | D124: 2.302585094 | F124: 0 | G124: 0 | H124: 0 | I124: 0 | J124: 0 | K124: 0 | L124: 0 | M124: 0 | N124: 0 | O124: 0 | P124: 0 | Q124: 0 | R124: 0 | S124: 0 | T124: 0 | U124: 0 | V124: 0 | W124: 0 | X124: 0 | Y124: 10.00000001 | Z124: 0 | AI124: 1.802585093 | BP124: 18.02585094
A125: 21 | B125: 5 | D125: 1.609437912 | F125: 0 | G125: 0 | H125: 0 | I125: 0 | J125: 0 | K125: 0 | L125: 0 | M125: 0 | N125: 0 | O125: 0 | P125: 0 | Q125: 0 | R125: 0 | S125: 0 | T125: 0 | U125: 0 | V125: 0 | W125: 0 | X125: 0 | Y125: 0 | Z125: 5 | AI125: 1.609437912 | BP125: 8.047189562
A127: Newton-Raphson Interation Sequence -- Iteration 6
B128: y(i) | D128: xb(i) | F128: W(i,i) | AB128: XWX | AI128: zz(i) | AK128: factor | AM128: xwx-1 | AT128: aa1(i,j) | BP128: aa2(j) | BR128: beta(j) | BT128: beta_diff = | BU128: =SUM(BT130:BT140) -> -1.33226763e-15 | BV128: beta_old = | BW128: =SUM(BR130:BR140) -> 1.609437912
B129: 1 | D129: 1 | F129: 1 | G129: 2 | H129: 3 | I129: 4 | J129: 5 | K129: 6 | L129: 7 | M129: 8 | N129: 9 | O129: 10 | P129: 11 | Q129: 12 | R129: 13 | S129: 14 | T129: 15 | U129: 16 | V129: 17 | W129: 18 | X129: 19 | Y129: 20 | Z129: 21 | AB129: 1 | AC129: 2 | AD129: 3 | AE129: 4 | AF129: 5 | AG129: 6 | AI129: 1 | AM129: 1 | AN129: 2 | AO129: 3 | AP129: 4 | AQ129: 5 | AR129: 6 | AT129: 1 | AU129: 2 | AV129: 3 | AW129: 4 | AX129: 5 | AY129: 6 | AZ129: 7 | BA129: 8 | BB129: 9 | BC129: 10 | BD129: 11 | BE129: 12 | BF129: 13 | BG129: 14 | BH129: 15 | BI129: 16 | BJ129: 17 | BK129: 18 | BL129: 19 | BM129: 20 | BN129: 21
A130: 1 | B130: =B105 -> 95 | D130: =MMULT(DesignMatrix,BR105:BR110) -> 4.737659369 | F130: =IF($A130=F$4,IF($B130<0,-(EXP(-$D130)^(2-$H$1)),IF($B130=0,0,EXP($D130)^(2-$H$1))),0) -> 114.1666667 | G130: 0 | H130: 0 | I130: 0 | J130: 0 | K130: 0 | L130: 0 | M130: 0 | N130: 0 | O130: 0 | P130: =IF($A130=P$4,IF($B130<0,-(EXP(-$D130)^(2-$H$1)),IF($B130=0,0,EXP($D130)^(2-$H$1))),0) -> 0 | Q130: 0 | R130: 0 | S130: 0 | T130: 0 | U130: 0 | V130: 0 | W130: 0 | X130: 0 | Y130: 0 | Z130: 0 | AB130: =MMULT(TRANSPOSE(DesignMatrix),MMULT(F130:Z150,DesignMatrix)) -> 1120 | AC130: 435 | AD130: 195 | AE130: 105 | AF130: 25 | AG130: 5 | AI130: =IF(B130<0,D130+(B130+EXP(-D130))/-EXP(-D130),IF(B130=0,0,D130+(B130-EXP(D130))/EXP(D130))) -> 4.569776157 | AK130: =OFFSET(AA129,A130,A130) -> 1120 | AM130: =MINVERSE(AB130:AG135) -> 0.001459854015 | AN130: -0.001459854015 | AO130: 9.757819552e-20 | AP130: -7.589415207e-20 | AQ130: 1.982541115e-19 | AR130: -1.982541115e-19 | AT130: =MMULT(AM130:AR135,TRANSPOSE(DesignMatrix)) -> 0.001459854015 | AU130: 0.001459854015 | AV130: 0.001459854015 | AW130: 0.001459854015 | AX130: 0.001459854015 | AY130: 0.001459854015 | AZ130: -6.505213035e-19 | BA130: -6.505213035e-19 | BB130: -6.505213035e-19 | BC130: -6.505213035e-19 | BD130: -6.505213035e-19 | BE130: -5.52943108e-19 | BF130: -5.52943108e-19 | BG130: -5.52943108e-19 | BH130: -5.52943108e-19 | BI130: -6.2883726e-19 | BJ130: -6.2883726e-19 | BK130: -6.2883726e-19 | BL130: -4.305831485e-19 | BM130: -4.305831485e-19 | BN130: -6.2883726e-19 | BP130: =MMULT(F130:Z150,AI130:AI150) -> 521.7161113 | BR130: =MMULT(AT130:BN135,BP130:BP150) -> 4.737659369 | BT130: =BR130-BW103/$K$1 -> 4.469419717
A131: 2 | B131: =B106 -> 110 | D131: 4.737659369 | F131: 0 | G131: 114.1666667 | H131: 0 | I131: 0 | J131: 0 | K131: 0 | L131: 0 | M131: 0 | N131: 0 | O131: 0 | P131: 0 | Q131: 0 | R131: 0 | S131: 0 | T131: 0 | U131: 0 | V131: 0 | W131: 0 | X131: 0 | Y131: 0 | Z131: 0 | AB131: 435 | AC131: 435 | AD131: 195 | AE131: 105 | AF131: 25 | AG131: 5 | AI131: =IF(B131<0,D131+(B131+EXP(-D131))/-EXP(-D131),IF(B131=0,0,D131+(B131-EXP(D131))/EXP(D131))) -> 4.701163019 | AK131: =OFFSET(AA129,A131,A131) -> 435 | AM131: -0.001459854015 | AN131: 0.005626520681 | AO131: -0.004166666667 | AP131: -3.574819869e-19 | AQ131: -3.129750283e-19 | AR131: 8.346000756e-19 | AT131: -0.001459854015 | AU131: -0.001459854015 | AV131: -0.001459854015 | AW131: -0.001459854015 | AX131: -0.001459854015 | AY131: -0.001459854015 | AZ131: 0.004166666667 | BA131: 0.004166666667 | BB131: 0.004166666667 | BC131: 0.004166666667 | BD131: 0.004166666667 | BE131: 0 | BF131: 0 | BG131: 0 | BH131: 0 | BI131: -3.574819869e-19 | BJ131: -3.574819869e-19 | BK131: -3.574819869e-19 | BL131: -6.704570152e-19 | BM131: -6.704570152e-19 | BN131: 1.641430603e-19 | BP131: 536.7161113 | BR131: -0.8664583581 | BT131: =BR131-BW103/$K$1 -> -1.13469801
A132: 3 | B132: 105 | D132: 4.737659369 | F132: 0 | G132: 0 | H132: 114.1666667 | I132: 0 | J132: 0 | K132: 0 | L132: 0 | M132: 0 | N132: 0 | O132: 0 | P132: 0 | Q132: 0 | R132: 0 | S132: 0 | T132: 0 | U132: 0 | V132: 0 | W132: 0 | X132: 0 | Y132: 0 | Z132: 0 | AB132: 195 | AC132: 195 | AD132: 195 | AE132: 105 | AF132: 25 | AG132: 5 | AI132: 4.657367398 | AK132: =OFFSET(AA129,A132,A132) -> 195 | AM132: 5.782411587e-19 | AN132: -0.004166666667 | AO132: 0.01527777778 | AP132: -0.01111111111 | AQ132: -3.869767754e-18 | AR132: 0 | AT132: 5.782411587e-19 | AU132: 5.782411587e-19 | AV132: 5.782411587e-19 | AW132: 5.782411587e-19 | AX132: 5.782411587e-19 | AY132: 5.782411587e-19 | AZ132: -0.004166666667 | BA132: -0.004166666667 | BB132: -0.004166666667 | BC132: -0.004166666667 | BD132: -0.004166666667 | BE132: 0.01111111111 | BF132: 0.01111111111 | BG132: 0.01111111111 | BH132: 0.01111111111 | BI132: 5.204170428e-18 | BJ132: 5.204170428e-18 | BK132: 5.204170428e-18 | BL132: 1.334402674e-18 | BM132: 1.334402674e-18 | BN132: 1.334402674e-18 | BP132: 531.7161113 | BR132: -0.7576857017 | BT132: =BR132-BW103/$K$1 -> -1.025925354
A133: 4 | B133: 120 | D133: 4.737659369 | F133: 0 | G133: 0 | H133: 0 | I133: 114.1666667 | J133: 0 | K133: 0 | L133: 0 | M133: 0 | N133: 0 | O133: 0 | P133: 0 | Q133: 0 | R133: 0 | S133: 0 | T133: 0 | U133: 0 | V133: 0 | W133: 0 | X133: 0 | Y133: 0 | Z133: 0 | AB133: 105 | AC133: 105 | AD133: 105 | AE133: 105 | AF133: 25 | AG133: 5 | AI133: 4.78875426 | AK133: =OFFSET(AA129,A133,A133) -> 105 | AM133: -5.926971876e-19 | AN133: 3.951314584e-19 | AO133: -0.01111111111 | AP133: 0.02361111111 | AQ133: -0.0125 | AR133: -2.2909364e-18 | AT133: -5.926971876e-19 | AU133: -5.926971876e-19 | AV133: -5.926971876e-19 | AW133: -5.926971876e-19 | AX133: -5.926971876e-19 | AY133: -5.926971876e-19 | AZ133: -1.975657292e-19 | BA133: -1.975657292e-19 | BB133: -1.975657292e-19 | BC133: -1.975657292e-19 | BD133: -1.975657292e-19 | BE133: -0.01111111111 | BF133: -0.01111111111 | BG133: -0.01111111111 | BH133: -0.01111111111 | BI133: 0.0125 | BJ133: 0.0125 | BK133: 0.0125 | BL133: -1.734723476e-18 | BM133: -1.734723476e-18 | BN133: -4.025659876e-18 | BP133: 546.7161113 | BR133: 0.1698990368 | BT133: =BR133-BW103/$K$1 -> -0.09834061528
A134: 5 | B134: 130 | D134: 4.737659369 | F134: 0 | G134: 0 | H134: 0 | I134: 0 | J134: 114.1666667 | K134: 0 | L134: 0 | M134: 0 | N134: 0 | O134: 0 | P134: 0 | Q134: 0 | R134: 0 | S134: 0 | T134: 0 | U134: 0 | V134: 0 | W134: 0 | X134: 0 | Y134: 0 | Z134: 0 | AB134: 25 | AC134: 25 | AD134: 25 | AE134: 25 | AF134: 25 | AG134: 5 | AI134: 4.8763455 | AK134: =OFFSET(AA129,A134,A134) -> 25 | AM134: -3.614729764e-34 | AN134: 7.806255642e-19 | AO134: -4.510281038e-18 | AP134: -0.0125 | AQ134: 0.0625 | AR134: -0.05 | AT134: -3.614729764e-34 | AU134: -3.614729764e-34 | AV134: -3.614729764e-34 | AW134: -3.614729764e-34 | AX134: -3.614729764e-34 | AY134: -3.614729764e-34 | AZ134: 7.806255642e-19 | BA134: 7.806255642e-19 | BB134: 7.806255642e-19 | BC134: 7.806255642e-19 | BD134: 7.806255642e-19 | BE134: -3.729655473e-18 | BF134: -3.729655473e-18 | BG134: -3.729655473e-18 | BH134: -3.729655473e-18 | BI134: -0.0125 | BJ134: -0.0125 | BK134: -0.0125 | BL134: 0.05 | BM134: 0.05 | BN134: 0 | BP134: 556.7161113 | BR134: -0.980829253 | BT134: =BR134-BW103/$K$1 -> -1.249068905
A135: 6 | B135: 125 | D135: 4.737659369 | F135: 0 | G135: 0 | H135: 0 | I135: 0 | J135: 0 | K135: 114.1666667 | L135: 0 | M135: 0 | N135: 0 | O135: 0 | P135: 0 | Q135: 0 | R135: 0 | S135: 0 | T135: 0 | U135: 0 | V135: 0 | W135: 0 | X135: 0 | Y135: 0 | Z135: 0 | AB135: 5 | AC135: 5 | AD135: 5 | AE135: 5 | AF135: 5 | AG135: 5 | AI135: 4.83254988 | AK135: =OFFSET(AA129,A135,A135) -> 5 | AM135: -4.33680869e-20 | AN135: -1.734723476e-19 | AO135: 6.938893904e-19 | AP135: -5.204170428e-18 | AQ135: -0.05 | AR135: 0.25 | AT135: -4.33680869e-20 | AU135: -4.33680869e-20 | AV135: -4.33680869e-20 | AW135: -4.33680869e-20 | AX135: -4.33680869e-20 | AY135: -4.33680869e-20 | AZ135: -2.168404345e-19 | BA135: -2.168404345e-19 | BB135: -2.168404345e-19 | BC135: -2.168404345e-19 | BD135: -2.168404345e-19 | BE135: 4.770489559e-19 | BF135: 4.770489559e-19 | BG135: 4.770489559e-19 | BH135: 4.770489559e-19 | BI135: -4.727121472e-18 | BJ135: -4.727121472e-18 | BK135: -4.727121472e-18 | BL135: -0.05 | BM135: -0.05 | BN135: 0.2 | BP135: 551.7161113 | BR135: -0.6931471806 | BT135: =BR135-BW103/$K$1 -> -0.9613868326
A136: 7 | B136: 55 | D136: 3.871201011 | F136: 0 | G136: 0 | H136: 0 | I136: 0 | J136: 0 | K136: 0 | L136: 48 | M136: 0 | N136: 0 | O136: 0 | P136: 0 | Q136: 0 | R136: 0 | S136: 0 | T136: 0 | U136: 0 | V136: 0 | W136: 0 | X136: 0 | Y136: 0 | Z136: 0 | AI136: 4.017034344 | BP136: 192.8176485
A137: 8 | B137: 50 | D137: 3.871201011 | F137: 0 | G137: 0 | H137: 0 | I137: 0 | J137: 0 | K137: 0 | L137: 0 | M137: 48 | N137: 0 | O137: 0 | P137: 0 | Q137: 0 | R137: 0 | S137: 0 | T137: 0 | U137: 0 | V137: 0 | W137: 0 | X137: 0 | Y137: 0 | Z137: 0 | AI137: 3.912867678 | BP137: 187.8176485
A138: 9 | B138: 60 | D138: 3.871201011 | F138: 0 | G138: 0 | H138: 0 | I138: 0 | J138: 0 | K138: 0 | L138: 0 | M138: 0 | N138: 48 | O138: 0 | P138: 0 | Q138: 0 | R138: 0 | S138: 0 | T138: 0 | U138: 0 | V138: 0 | W138: 0 | X138: 0 | Y138: 0 | Z138: 0 | AI138: 4.121201011 | BP138: 197.8176485
A139: 10 | B139: 35 | D139: 3.871201011 | F139: 0 | G139: 0 | H139: 0 | I139: 0 | J139: 0 | K139: 0 | L139: 0 | M139: 0 | N139: 0 | O139: 48 | P139: 0 | Q139: 0 | R139: 0 | S139: 0 | T139: 0 | U139: 0 | V139: 0 | W139: 0 | X139: 0 | Y139: 0 | Z139: 0 | AI139: 3.600367678 | BP139: 172.8176485
A140: 11 | B140: 40 | D140: 3.871201011 | F140: =IF($A140=F$4,IF($B140<0,-(EXP(-$D140)^(2-$H$1)),IF($B140=0,0,EXP($D140)^(2-$H$1))),0) -> 0 | G140: 0 | H140: 0 | I140: 0 | J140: 0 | K140: 0 | L140: 0 | M140: 0 | N140: 0 | O140: 0 | P140: =IF($A140=P$4,IF($B140<0,-(EXP(-$D140)^(2-$H$1)),IF($B140=0,0,EXP($D140)^(2-$H$1))),0) -> 48 | Q140: 0 | R140: 0 | S140: 0 | T140: 0 | U140: 0 | V140: 0 | W140: 0 | X140: 0 | Y140: 0 | Z140: 0 | AI140: 3.704534344 | BP140: 177.8176485
A141: 12 | B141: 20 | D141: 3.113515309 | F141: 0 | G141: 0 | H141: 0 | I141: 0 | J141: 0 | K141: 0 | L141: 0 | M141: 0 | N141: 0 | O141: 0 | P141: 0 | Q141: 22.5 | R141: 0 | S141: 0 | T141: 0 | U141: 0 | V141: 0 | W141: 0 | X141: 0 | Y141: 0 | Z141: 0 | AI141: 3.002404198 | BP141: 67.55409446
A142: 13 | B142: 15 | D142: 3.113515309 | F142: 0 | G142: 0 | H142: 0 | I142: 0 | J142: 0 | K142: 0 | L142: 0 | M142: 0 | N142: 0 | O142: 0 | P142: 0 | Q142: 0 | R142: 22.5 | S142: 0 | T142: 0 | U142: 0 | V142: 0 | W142: 0 | X142: 0 | Y142: 0 | Z142: 0 | AI142: 2.780181976 | BP142: 62.55409446
A143: 14 | B143: 25 | D143: 3.113515309 | F143: 0 | G143: 0 | H143: 0 | I143: 0 | J143: 0 | K143: 0 | L143: 0 | M143: 0 | N143: 0 | O143: 0 | P143: 0 | Q143: 0 | R143: 0 | S143: 22.5 | T143: 0 | U143: 0 | V143: 0 | W143: 0 | X143: 0 | Y143: 0 | Z143: 0 | AI143: 3.22462642 | BP143: 72.55409446
A144: 15 | B144: 30 | D144: 3.113515309 | F144: 0 | G144: 0 | H144: 0 | I144: 0 | J144: 0 | K144: 0 | L144: 0 | M144: 0 | N144: 0 | O144: 0 | P144: 0 | Q144: 0 | R144: 0 | S144: 0 | T144: 22.5 | U144: 0 | V144: 0 | W144: 0 | X144: 0 | Y144: 0 | Z144: 0 | AI144: 3.446848643 | BP144: 77.55409446
A145: 16 | B145: 30 | D145: 3.283414346 | F145: 0 | G145: 0 | H145: 0 | I145: 0 | J145: 0 | K145: 0 | L145: 0 | M145: 0 | N145: 0 | O145: 0 | P145: 0 | Q145: 0 | R145: 0 | S145: 0 | T145: 0 | U145: 26.66666667 | V145: 0 | W145: 0 | X145: 0 | Y145: 0 | Z145: 0 | AI145: 3.408414346 | BP145: 90.89104923
A146: 17 | B146: 30 | D146: 3.283414346 | F146: 0 | G146: 0 | H146: 0 | I146: 0 | J146: 0 | K146: 0 | L146: 0 | M146: 0 | N146: 0 | O146: 0 | P146: 0 | Q146: 0 | R146: 0 | S146: 0 | T146: 0 | U146: 0 | V146: 26.66666667 | W146: 0 | X146: 0 | Y146: 0 | Z146: 0 | AI146: 3.408414346 | BP146: 90.89104923
A147: 18 | B147: 20 | D147: 3.283414346 | F147: 0 | G147: 0 | H147: 0 | I147: 0 | J147: 0 | K147: 0 | L147: 0 | M147: 0 | N147: 0 | O147: 0 | P147: 0 | Q147: 0 | R147: 0 | S147: 0 | T147: 0 | U147: 0 | V147: 0 | W147: 26.66666667 | X147: 0 | Y147: 0 | Z147: 0 | AI147: 3.033414346 | BP147: 80.89104923
A148: 19 | B148: 15 | D148: 2.302585093 | F148: 0 | G148: 0 | H148: 0 | I148: 0 | J148: 0 | K148: 0 | L148: 0 | M148: 0 | N148: 0 | O148: 0 | P148: 0 | Q148: 0 | R148: 0 | S148: 0 | T148: 0 | U148: 0 | V148: 0 | W148: 0 | X148: 10 | Y148: 0 | Z148: 0 | AI148: 2.802585093 | BP148: 28.02585093
A149: 20 | B149: 5 | D149: 2.302585093 | F149: 0 | G149: 0 | H149: 0 | I149: 0 | J149: 0 | K149: 0 | L149: 0 | M149: 0 | N149: 0 | O149: 0 | P149: 0 | Q149: 0 | R149: 0 | S149: 0 | T149: 0 | U149: 0 | V149: 0 | W149: 0 | X149: 0 | Y149: 10 | Z149: 0 | AI149: 1.802585093 | BP149: 18.02585093
A150: 21 | B150: 5 | D150: 1.609437912 | F150: 0 | G150: 0 | H150: 0 | I150: 0 | J150: 0 | K150: 0 | L150: 0 | M150: 0 | N150: 0 | O150: 0 | P150: 0 | Q150: 0 | R150: 0 | S150: 0 | T150: 0 | U150: 0 | V150: 0 | W150: 0 | X150: 0 | Y150: 0 | Z150: 5 | AI150: 1.609437912 | BP150: 8.047189562

Sheet Diagnostics
A1: Residual Graphs | AC1: =AVERAGE(AJ5:AJ25) -> -0.03764616262 | AD1: =STDEV(AJ5:AJ25) -> 1.429227883
AC2: Normal RSS Calc | AF2: Normality for Pearson Residuals
W3: Exposure | X3: Develop | Y3: Calendar | Z3: Fitted | AC3: Scaled
W4: Offset | X4: Offset | Y4: Period | Z4: Values | AA4: Residual | AC4: Normal | AD4: Difference | AF4: Rank | AG4: Order | AH4: Percentile | AI4: PhiInv | AJ4: Sort | AK4: R2
V5: 1 | W5: 1 | X5: 0 | Y5: =IF(W5="","",W5+X5-1) -> 0 | Z5: =IF(W5="","",OFFSET(Data!$N$77,W5,X5)) -> 114.1666667 | AA5: =IF(W5="","",OFFSET(Data!$N$104,W5,X5)) -> -1.965022613 | AC5: =IF(AH5="","",NORMINV(AH5,$AC$1,$AD$1)) -> -2.738186483 | AD5: =IF(AC5="","",AJ5-AC5) -> 0.502118506 | AF5: =IF(AA5="","",RANK(AA5,ResidY1Values,1)) -> 3 | AG5: =IF(W5="","",V5) -> 1 | AH5: =IF(W5="","",(AG5-0.375)/(Data!$P$113+0.25)) -> 0.02941176471 | AI5: =IF(W5="","",NORMINV(AH5,0,1)) -> -1.88950996 | AJ5: =IF(AA5="","",IF(ISERROR(MATCH(AG5,AF$5:AF$25,0)),0,OFFSET(AA$4,MATCH(AG5,AF$5:AF$25,0),0))) -> -2.236067977 | AK5: =CORREL(NormXValues,NormYValues)^2 -> 0.9444325357 | AM5: u | AN5: =LN(Data!$P$113) -> 3.044522438
V6: 2 | W6: 2 | X6: 0 | Y6: =IF(W6="","",W6+X6-1) -> 1 | Z6: =IF(W6="","",OFFSET(Data!$N$77,W6,X6)) -> 114.1666667 | AA6: =IF(W6="","",OFFSET(Data!$N$104,W6,X6)) -> -0.4271788289 | AC6: =IF(AH6="","",NORMINV(AH6,$AC$1,$AD$1)) -> -2.080326415 | AD6: =IF(AC6="","",AJ6-AC6) -> -0.01753956423 | AF6: 9 | AG6: =IF(W6="","",V6) -> 2 | AH6: =IF(W6="","",(AG6-0.375)/(Data!$P$113+0.25)) -> 0.07647058824 | AI6: =IF(W6="","",NORMINV(AH6,0,1)) -> -1.429219424 | AJ6: =IF(AA6="","",IF(ISERROR(MATCH(AG6,AF$5:AF$25,0)),0,OFFSET(AA$4,MATCH(AG6,AF$5:AF$25,0),0))) -> -2.097865979 | AM6: v | AN6: =LN(AN5) -> 1.113344054
V7: 3 | W7: 3 | X7: 0 | Y7: 2 | Z7: =IF(W7="","",OFFSET(Data!$N$77,W7,X7)) -> 114.1666667 | AA7: =IF(W7="","",OFFSET(Data!$N$104,W7,X7)) -> -0.9397934235 | AC7: -1.692010045 | AD7: -0.2730125676 | AF7: 7 | AG7: 3 | AH7: =IF(W7="","",(AG7-0.375)/(Data!$P$113+0.25)) -> 0.1235294118 | AI7: -1.157522815 | AJ7: -1.965022613 | AM7: Mu | AN7: =-1.2725+1.0521*(AN6-AN5) -> -3.304292778
V8: 4 | W8: 4 | X8: 0 | Y8: 3 | Z8: =IF(W8="","",OFFSET(Data!$N$77,W8,X8)) -> 114.1666667 | AA8: =IF(W8="","",OFFSET(Data!$N$104,W8,X8)) -> 0.5980503604 | AC8: -1.398047114 | AD8: -0.4276947447 | AF8: 12 | AG8: 4 | AH8: =IF(W8="","",(AG8-0.375)/(Data!$P$113+0.25)) -> 0.1705882353 | AI8: -0.9518432764 | AJ8: -1.825741858 | AM8: Sigma | AN8: =1.0308-0.26758*(AN6+2/AN5) -> 0.5571134194
V9: 5 | W9: 5 | X9: 0 | Y9: 4 | Z9: =IF(W9="","",OFFSET(Data!$N$77,W9,X9)) -> 114.1666667 | AA9: =IF(W9="","",OFFSET(Data!$N$104,W9,X9)) -> 1.62327955 | AC9: -1.152678867 | AD9: -0.4284599627 | AF9: 18 | AG9: 5 | AH9: =IF(W9="","",(AG9-0.375)/(Data!$P$113+0.25)) -> 0.2176470588 | AI9: -0.7801643936 | AJ9: -1.58113883 | AM9: z | AN9: =(LN(1-AK5)-AN7)/AN8 -> 0.7433591424
V10: 6 | W10: 6 | X10: 0 | Y10: 5 | Z10: =IF(W10="","",OFFSET(Data!$N$77,W10,X10)) -> 114.1666667 | AA10: =IF(W10="","",OFFSET(Data!$N$104,W10,X10)) -> 1.110664955 | AC10: -0.9364936063 | AD10: -0.3545008424 | AF10: 16 | AG10: 6 | AH10: =IF(W10="","",(AG10-0.375)/(Data!$P$113+0.25)) -> 0.2647058824 | AI10: -0.6289042176 | AJ10: -1.290994449 | AM10: p-Value | AN10: =1-NORMSDIST(AN9) -> 0.2286321369
V11: 7 | W11: 1 | X11: 1 | Y11: 1 | Z11: =IF(W11="","",OFFSET(Data!$N$77,W11,X11)) -> 48 | AA11: =IF(W11="","",OFFSET(Data!$N$104,W11,X11)) -> 1.129620143 | AC11: -0.7391889963 | AD11: -0.2006044272 | AF11: 17 | AG11: 7 | AH11: =IF(W11="","",(AG11-0.375)/(Data!$P$113+0.25)) -> 0.3117647059 | AI11: -0.490854427 | AJ11: -0.9397934235
V12: 8 | W12: 2 | X12: 1 | Y12: 2 | Z12: =IF(W12="","",OFFSET(Data!$N$77,W12,X12)) -> 48 | AA12: =IF(W12="","",OFFSET(Data!$N$104,W12,X12)) -> 0.3227486122 | AC12: -0.5544624343 | AD12: -0.05411818515 | AF12: 11 | AG12: 8 | AH12: =IF(W12="","",(AG12-0.375)/(Data!$P$113+0.25)) -> 0.3588235294 | AI12: -0.361605226 | AJ12: -0.6085806195
V13: 9 | W13: 3 | X13: 1 | Y13: 3 | Z13: =IF(W13="","",OFFSET(Data!$N$77,W13,X13)) -> 48 | AA13: =IF(W13="","",OFFSET(Data!$N$104,W13,X13)) -> 1.936491673 | AC13: -0.3780168748 | AD13: -0.04916195406 | AF13: 20 | AG13: 9 | AH13: =IF(W13="","",(AG13-0.375)/(Data!$P$113+0.25)) -> 0.4058823529 | AI13: -0.2381500642 | AJ13: -0.4271788289
V14: 10 | W14: 4 | X14: 1 | Y14: 4 | Z14: =IF(W14="","",OFFSET(Data!$N$77,W14,X14)) -> 48 | AA14: =IF(W14="","",OFFSET(Data!$N$104,W14,X14)) -> -2.097865979 | AC14: -0.2066293079 | AD14: 0.2066293079 | AF14: 2 | AG14: 10 | AH14: =IF(W14="","",(AG14-0.375)/(Data!$P$113+0.25)) -> 0.4529411765 | AI14: -0.1182338711 | AJ14: 0
V15: 11 | W15: 5 | X15: 1 | Y15: 5 | Z15: =IF(W15="","",OFFSET(Data!$N$77,W15,X15)) -> 48 | AA15: =IF(W15="","",OFFSET(Data!$N$104,W15,X15)) -> -1.290994449 | AC15: -0.03764616262 | AD15: 0.3603947748 | AF15: 6 | AG15: 11 | AH15: =IF(W15="","",(AG15-0.375)/(Data!$P$113+0.25)) -> 0.5 | AI15: 0 | AJ15: 0.3227486122
V16: 12 | W16: 1 | X16: 2 | Y16: 2 | Z16: =IF(W16="","",OFFSET(Data!$N$77,W16,X16)) -> 22.5 | AA16: =IF(W16="","",OFFSET(Data!$N$104,W16,X16)) -> -0.6085806195 | AC16: 0.1313369826 | AD16: 0.4667133778 | AF16: 8 | AG16: 12 | AH16: =IF(W16="","",(AG16-0.375)/(Data!$P$113+0.25)) -> 0.5470588235 | AI16: 0.1182338711 | AJ16: 0.5980503604
V17: 13 | W17: 2 | X17: 2 | Y17: 3 | Z17: =IF(W17="","",OFFSET(Data!$N$77,W17,X17)) -> 22.5 | AA17: =IF(W17="","",OFFSET(Data!$N$104,W17,X17)) -> -1.825741858 | AC17: 0.3027245496 | AD17: 0.3058560699 | AF17: 4 | AG17: 13 | AH17: =IF(W17="","",(AG17-0.375)/(Data!$P$113+0.25)) -> 0.5941176471 | AI17: 0.2381500642 | AJ17: 0.6085806195
V18: 14 | W18: 3 | X18: 2 | Y18: 4 | Z18: =IF(W18="","",OFFSET(Data!$N$77,W18,X18)) -> 22.5 | AA18: =IF(W18="","",OFFSET(Data!$N$104,W18,X18)) -> 0.6085806195 | AC18: 0.4791701091 | AD18: 0.311399306 | AF18: 13 | AG18: 14 | AH18: =IF(W18="","",(AG18-0.375)/(Data!$P$113+0.25)) -> 0.6411764706 | AI18: 0.361605226 | AJ18: 0.790569415
V19: 15 | W19: 4 | X19: 2 | Y19: 5 | Z19: =IF(W19="","",OFFSET(Data!$N$77,W19,X19)) -> 22.5 | AA19: =IF(W19="","",OFFSET(Data!$N$104,W19,X19)) -> 1.825741858 | AC19: 0.663896671 | AD19: -0.663896671 | AF19: 19 | AG19: 15 | AH19: =IF(W19="","",(AG19-0.375)/(Data!$P$113+0.25)) -> 0.6882352941 | AI19: 0.490854427 | AJ19: 0
V20: 16 | W20: 1 | X20: 3 | Y20: 3 | Z20: =IF(W20="","",OFFSET(Data!$N$77,W20,X20)) -> 26.66666667 | AA20: =IF(W20="","",OFFSET(Data!$N$104,W20,X20)) -> 0.790569415 | AC20: 0.8612012811 | AD20: 0.249463674 | AF20: 14 | AG20: 16 | AH20: =IF(W20="","",(AG20-0.375)/(Data!$P$113+0.25)) -> 0.7352941176 | AI20: 0.6289042176 | AJ20: 1.110664955
V21: 17 | W21: 2 | X21: 3 | Y21: 4 | Z21: =IF(W21="","",OFFSET(Data!$N$77,W21,X21)) -> 26.66666667 | AA21: =IF(W21="","",OFFSET(Data!$N$104,W21,X21)) -> 0.790569415 | AC21: 1.077386542 | AD21: 0.05223360047 | AF21: 14 | AG21: 17 | AH21: =IF(W21="","",(AG21-0.375)/(Data!$P$113+0.25)) -> 0.7823529412 | AI21: 0.7801643936 | AJ21: 1.129620143
V22: 18 | W22: 3 | X22: 3 | Y22: 5 | Z22: =IF(W22="","",OFFSET(Data!$N$77,W22,X22)) -> 26.66666667 | AA22: =IF(W22="","",OFFSET(Data!$N$104,W22,X22)) -> -1.58113883 | AC22: 1.322754788 | AD22: 0.3005247612 | AF22: 5 | AG22: 18 | AH22: =IF(W22="","",(AG22-0.375)/(Data!$P$113+0.25)) -> 0.8294117647 | AI22: 0.9518432764 | AJ22: 1.62327955
V23: 19 | W23: 1 | X23: 4 | Y23: 4 | Z23: =IF(W23="","",OFFSET(Data!$N$77,W23,X23)) -> 10 | AA23: =IF(W23="","",OFFSET(Data!$N$104,W23,X23)) -> 2.236067977 | AC23: 1.61671772 | AD23: 0.2090241384 | AF23: 21 | AG23: 19 | AH23: =IF(W23="","",(AG23-0.375)/(Data!$P$113+0.25)) -> 0.8764705882 | AI23: 1.157522815 | AJ23: 1.825741858
V24: 20 | W24: 2 | X24: 4 | Y24: 5 | Z24: =IF(W24="","",OFFSET(Data!$N$77,W24,X24)) -> 10 | AA24: =IF(W24="","",OFFSET(Data!$N$104,W24,X24)) -> -2.236067977 | AC24: 2.00503409 | AD24: -0.06854241662 | AF24: 1 | AG24: 20 | AH24: =IF(W24="","",(AG24-0.375)/(Data!$P$113+0.25)) -> 0.9235294118 | AI24: 1.429219424 | AJ24: 1.936491673
V25: 21 | W25: 1 | X25: 5 | Y25: 5 | Z25: =IF(W25="","",OFFSET(Data!$N$77,W25,X25)) -> 5 | AA25: =IF(W25="","",OFFSET(Data!$N$104,W25,X25)) -> 0 | AC25: 2.662894158 | AD25: -0.4268261807 | AF25: 10 | AG25: 21 | AH25: =IF(W25="","",(AG25-0.375)/(Data!$P$113+0.25)) -> 0.9705882353 | AI25: 1.88950996 | AJ25: 2.236067977
AC27: RSS | AD27: =SUMSQ(AD5:AD25) -> 2.272248928 | AI27: Linear Regression
V28: Mean Residuals | AC28: AIC | AD28: =2*(Data!R113)+Data!P113*(LN(2*PI()*AD27/Data!P113)+1) -> 24.89661843 | AI28: =LINEST(NormYValues,NormXValues,TRUE,TRUE) -> 1.439861173 | AJ28: -0.03764616262
A29: Normality Plot | V29: Exposure | W29: Residual | X29: Develop | Y29: Residual | Z29: Calendar | AA29: Residual | AC29: BIC | AD29: =Data!P113*LN(AD27/Data!P113)+(Data!R113*LN(Data!P113)) -> -28.43166534 | AI29: 0.08012511021 | AJ29: 0.07542934211
V30: 1 | W30: =IF(V30="","",SUMIF(ResidX2Values,V30,ResidY1Values)/COUNTIF(ResidX2Values,V30)) -> 0.2637757172 | X30: 0 | Y30: =IF(X30="","",SUMIF(ResidX1Values,X30,ResidY1Values)/COUNTIF(ResidX1Values,X30)) -> 2.283358687e-14 | Z30: 0 | AA30: =IF(Z30="","",SUMIF(ResidX3Values,Z30,ResidY1Values)/COUNTIF(ResidX3Values,Z30)) -> -1.965022613 | AI30: 0.9444325357 | AJ30: 0.3456606698
V31: 2 | W31: -0.6751341275 | X31: 1 | Y31: =IF(X31="","",SUMIF(ResidX1Values,X31,ResidY1Values)/COUNTIF(ResidX1Values,X31)) -> 1.261213356e-14 | Z31: 1 | AA31: 0.3512206569 | AI31: 322.9267056 | AJ31: 19
V32: 3 | W32: 0.006035009745 | X32: 2 | Y32: =IF(X32="","",SUMIF(ResidX1Values,X32,ResidY1Values)/COUNTIF(ResidX1Values,X32)) -> -2.331468352e-14 | Z32: 2 | AA32: -0.4085418103 | AI32: 38.58370217 | AJ32: 2.270144675
V33: 4 | W33: 0.1086420799 | X33: 3 | Y33: =IF(X33="","",SUMIF(ResidX1Values,X33,ResidY1Values)/COUNTIF(ResidX1Values,X33)) -> 9.843977485e-15 | Z33: 3 | AA33: 0.3748423975
V34: 5 | W34: 0.1661425505 | X34: 4 | Y34: =IF(X34="","",SUMIF(ResidX1Values,X34,ResidY1Values)/COUNTIF(ResidX1Values,X34)) -> -4.662936703e-15 | Z34: 4 | AA34: 0.6321263165 | AI34: Line of best fit
V35: 6 | W35: 1.110664955 | Z35: 5 | AA35: -0.3619657405 | AI35: -3 | AJ35: =AI35*AI$28+AJ$28 -> -4.357229683
AI36: 3 | AJ36: =AI36*AI$28+AJ$28 -> 4.281937358
A45: ="N = "&TEXT(Data!$P$113,"0") -> N = 21 | C45: ="p-Value = "&TEXT(AN10,"0.0%") -> p-Value = 22.9% | F45: R2 = | G45: =AK5 -> 0.9444325357
A46: ="Normal: MU = "&TEXT(AC1,"0.00")&", Sigma = "&TEXT(AD1,"0.00") -> Normal: MU = -0.04, Sigma = 1.43 | G46: ="AIC = "&TEXT(AD28,"0.0")&", BIC = "&TEXT(AD29,"0.0") -> AIC = 24.9, BIC = -28.4

Sheet Hat Matrix
A1: Weight Matrix
A2: =Data!N78 -> 114.1666667 | B2: 0 | C2: 0 | D2: 0 | E2: 0 | F2: 0 | G2: 0 | H2: 0 | I2: 0 | J2: 0 | K2: 0 | L2: 0 | M2: 0 | N2: 0 | O2: 0 | P2: 0 | Q2: 0 | R2: 0 | S2: 0 | T2: 0 | U2: 0
A3: 0 | B3: =Data!N79 -> 114.1666667 | C3: 0 | D3: 0 | E3: 0 | F3: 0 | G3: 0 | H3: 0 | I3: 0 | J3: 0 | K3: 0 | L3: 0 | M3: 0 | N3: 0 | O3: 0 | P3: 0 | Q3: 0 | R3: 0 | S3: 0 | T3: 0 | U3: 0
A4: 0 | B4: 0 | C4: =Data!N80 -> 114.1666667 | D4: 0 | E4: 0 | F4: 0 | G4: 0 | H4: 0 | I4: 0 | J4: 0 | K4: 0 | L4: 0 | M4: 0 | N4: 0 | O4: 0 | P4: 0 | Q4: 0 | R4: 0 | S4: 0 | T4: 0 | U4: 0
A5: 0 | B5: 0 | C5: 0 | D5: =Data!N81 -> 114.1666667 | E5: 0 | F5: 0 | G5: 0 | H5: 0 | I5: 0 | J5: 0 | K5: 0 | L5: 0 | M5: 0 | N5: 0 | O5: 0 | P5: 0 | Q5: 0 | R5: 0 | S5: 0 | T5: 0 | U5: 0
A6: 0 | B6: 0 | C6: 0 | D6: 0 | E6: =Data!N82 -> 114.1666667 | F6: 0 | G6: 0 | H6: 0 | I6: 0 | J6: 0 | K6: 0 | L6: 0 | M6: 0 | N6: 0 | O6: 0 | P6: 0 | Q6: 0 | R6: 0 | S6: 0 | T6: 0 | U6: 0
A7: 0 | B7: 0 | C7: 0 | D7: 0 | E7: 0 | F7: =Data!N83 -> 114.1666667 | G7: 0 | H7: 0 | I7: 0 | J7: 0 | K7: 0 | L7: 0 | M7: 0 | N7: 0 | O7: 0 | P7: 0 | Q7: 0 | R7: 0 | S7: 0 | T7: 0 | U7: 0
A8: 0 | B8: 0 | C8: 0 | D8: 0 | E8: 0 | F8: 0 | G8: =Data!O78 -> 48 | H8: 0 | I8: 0 | J8: 0 | K8: 0 | L8: 0 | M8: 0 | N8: 0 | O8: 0 | P8: 0 | Q8: 0 | R8: 0 | S8: 0 | T8: 0 | U8: 0
A9: 0 | B9: 0 | C9: 0 | D9: 0 | E9: 0 | F9: 0 | G9: 0 | H9: =Data!O79 -> 48 | I9: 0 | J9: 0 | K9: 0 | L9: 0 | M9: 0 | N9: 0 | O9: 0 | P9: 0 | Q9: 0 | R9: 0 | S9: 0 | T9: 0 | U9: 0
A10: 0 | B10: 0 | C10: 0 | D10: 0 | E10: 0 | F10: 0 | G10: 0 | H10: 0 | I10: =Data!O80 -> 48 | J10: 0 | K10: 0 | L10: 0 | M10: 0 | N10: 0 | O10: 0 | P10: 0 | Q10: 0 | R10: 0 | S10: 0 | T10: 0 | U10: 0
A11: 0 | B11: 0 | C11: 0 | D11: 0 | E11: 0 | F11: 0 | G11: 0 | H11: 0 | I11: 0 | J11: =Data!O81 -> 48 | K11: 0 | L11: 0 | M11: 0 | N11: 0 | O11: 0 | P11: 0 | Q11: 0 | R11: 0 | S11: 0 | T11: 0 | U11: 0
A12: 0 | B12: 0 | C12: 0 | D12: 0 | E12: 0 | F12: 0 | G12: 0 | H12: 0 | I12: 0 | J12: 0 | K12: =Data!O82 -> 48 | L12: 0 | M12: 0 | N12: 0 | O12: 0 | P12: 0 | Q12: 0 | R12: 0 | S12: 0 | T12: 0 | U12: 0
A13: 0 | B13: 0 | C13: 0 | D13: 0 | E13: 0 | F13: 0 | G13: 0 | H13: 0 | I13: 0 | J13: 0 | K13: 0 | L13: =Data!P78 -> 22.5 | M13: 0 | N13: 0 | O13: 0 | P13: 0 | Q13: 0 | R13: 0 | S13: 0 | T13: 0 | U13: 0
A14: 0 | B14: 0 | C14: 0 | D14: 0 | E14: 0 | F14: 0 | G14: 0 | H14: 0 | I14: 0 | J14: 0 | K14: 0 | L14: 0 | M14: =Data!P79 -> 22.5 | N14: 0 | O14: 0 | P14: 0 | Q14: 0 | R14: 0 | S14: 0 | T14: 0 | U14: 0
A15: 0 | B15: 0 | C15: 0 | D15: 0 | E15: 0 | F15: 0 | G15: 0 | H15: 0 | I15: 0 | J15: 0 | K15: 0 | L15: 0 | M15: 0 | N15: =Data!P80 -> 22.5 | O15: 0 | P15: 0 | Q15: 0 | R15: 0 | S15: 0 | T15: 0 | U15: 0
A16: 0 | B16: 0 | C16: 0 | D16: 0 | E16: 0 | F16: 0 | G16: 0 | H16: 0 | I16: 0 | J16: 0 | K16: 0 | L16: 0 | M16: 0 | N16: 0 | O16: =Data!P81 -> 22.5 | P16: 0 | Q16: 0 | R16: 0 | S16: 0 | T16: 0 | U16: 0
A17: 0 | B17: 0 | C17: 0 | D17: 0 | E17: 0 | F17: 0 | G17: 0 | H17: 0 | I17: 0 | J17: 0 | K17: 0 | L17: 0 | M17: 0 | N17: 0 | O17: 0 | P17: =Data!Q78 -> 26.66666667 | Q17: 0 | R17: 0 | S17: 0 | T17: 0 | U17: 0
A18: 0 | B18: 0 | C18: 0 | D18: 0 | E18: 0 | F18: 0 | G18: 0 | H18: 0 | I18: 0 | J18: 0 | K18: 0 | L18: 0 | M18: 0 | N18: 0 | O18: 0 | P18: 0 | Q18: =Data!Q79 -> 26.66666667 | R18: 0 | S18: 0 | T18: 0 | U18: 0
A19: 0 | B19: 0 | C19: 0 | D19: 0 | E19: 0 | F19: 0 | G19: 0 | H19: 0 | I19: 0 | J19: 0 | K19: 0 | L19: 0 | M19: 0 | N19: 0 | O19: 0 | P19: 0 | Q19: 0 | R19: =Data!Q80 -> 26.66666667 | S19: 0 | T19: 0 | U19: 0
A20: 0 | B20: 0 | C20: 0 | D20: 0 | E20: 0 | F20: 0 | G20: 0 | H20: 0 | I20: 0 | J20: 0 | K20: 0 | L20: 0 | M20: 0 | N20: 0 | O20: 0 | P20: 0 | Q20: 0 | R20: 0 | S20: =Data!R78 -> 10 | T20: 0 | U20: 0
A21: 0 | B21: 0 | C21: 0 | D21: 0 | E21: 0 | F21: 0 | G21: 0 | H21: 0 | I21: 0 | J21: 0 | K21: 0 | L21: 0 | M21: 0 | N21: 0 | O21: 0 | P21: 0 | Q21: 0 | R21: 0 | S21: 0 | T21: =Data!R79 -> 10 | U21: 0
A22: 0 | B22: 0 | C22: 0 | D22: 0 | E22: 0 | F22: 0 | G22: 0 | H22: 0 | I22: 0 | J22: 0 | K22: 0 | L22: 0 | M22: 0 | N22: 0 | O22: 0 | P22: 0 | Q22: 0 | R22: 0 | S22: 0 | T22: 0 | U22: =Data!S78 -> 5
A24: Hat Matrix
A25: =MMULT(MMULT(MMULT(DesignMatrix,MINVERSE(MMULT(MMULT(TRANSPOSE(DesignMatrix),WeightMatrix),DesignMatrix))),TRANSPOSE(DesignMatrix)),WeightMatrix) -> 0.1666666667 | B25: 0.1666666667 | C25: 0.1666666667 | D25: 0.1666666667 | E25: 0.1666666667 | F25: 0.1666666667 | G25: 2.081668171e-17 | H25: 2.081668171e-17 | I25: 2.081668171e-17 | J25: 2.081668171e-17 | K25: 2.081668171e-17 | L25: 9.757819552e-18 | M25: 9.757819552e-18 | N25: 9.757819552e-18 | O25: 9.757819552e-18 | P25: 1.879283766e-17 | Q25: 1.879283766e-17 | R25: 1.879283766e-17 | S25: 5.808225924e-18 | T25: 5.808225924e-18 | U25: 2.904112962e-18
A26: 0.1666666667 | B26: 0.1666666667 | C26: 0.1666666667 | D26: 0.1666666667 | E26: 0.1666666667 | F26: 0.1666666667 | G26: 2.081668171e-17 | H26: 2.081668171e-17 | I26: 2.081668171e-17 | J26: 2.081668171e-17 | K26: 2.081668171e-17 | L26: 9.757819552e-18 | M26: 9.757819552e-18 | N26: 9.757819552e-18 | O26: 9.757819552e-18 | P26: 1.879283766e-17 | Q26: 1.879283766e-17 | R26: 1.879283766e-17 | S26: 5.808225924e-18 | T26: 5.808225924e-18 | U26: 2.904112962e-18
A27: 0.1666666667 | B27: 0.1666666667 | C27: 0.1666666667 | D27: 0.1666666667 | E27: 0.1666666667 | F27: 0.1666666667 | G27: 2.081668171e-17 | H27: 2.081668171e-17 | I27: 2.081668171e-17 | J27: 2.081668171e-17 | K27: 2.081668171e-17 | L27: 9.757819552e-18 | M27: 9.757819552e-18 | N27: 9.757819552e-18 | O27: 9.757819552e-18 | P27: 1.879283766e-17 | Q27: 1.879283766e-17 | R27: 1.879283766e-17 | S27: 5.808225924e-18 | T27: 5.808225924e-18 | U27: 2.904112962e-18
A28: 0.1666666667 | B28: 0.1666666667 | C28: 0.1666666667 | D28: 0.1666666667 | E28: 0.1666666667 | F28: 0.1666666667 | G28: 2.081668171e-17 | H28: 2.081668171e-17 | I28: 2.081668171e-17 | J28: 2.081668171e-17 | K28: 2.081668171e-17 | L28: 9.757819552e-18 | M28: 9.757819552e-18 | N28: 9.757819552e-18 | O28: 9.757819552e-18 | P28: 1.879283766e-17 | Q28: 1.879283766e-17 | R28: 1.879283766e-17 | S28: 5.808225924e-18 | T28: 5.808225924e-18 | U28: 2.904112962e-18
A29: 0.1666666667 | B29: 0.1666666667 | C29: 0.1666666667 | D29: 0.1666666667 | E29: 0.1666666667 | F29: 0.1666666667 | G29: 2.081668171e-17 | H29: 2.081668171e-17 | I29: 2.081668171e-17 | J29: 2.081668171e-17 | K29: 2.081668171e-17 | L29: 9.757819552e-18 | M29: 9.757819552e-18 | N29: 9.757819552e-18 | O29: 9.757819552e-18 | P29: 1.879283766e-17 | Q29: 1.879283766e-17 | R29: 1.879283766e-17 | S29: 5.808225924e-18 | T29: 5.808225924e-18 | U29: 2.904112962e-18
A30: 0.1666666667 | B30: 0.1666666667 | C30: 0.1666666667 | D30: 0.1666666667 | E30: 0.1666666667 | F30: 0.1666666667 | G30: 2.081668171e-17 | H30: 2.081668171e-17 | I30: 2.081668171e-17 | J30: 2.081668171e-17 | K30: 2.081668171e-17 | L30: 9.757819552e-18 | M30: 9.757819552e-18 | N30: 9.757819552e-18 | O30: 9.757819552e-18 | P30: 1.879283766e-17 | Q30: 1.879283766e-17 | R30: 1.879283766e-17 | S30: 5.808225924e-18 | T30: 5.808225924e-18 | U30: 2.904112962e-18
A31: 2.475594961e-17 | B31: 2.475594961e-17 | C31: 2.475594961e-17 | D31: 2.475594961e-17 | E31: 2.475594961e-17 | F31: 2.475594961e-17 | G31: 0.2 | H31: 0.2 | I31: 0.2 | J31: 0.2 | K31: 0.2 | L31: -1.95156391e-17 | M31: -1.95156391e-17 | N31: -1.95156391e-17 | O31: -1.95156391e-17 | P31: -3.656248585e-17 | Q31: -3.656248585e-17 | R31: -3.656248585e-17 | S31: -5.560769542e-18 | T31: -5.560769542e-18 | U31: -4.86688496e-18
A32: 2.475594961e-17 | B32: 2.475594961e-17 | C32: 2.475594961e-17 | D32: 2.475594961e-17 | E32: 2.475594961e-17 | F32: 2.475594961e-17 | G32: 0.2 | H32: 0.2 | I32: 0.2 | J32: 0.2 | K32: 0.2 | L32: -1.95156391e-17 | M32: -1.95156391e-17 | N32: -1.95156391e-17 | O32: -1.95156391e-17 | P32: -3.656248585e-17 | Q32: -3.656248585e-17 | R32: -3.656248585e-17 | S32: -5.560769542e-18 | T32: -5.560769542e-18 | U32: -4.86688496e-18
A33: 2.475594961e-17 | B33: 2.475594961e-17 | C33: 2.475594961e-17 | D33: 2.475594961e-17 | E33: 2.475594961e-17 | F33: 2.475594961e-17 | G33: 0.2 | H33: 0.2 | I33: 0.2 | J33: 0.2 | K33: 0.2 | L33: -1.95156391e-17 | M33: -1.95156391e-17 | N33: -1.95156391e-17 | O33: -1.95156391e-17 | P33: -3.656248585e-17 | Q33: -3.656248585e-17 | R33: -3.656248585e-17 | S33: -5.560769542e-18 | T33: -5.560769542e-18 | U33: -4.86688496e-18
A34: 2.475594961e-17 | B34: 2.475594961e-17 | C34: 2.475594961e-17 | D34: 2.475594961e-17 | E34: 2.475594961e-17 | F34: 2.475594961e-17 | G34: 0.2 | H34: 0.2 | I34: 0.2 | J34: 0.2 | K34: 0.2 | L34: -1.95156391e-17 | M34: -1.95156391e-17 | N34: -1.95156391e-17 | O34: -1.95156391e-17 | P34: -3.656248585e-17 | Q34: -3.656248585e-17 | R34: -3.656248585e-17 | S34: -5.560769542e-18 | T34: -5.560769542e-18 | U34: -4.86688496e-18
A35: 2.475594961e-17 | B35: 2.475594961e-17 | C35: 2.475594961e-17 | D35: 2.475594961e-17 | E35: 2.475594961e-17 | F35: 2.475594961e-17 | G35: 0.2 | H35: 0.2 | I35: 0.2 | J35: 0.2 | K35: 0.2 | L35: -1.95156391e-17 | M35: -1.95156391e-17 | N35: -1.95156391e-17 | O35: -1.95156391e-17 | P35: -3.656248585e-17 | Q35: -3.656248585e-17 | R35: -3.656248585e-17 | S35: -5.560769542e-18 | T35: -5.560769542e-18 | U35: -4.86688496e-18
A36: -2.365568518e-17 | B36: -2.365568518e-17 | C36: -2.365568518e-17 | D36: -2.365568518e-17 | E36: -2.365568518e-17 | F36: -2.365568518e-17 | G36: -9.945747929e-18 | H36: -9.945747929e-18 | I36: -9.945747929e-18 | J36: -9.945747929e-18 | K36: -9.945747929e-18 | L36: 0.25 | M36: 0.25 | N36: 0.25 | O36: 0.25 | P36: 0 | Q36: 0 | R36: 0 | S36: 4.106271448e-19 | T36: 4.106271448e-19 | U36: 3.278503722e-18
A37: -2.365568518e-17 | B37: -2.365568518e-17 | C37: -2.365568518e-17 | D37: -2.365568518e-17 | E37: -2.365568518e-17 | F37: -2.365568518e-17 | G37: -9.945747929e-18 | H37: -9.945747929e-18 | I37: -9.945747929e-18 | J37: -9.945747929e-18 | K37: -9.945747929e-18 | L37: 0.25 | M37: 0.25 | N37: 0.25 | O37: 0.25 | P37: 0 | Q37: 0 | R37: 0 | S37: 4.106271448e-19 | T37: 4.106271448e-19 | U37: 3.278503722e-18
A38: -2.365568518e-17 | B38: -2.365568518e-17 | C38: -2.365568518e-17 | D38: -2.365568518e-17 | E38: -2.365568518e-17 | F38: -2.365568518e-17 | G38: -9.945747929e-18 | H38: -9.945747929e-18 | I38: -9.945747929e-18 | J38: -9.945747929e-18 | K38: -9.945747929e-18 | L38: 0.25 | M38: 0.25 | N38: 0.25 | O38: 0.25 | P38: 0 | Q38: 0 | R38: 0 | S38: 4.106271448e-19 | T38: 4.106271448e-19 | U38: 3.278503722e-18
A39: -2.365568518e-17 | B39: -2.365568518e-17 | C39: -2.365568518e-17 | D39: -2.365568518e-17 | E39: -2.365568518e-17 | F39: -2.365568518e-17 | G39: -9.945747929e-18 | H39: -9.945747929e-18 | I39: -9.945747929e-18 | J39: -9.945747929e-18 | K39: -9.945747929e-18 | L39: 0.25 | M39: 0.25 | N39: 0.25 | O39: 0.25 | P39: 0 | Q39: 0 | R39: 0 | S39: 4.106271448e-19 | T39: 4.106271448e-19 | U39: 3.278503722e-18
A40: 1.65039664e-17 | B40: 1.65039664e-17 | C40: 1.65039664e-17 | D40: 1.65039664e-17 | E40: 1.65039664e-17 | F40: 1.65039664e-17 | G40: -6.430041684e-17 | H40: -6.430041684e-17 | I40: -6.430041684e-17 | J40: -6.430041684e-17 | K40: -6.430041684e-17 | L40: -3.01408204e-17 | M40: -3.01408204e-17 | N40: -3.01408204e-17 | O40: -3.01408204e-17 | P40: 0.3333333333 | Q40: 0.3333333333 | R40: 0.3333333333 | S40: 1.734723476e-17 | T40: 1.734723476e-17 | U40: 1.174680753e-17
A41: 1.65039664e-17 | B41: 1.65039664e-17 | C41: 1.65039664e-17 | D41: 1.65039664e-17 | E41: 1.65039664e-17 | F41: 1.65039664e-17 | G41: -6.430041684e-17 | H41: -6.430041684e-17 | I41: -6.430041684e-17 | J41: -6.430041684e-17 | K41: -6.430041684e-17 | L41: -3.01408204e-17 | M41: -3.01408204e-17 | N41: -3.01408204e-17 | O41: -3.01408204e-17 | P41: 0.3333333333 | Q41: 0.3333333333 | R41: 0.3333333333 | S41: 1.734723476e-17 | T41: 1.734723476e-17 | U41: 1.174680753e-17
A42: 1.65039664e-17 | B42: 1.65039664e-17 | C42: 1.65039664e-17 | D42: 1.65039664e-17 | E42: 1.65039664e-17 | F42: 1.65039664e-17 | G42: -6.430041684e-17 | H42: -6.430041684e-17 | I42: -6.430041684e-17 | J42: -6.430041684e-17 | K42: -6.430041684e-17 | L42: -3.01408204e-17 | M42: -3.01408204e-17 | N42: -3.01408204e-17 | O42: -3.01408204e-17 | P42: 0.3333333333 | Q42: 0.3333333333 | R42: 0.3333333333 | S42: 1.734723476e-17 | T42: 1.734723476e-17 | U42: 1.174680753e-17
A43: -8.251983202e-18 | B43: -8.251983202e-18 | C43: -8.251983202e-18 | D43: -8.251983202e-18 | E43: -8.251983202e-18 | F43: -8.251983202e-18 | G43: 4.394632806e-18 | H43: 4.394632806e-18 | I43: 4.394632806e-18 | J43: 4.394632806e-18 | K43: 4.394632806e-18 | L43: -1.745565498e-17 | M43: -1.745565498e-17 | N43: -1.745565498e-17 | O43: -1.745565498e-17 | P43: 7.183040171e-17 | Q43: 7.183040171e-17 | R43: 7.183040171e-17 | S43: 0.5 | T43: 0.5 | U43: -3.469446952e-17
A44: -8.251983202e-18 | B44: -8.251983202e-18 | C44: -8.251983202e-18 | D44: -8.251983202e-18 | E44: -8.251983202e-18 | F44: -8.251983202e-18 | G44: 4.394632806e-18 | H44: 4.394632806e-18 | I44: 4.394632806e-18 | J44: 4.394632806e-18 | K44: 4.394632806e-18 | L44: -1.745565498e-17 | M44: -1.745565498e-17 | N44: -1.745565498e-17 | O44: -1.745565498e-17 | P44: 7.183040171e-17 | Q44: 7.183040171e-17 | R44: 7.183040171e-17 | S44: 0.5 | T44: 0.5 | U44: -3.469446952e-17
A45: 1.155277648e-17 | B45: 1.155277648e-17 | C45: 1.155277648e-17 | D45: 1.155277648e-17 | E45: 1.155277648e-17 | F45: 1.155277648e-17 | G45: -4.140206696e-17 | H45: -4.140206696e-17 | I45: -4.140206696e-17 | J45: -4.140206696e-17 | K45: -4.140206696e-17 | L45: 5.865533753e-17 | M45: 5.865533753e-17 | N45: 5.865533753e-17 | O45: 5.865533753e-17 | P45: 2.325814438e-17 | Q45: 2.325814438e-17 | R45: 2.325814438e-17 | S45: -6.06671349e-17 | T45: -6.06671349e-17 | U45: 1
A48: Hat Matrix Factors
A49: =IF(A25=1,0,1/SQRT(1-A25)) -> 1.095445115
B50: =IF(B26=1,0,1/SQRT(1-B26)) -> 1.095445115
C51: =IF(C27=1,0,1/SQRT(1-C27)) -> 1.095445115
D52: =IF(D28=1,0,1/SQRT(1-D28)) -> 1.095445115
E53: =IF(E29=1,0,1/SQRT(1-E29)) -> 1.095445115
F54: =IF(F30=1,0,1/SQRT(1-F30)) -> 1.095445115
G55: =IF(G31=1,0,1/SQRT(1-G31)) -> 1.118033989
H56: =IF(H32=1,0,1/SQRT(1-H32)) -> 1.118033989
I57: =IF(I33=1,0,1/SQRT(1-I33)) -> 1.118033989
J58: =IF(J34=1,0,1/SQRT(1-J34)) -> 1.118033989
K59: =IF(K35=1,0,1/SQRT(1-K35)) -> 1.118033989
L60: =IF(L36=1,0,1/SQRT(1-L36)) -> 1.154700538
M61: =IF(M37=1,0,1/SQRT(1-M37)) -> 1.154700538
N62: =IF(N38=1,0,1/SQRT(1-N38)) -> 1.154700538
O63: =IF(O39=1,0,1/SQRT(1-O39)) -> 1.154700538
P64: =IF(P40=1,0,1/SQRT(1-P40)) -> 1.224744871
Q65: =IF(Q41=1,0,1/SQRT(1-Q41)) -> 1.224744871
R66: =IF(R42=1,0,1/SQRT(1-R42)) -> 1.224744871
S67: =IF(S43=1,0,1/SQRT(1-S43)) -> 1.414213562
T68: =IF(T44=1,0,1/SQRT(1-T44)) -> 1.414213562
U69: =IF(U45=1,0,1/SQRT(1-U45)) -> 0

Sheet GLM 2
A1: GLM Estimation of Sample Data Parameters | G1: rho = | H1: =Data!F55 -> 1 | J1: parameters = | K1: =Data!R113 -> 6
A2: Newton-Raphson Interation Sequence -- Iteration 1
B3: y(i) | D3: xb(i) | F3: W(i,i) | AB3: XWX | AI3: zz(i) | AK3: factor | AM3: xwx-1 | AT3: aa1(i,j) | BP3: aa2(j) | BR3: beta(j) | BT3: beta_diff = | BU3: =SUM(BT5:BT15) -> 0.1773688965 | BV3: beta_old = | BW3: =SUM(BR5:BR15) -> 1.064213379
B4: 1 | D4: 1 | F4: 1 | G4: 2 | H4: 3 | I4: 4 | J4: 5 | K4: 6 | L4: 7 | M4: 8 | N4: 9 | O4: 10 | P4: 11 | Q4: 12 | R4: 13 | S4: 14 | T4: 15 | U4: 16 | V4: 17 | W4: 18 | X4: 19 | Y4: 20 | Z4: 21 | AB4: 1 | AC4: 2 | AD4: 3 | AE4: 4 | AF4: 5 | AG4: 6 | AI4: 1 | AM4: 1 | AN4: 2 | AO4: 3 | AP4: 4 | AQ4: 5 | AR4: 6 | AT4: 1 | AU4: 2 | AV4: 3 | AW4: 4 | AX4: 5 | AY4: 6 | AZ4: 7 | BA4: 8 | BB4: 9 | BC4: 10 | BD4: 11 | BE4: 12 | BF4: 13 | BG4: 14 | BH4: 15 | BI4: 16 | BJ4: 17 | BK4: 18 | BL4: 19 | BM4: 20 | BN4: 21
A5: 1 | B5: =Data!N138 -> 94.65883348 | D5: =IF(B5<0,-LN(-B5),LN(B5)) -> 4.550279201 | F5: =IF($A5=F$4,IF($B5<0,-(EXP(-$D5)^(2-$H$1)),IF($B5=0,0,EXP($D5)^(2-$H$1))),0) -> 94.65883348 | G5: 0 | H5: 0 | I5: 0 | J5: 0 | K5: 0 | L5: 0 | M5: 0 | N5: 0 | O5: 0 | P5: =IF($A5=P$4,IF($B5<0,-(EXP(-$D5)^(2-$H$1)),IF($B5=0,0,EXP($D5)^(2-$H$1))),0) -> 0 | Q5: 0 | R5: 0 | S5: 0 | T5: 0 | U5: 0 | V5: 0 | W5: 0 | X5: 0 | Y5: 0 | Z5: 0 | AB5: =MMULT(TRANSPOSE(DesignMatrix),MMULT(F5:Z25,DesignMatrix)) -> 1141.94015 | AC5: 441.590345 | AD5: 214.759121 | AE5: 117.4948364 | AF5: 20.947291 | AG5: 2.89855802 | AI5: =IF(B5<0,D5+(B5+EXP(-D5))/-EXP(-D5),IF(B5=0,0,D5+(B5-EXP(D5))/EXP(D5))) -> 4.550279201 | AK5: =OFFSET(AA4,A5,A5) -> 1141.94015 | AM5: =MINVERSE(AB5:AG10) -> 0.001427857898 | AN5: -0.001427857898 | AO5: 2.240241108e-19 | AP5: 2.783175859e-20 | AQ5: 2.430563074e-20 | AR5: 0 | AT5: =MMULT(AM5:AR10,TRANSPOSE(DesignMatrix)) -> 0.001427857898 | AU5: 0.001427857898 | AV5: 0.001427857898 | AW5: 0.001427857898 | AX5: 0.001427857898 | AY5: 0.001427857898 | AZ5: -2.168404345e-19 | BA5: -2.168404345e-19 | BB5: -2.168404345e-19 | BC5: -2.168404345e-19 | BD5: -2.168404345e-19 | BE5: 7.183676309e-21 | BF5: 7.183676309e-21 | BG5: 7.183676309e-21 | BH5: 7.183676309e-21 | BI5: 3.50154349e-20 | BJ5: 3.50154349e-20 | BK5: 3.50154349e-20 | BL5: 5.932106564e-20 | BM5: 5.932106564e-20 | BN5: 5.932106564e-20 | BP5: =MMULT(F5:Z25,AI5:AI25) -> 430.7241212 | BR5: =MMULT(AT5:BN10,BP5:BP25) -> 4.771087374 | BT5: =BR5/$K$1 -> 0.7951812289
A6: 2 | B6: =Data!N139 -> 126.0339887 | D6: =IF(B6<0,-LN(-B6),LN(B6)) -> 4.836551623 | F6: 0 | G6: 126.0339887 | H6: 0 | I6: 0 | J6: 0 | K6: 0 | L6: 0 | M6: 0 | N6: 0 | O6: 0 | P6: 0 | Q6: 0 | R6: 0 | S6: 0 | T6: 0 | U6: 0 | V6: 0 | W6: 0 | X6: 0 | Y6: 0 | Z6: 0 | AB6: 441.590345 | AC6: 441.590345 | AD6: 214.759121 | AE6: 117.4948364 | AF6: 20.947291 | AG6: 2.89855802 | AI6: =IF(B6<0,D6+(B6+EXP(-D6))/-EXP(-D6),IF(B6=0,0,D6+(B6-EXP(D6))/EXP(D6))) -> 4.836551623 | AK6: =OFFSET(AA4,A6,A6) -> 441.590345 | AM6: -0.001427857898 | AN6: 0.005836422036 | AO6: -0.004408564138 | AP6: 3.165725427e-19 | AQ6: 4.611811136e-19 | AR6: 4.099387676e-19 | AT6: -0.001427857898 | AU6: -0.001427857898 | AV6: -0.001427857898 | AW6: -0.001427857898 | AX6: -0.001427857898 | AY6: -0.001427857898 | AZ6: 0.004408564138 | BA6: 0.004408564138 | BB6: 0.004408564138 | BC6: 0.004408564138 | BD6: 0.004408564138 | BE6: -8.67361738e-19 | BF6: -8.67361738e-19 | BG6: -8.67361738e-19 | BH6: -8.67361738e-19 | BI6: -5.507891953e-19 | BJ6: -5.507891953e-19 | BK6: -5.507891953e-19 | BL6: -8.960808177e-20 | BM6: -8.960808177e-20 | BN6: 3.203306858e-19 | BP6: 609.5698928 | BR6: -0.9292157635 | BT6: -0.1548692939
A7: 3 | B7: =Data!N140 -> 120.5567632 | D7: 4.792120706 | F7: 0 | G7: 0 | H7: 120.5567632 | I7: 0 | J7: 0 | K7: 0 | L7: 0 | M7: 0 | N7: 0 | O7: 0 | P7: 0 | Q7: 0 | R7: 0 | S7: 0 | T7: 0 | U7: 0 | V7: 0 | W7: 0 | X7: 0 | Y7: 0 | Z7: 0 | AB7: 214.759121 | AC7: 214.759121 | AD7: 214.759121 | AE7: 117.4948364 | AF7: 20.947291 | AG7: 2.89855802 | AI7: 4.792120706 | AK7: =OFFSET(AA4,A7,A7) -> 214.759121 | AM7: 4.077246963e-19 | AN7: -0.004408564138 | AO7: 0.01468983032 | AP7: -0.01028126618 | AQ7: -1.761219129e-18 | AR7: 0 | AT7: 4.077246963e-19 | AU7: 4.077246963e-19 | AV7: 4.077246963e-19 | AW7: 4.077246963e-19 | AX7: 4.077246963e-19 | AY7: 4.077246963e-19 | AZ7: -0.004408564138 | BA7: -0.004408564138 | BB7: -0.004408564138 | BC7: -0.004408564138 | BD7: -0.004408564138 | BE7: 0.01028126618 | BF7: 0.01028126618 | BG7: 0.01028126618 | BH7: 0.01028126618 | BI7: 1.734723476e-18 | BJ7: 1.734723476e-18 | BK7: 1.734723476e-18 | BL7: -2.649565299e-20 | BM7: -2.649565299e-20 | BN7: -2.649565299e-20 | BP7: 577.722561 | BR7: -0.606956263 | BT7: -0.1011593772
A8: 4 | B8: =Data!N141 -> 133.6744999 | D8: 4.895407739 | F8: 0 | G8: 0 | H8: 0 | I8: 133.6744999 | J8: 0 | K8: 0 | L8: 0 | M8: 0 | N8: 0 | O8: 0 | P8: 0 | Q8: 0 | R8: 0 | S8: 0 | T8: 0 | U8: 0 | V8: 0 | W8: 0 | X8: 0 | Y8: 0 | Z8: 0 | AB8: 117.4948364 | AC8: 117.4948364 | AD8: 117.4948364 | AE8: 117.4948364 | AF8: 20.947291 | AG8: 2.89855802 | AI8: 4.895407739 | AK8: =OFFSET(AA4,A8,A8) -> 117.4948364 | AM8: -2.85362461e-19 | AN8: 1.001946278e-18 | AO8: -0.01028126618 | AP8: 0.02063885732 | AQ8: -0.01035759114 | AR8: 2.086362028e-18 | AT8: -2.85362461e-19 | AU8: -2.85362461e-19 | AV8: -2.85362461e-19 | AW8: -2.85362461e-19 | AX8: -2.85362461e-19 | AY8: -2.85362461e-19 | AZ8: 7.165838169e-19 | BA8: 7.165838169e-19 | BB8: 7.165838169e-19 | BC8: 7.165838169e-19 | BD8: 7.165838169e-19 | BE8: -0.01028126618 | BF8: -0.01028126618 | BG8: -0.01028126618 | BH8: -0.01028126618 | BI8: 0.01035759114 | BJ8: 0.01035759114 | BK8: 0.01035759114 | BL8: -1.734723476e-18 | BM8: -1.734723476e-18 | BN8: 3.516385522e-19 | BP8: 654.3911811 | BR8: 0.2384640749 | BT8: 0.03974401249
A9: 5 | B9: =Data!N142 -> 91.75121983 | D9: 4.519080782 | F9: 0 | G9: 0 | H9: 0 | I9: 0 | J9: 91.75121983 | K9: 0 | L9: 0 | M9: 0 | N9: 0 | O9: 0 | P9: 0 | Q9: 0 | R9: 0 | S9: 0 | T9: 0 | U9: 0 | V9: 0 | W9: 0 | X9: 0 | Y9: 0 | Z9: 0 | AB9: 20.947291 | AC9: 20.947291 | AD9: 20.947291 | AE9: 20.947291 | AF9: 20.947291 | AG9: 2.89855802 | AI9: 4.519080782 | AK9: =OFFSET(AA4,A9,A9) -> 20.947291 | AM9: -5.866512283e-35 | AN9: 3.857417829e-19 | AO9: -2.113633803e-18 | AP9: -0.01035759114 | AQ9: 0.06576314239 | AR9: -0.05540555125 | AT9: -5.866512283e-35 | AU9: -5.866512283e-35 | AV9: -5.866512283e-35 | AW9: -5.866512283e-35 | AX9: -5.866512283e-35 | AY9: -5.866512283e-35 | AZ9: 3.857417829e-19 | BA9: 3.857417829e-19 | BB9: 3.857417829e-19 | BC9: 3.857417829e-19 | BD9: 3.857417829e-19 | BE9: -1.72789202e-18 | BF9: -1.72789202e-18 | BG9: -1.72789202e-18 | BH9: -1.72789202e-18 | BI9: -0.01035759114 | BJ9: -0.01035759114 | BK9: -0.01035759114 | BL9: 0.05540555125 | BM9: 0.05540555125 | BN9: -1.387778781e-17 | BP9: 414.6311743 | BR9: -1.248781273 | BT9: -0.2081302122
A10: 6 | B10: =Data!N143 -> 133.6744999 | D10: 4.895407739 | F10: 0 | G10: 0 | H10: 0 | I10: 0 | J10: 0 | K10: 133.6744999 | L10: 0 | M10: 0 | N10: 0 | O10: 0 | P10: 0 | Q10: 0 | R10: 0 | S10: 0 | T10: 0 | U10: 0 | V10: 0 | W10: 0 | X10: 0 | Y10: 0 | Z10: 0 | AB10: 2.89855802 | AC10: 2.89855802 | AD10: 2.89855802 | AE10: 2.89855802 | AF10: 2.89855802 | AG10: 2.89855802 | AI10: 4.895407739 | AK10: =OFFSET(AA4,A10,A10) -> 2.89855802 | AM10: 1.005192367e-34 | AN10: -1.116202185e-18 | AO10: 3.621587177e-18 | AP10: -1.389182807e-18 | AQ10: -0.05540555125 | AR10: 0.4004046829 | AT10: 1.005192367e-34 | AU10: 1.005192367e-34 | AV10: 1.005192367e-34 | AW10: 1.005192367e-34 | AX10: 1.005192367e-34 | AY10: 1.005192367e-34 | AZ10: -1.116202185e-18 | BA10: -1.116202185e-18 | BB10: -1.116202185e-18 | BC10: -1.116202185e-18 | BD10: -1.116202185e-18 | BE10: 2.505384992e-18 | BF10: 2.505384992e-18 | BG10: 2.505384992e-18 | BH10: 2.505384992e-18 | BI10: 1.116202185e-18 | BJ10: 1.116202185e-18 | BK10: 1.116202185e-18 | BL10: -0.05540555125 | BM10: -0.05540555125 | BN10: 0.3449991316 | BP10: 654.3911811 | BR10: -1.16038477 | BT10: -0.1933974616
A11: 7 | B11: =Data!O138 -> 60.64911064 | D11: 4.105104971 | F11: 0 | G11: 0 | H11: 0 | I11: 0 | J11: 0 | K11: 0 | L11: 60.64911064 | M11: 0 | N11: 0 | O11: 0 | P11: 0 | Q11: 0 | R11: 0 | S11: 0 | T11: 0 | U11: 0 | V11: 0 | W11: 0 | X11: 0 | Y11: 0 | Z11: 0 | AI11: 4.105104971 | BP11: 248.9709656
A12: 8 | B12: =Data!O139 -> 55.69491253 | D12: 4.019888806 | F12: 0 | G12: 0 | H12: 0 | I12: 0 | J12: 0 | K12: 0 | L12: 0 | M12: 55.69491253 | N12: 0 | O12: 0 | P12: 0 | Q12: 0 | R12: 0 | S12: 0 | T12: 0 | U12: 0 | V12: 0 | W12: 0 | X12: 0 | Y12: 0 | Z12: 0 | AI12: 4.019888806 | BP12: 223.8873554
A13: 9 | B13: =Data!O140 -> 37.04554885 | D13: 3.612148206 | F13: 0 | G13: 0 | H13: 0 | I13: 0 | J13: 0 | K13: 0 | L13: 0 | M13: 0 | N13: 37.04554885 | O13: 0 | P13: 0 | Q13: 0 | R13: 0 | S13: 0 | T13: 0 | U13: 0 | V13: 0 | W13: 0 | X13: 0 | Y13: 0 | Z13: 0 | AI13: 3.612148206 | BP13: 133.8140128
A14: 10 | B14: =Data!O141 -> 34.38592399 | D14: 3.537647294 | F14: 0 | G14: 0 | H14: 0 | I14: 0 | J14: 0 | K14: 0 | L14: 0 | M14: 0 | N14: 0 | O14: 34.38592399 | P14: 0 | Q14: 0 | R14: 0 | S14: 0 | T14: 0 | U14: 0 | V14: 0 | W14: 0 | X14: 0 | Y14: 0 | Z14: 0 | AI14: 3.537647294 | BP14: 121.645271
A15: 11 | B15: =Data!O142 -> 39.05572809 | D15: 3.664989552 | F15: =IF($A15=F$4,IF($B15<0,-(EXP(-$D15)^(2-$H$1)),IF($B15=0,0,EXP($D15)^(2-$H$1))),0) -> 0 | G15: 0 | H15: 0 | I15: 0 | J15: 0 | K15: 0 | L15: 0 | M15: 0 | N15: 0 | O15: 0 | P15: =IF($A15=P$4,IF($B15<0,-(EXP(-$D15)^(2-$H$1)),IF($B15=0,0,EXP($D15)^(2-$H$1))),0) -> 39.05572809 | Q15: 0 | R15: 0 | S15: 0 | T15: 0 | U15: 0 | V15: 0 | W15: 0 | X15: 0 | Y15: 0 | Z15: 0 | AI15: 3.664989552 | BP15: 143.1388354
A16: 12 | B16: =Data!P138 -> 31.68558654 | D16: 3.455861894 | F16: 0 | G16: 0 | H16: 0 | I16: 0 | J16: 0 | K16: 0 | L16: 0 | M16: 0 | N16: 0 | O16: 0 | P16: 0 | Q16: 31.68558654 | R16: 0 | S16: 0 | T16: 0 | U16: 0 | V16: 0 | W16: 0 | X16: 0 | Y16: 0 | Z16: 0 | AI16: 3.455861894 | BP16: 109.5010111
A17: 13 | B17: =Data!P139 -> 18.04216838 | D17: 2.892711706 | F17: 0 | G17: 0 | H17: 0 | I17: 0 | J17: 0 | K17: 0 | L17: 0 | M17: 0 | N17: 0 | O17: 0 | P17: 0 | Q17: 0 | R17: 18.04216838 | S17: 0 | T17: 0 | U17: 0 | V17: 0 | W17: 0 | X17: 0 | Y17: 0 | Z17: 0 | AI17: 2.892711706 | BP17: 52.19079166
A18: 14 | B18: =Data!P140 -> 16.37627564 | D18: 2.79583368 | F18: 0 | G18: 0 | H18: 0 | I18: 0 | J18: 0 | K18: 0 | L18: 0 | M18: 0 | N18: 0 | O18: 0 | P18: 0 | Q18: 0 | R18: 0 | S18: 16.37627564 | T18: 0 | U18: 0 | V18: 0 | W18: 0 | X18: 0 | Y18: 0 | Z18: 0 | AI18: 2.79583368 | BP18: 45.785343
A19: 15 | B19: =Data!P141 -> 31.16025404 | D19: 3.439143374 | F19: 0 | G19: 0 | H19: 0 | I19: 0 | J19: 0 | K19: 0 | L19: 0 | M19: 0 | N19: 0 | O19: 0 | P19: 0 | Q19: 0 | R19: 0 | S19: 0 | T19: 31.16025404 | U19: 0 | V19: 0 | W19: 0 | X19: 0 | Y19: 0 | Z19: 0 | AI19: 3.439143374 | BP19: 107.1645812
A20: 16 | B20: =Data!Q138 -> 35.04924622 | D20: 3.556754107 | F20: 0 | G20: 0 | H20: 0 | I20: 0 | J20: 0 | K20: 0 | L20: 0 | M20: 0 | N20: 0 | O20: 0 | P20: 0 | Q20: 0 | R20: 0 | S20: 0 | T20: 0 | U20: 35.04924622 | V20: 0 | W20: 0 | X20: 0 | Y20: 0 | Z20: 0 | AI20: 3.556754107 | BP20: 124.6615504
A21: 17 | B21: =Data!Q139 -> 30.74914957 | D21: 3.425862338 | F21: 0 | G21: 0 | H21: 0 | I21: 0 | J21: 0 | K21: 0 | L21: 0 | M21: 0 | N21: 0 | O21: 0 | P21: 0 | Q21: 0 | R21: 0 | S21: 0 | T21: 0 | U21: 0 | V21: 30.74914957 | W21: 0 | X21: 0 | Y21: 0 | Z21: 0 | AI21: 3.425862338 | BP21: 105.3423534
A22: 18 | B22: =Data!Q140 -> 30.74914957 | D22: 3.425862338 | F22: 0 | G22: 0 | H22: 0 | I22: 0 | J22: 0 | K22: 0 | L22: 0 | M22: 0 | N22: 0 | O22: 0 | P22: 0 | Q22: 0 | R22: 0 | S22: 0 | T22: 0 | U22: 0 | V22: 0 | W22: 30.74914957 | X22: 0 | Y22: 0 | Z22: 0 | AI22: 3.425862338 | BP22: 105.3423534
A23: 19 | B23: =Data!R138 -> 7.028112252 | D23: 1.949918142 | F23: 0 | G23: 0 | H23: 0 | I23: 0 | J23: 0 | K23: 0 | L23: 0 | M23: 0 | N23: 0 | O23: 0 | P23: 0 | Q23: 0 | R23: 0 | S23: 0 | T23: 0 | U23: 0 | V23: 0 | W23: 0 | X23: 7.028112252 | Y23: 0 | Z23: 0 | AI23: 1.949918142 | BP23: 13.70424359
A24: 20 | B24: =Data!R139 -> 11.02062073 | D24: 2.399768129 | F24: 0 | G24: 0 | H24: 0 | I24: 0 | J24: 0 | K24: 0 | L24: 0 | M24: 0 | N24: 0 | O24: 0 | P24: 0 | Q24: 0 | R24: 0 | S24: 0 | T24: 0 | U24: 0 | V24: 0 | W24: 0 | X24: 0 | Y24: 11.02062073 | Z24: 0 | AI24: 2.399768129 | BP24: 26.44693438
A25: 21 | B25: =Data!S138 -> 2.89855802 | D25: 1.064213379 | F25: 0 | G25: 0 | H25: 0 | I25: 0 | J25: 0 | K25: 0 | L25: 0 | M25: 0 | N25: 0 | O25: 0 | P25: 0 | Q25: 0 | R25: 0 | S25: 0 | T25: 0 | U25: 0 | V25: 0 | W25: 0 | X25: 0 | Y25: 0 | Z25: 2.89855802 | AI25: 1.064213379 | BP25: 3.084684225
A27: Newton-Raphson Interation Sequence -- Iteration 2
B28: y(i) | D28: xb(i) | F28: W(i,i) | AB28: XWX | AI28: zz(i) | AK28: factor | AM28: xwx-1 | AT28: aa1(i,j) | BP28: aa2(j) | BR28: beta(j) | BT28: beta_diff = | BU28: =SUM(BT30:BT40) -> 3.552713679e-15 | BV28: beta_old = | BW28: =SUM(BR30:BR40) -> 1.064213379
B29: 1 | D29: 1 | F29: 1 | G29: 2 | H29: 3 | I29: 4 | J29: 5 | K29: 6 | L29: 7 | M29: 8 | N29: 9 | O29: 10 | P29: 11 | Q29: 12 | R29: 13 | S29: 14 | T29: 15 | U29: 16 | V29: 17 | W29: 18 | X29: 19 | Y29: 20 | Z29: 21 | AB29: 1 | AC29: 2 | AD29: 3 | AE29: 4 | AF29: 5 | AG29: 6 | AI29: 1 | AM29: 1 | AN29: 2 | AO29: 3 | AP29: 4 | AQ29: 5 | AR29: 6 | AT29: 1 | AU29: 2 | AV29: 3 | AW29: 4 | AX29: 5 | AY29: 6 | AZ29: 7 | BA29: 8 | BB29: 9 | BC29: 10 | BD29: 11 | BE29: 12 | BF29: 13 | BG29: 14 | BH29: 15 | BI29: 16 | BJ29: 17 | BK29: 18 | BL29: 19 | BM29: 20 | BN29: 21
A30: 1 | B30: =B5 -> 94.65883348 | D30: =MMULT(DesignMatrix,BR5:BR10) -> 4.771087374 | F30: =IF($A30=F$4,IF($B30<0,-(EXP(-$D30)^(2-$H$1)),IF($B30=0,0,EXP($D30)^(2-$H$1))),0) -> 118.047534 | G30: 0 | H30: 0 | I30: 0 | J30: 0 | K30: 0 | L30: 0 | M30: 0 | N30: 0 | O30: 0 | P30: =IF($A30=P$4,IF($B30<0,-(EXP(-$D30)^(2-$H$1)),IF($B30=0,0,EXP($D30)^(2-$H$1))),0) -> 0 | Q30: 0 | R30: 0 | S30: 0 | T30: 0 | U30: 0 | V30: 0 | W30: 0 | X30: 0 | Y30: 0 | Z30: 0 | AB30: =MMULT(TRANSPOSE(DesignMatrix),MMULT(F30:Z50,DesignMatrix)) -> 1161.099933 | AC30: 452.8147296 | AD30: 219.751562 | AE30: 118.1346774 | AF30: 21.39808808 | AG30: 2.89855802 | AI30: =IF(B30<0,D30+(B30+EXP(-D30))/-EXP(-D30),IF(B30=0,0,D30+(B30-EXP(D30))/EXP(D30))) -> 4.57295786 | AK30: =OFFSET(AA29,A30,A30) -> 1161.099933 | AM30: =MINVERSE(AB30:AG35) -> 0.001411860638 | AN30: -0.001411860638 | AO30: -1.912364289e-19 | AP30: 2.629500898e-19 | AQ30: -1.434273217e-19 | AR30: -1.912364289e-19 | AT30: =MMULT(AM30:AR35,TRANSPOSE(DesignMatrix)) -> 0.001411860638 | AU30: 0.001411860638 | AV30: 0.001411860638 | AW30: 0.001411860638 | AX30: 0.001411860638 | AY30: 0.001411860638 | AZ30: 4.33680869e-19 | BA30: 4.33680869e-19 | BB30: 4.33680869e-19 | BC30: 4.33680869e-19 | BD30: 4.33680869e-19 | BE30: 2.424444401e-19 | BF30: 2.424444401e-19 | BG30: 2.424444401e-19 | BH30: 2.424444401e-19 | BI30: 5.053945298e-19 | BJ30: 5.053945298e-19 | BK30: 5.053945298e-19 | BL30: 3.619672081e-19 | BM30: 3.619672081e-19 | BN30: 1.707307792e-19 | BP30: =MMULT(F30:Z50,AI30:AI50) -> 539.8263984 | BR30: =MMULT(AT30:BN35,BP30:BP50) -> 4.759883696 | BT30: =BR30-BW3/$K$1 -> 4.5825148
A31: 2 | B31: =B6 -> 126.0339887 | D31: 4.771087374 | F31: 0 | G31: 118.047534 | H31: 0 | I31: 0 | J31: 0 | K31: 0 | L31: 0 | M31: 0 | N31: 0 | O31: 0 | P31: 0 | Q31: 0 | R31: 0 | S31: 0 | T31: 0 | U31: 0 | V31: 0 | W31: 0 | X31: 0 | Y31: 0 | Z31: 0 | AB31: 452.8147296 | AC31: 452.8147296 | AD31: 219.751562 | AE31: 118.1346774 | AF31: 21.39808808 | AG31: 2.89855802 | AI31: =IF(B31<0,D31+(B31+EXP(-D31))/-EXP(-D31),IF(B31=0,0,D31+(B31-EXP(D31))/EXP(D31))) -> 4.83874194 | AK31: =OFFSET(AA29,A31,A31) -> 452.8147296 | AM31: -0.001411860638 | AN31: 0.005702542903 | AO31: -0.004290682265 | AP31: -2.713031822e-18 | AQ31: 3.516893103e-19 | AR31: 0 | AT31: -0.001411860638 | AU31: -0.001411860638 | AV31: -0.001411860638 | AW31: -0.001411860638 | AX31: -0.001411860638 | AY31: -0.001411860638 | AZ31: 0.004290682265 | BA31: 0.004290682265 | BB31: 0.004290682265 | BC31: 0.004290682265 | BD31: 0.004290682265 | BE31: 1.734723476e-18 | BF31: 1.734723476e-18 | BG31: 1.734723476e-18 | BH31: 1.734723476e-18 | BI31: -9.783083461e-19 | BJ31: -9.783083461e-19 | BK31: -9.783083461e-19 | BL31: -6.266190358e-19 | BM31: -6.266190358e-19 | BN31: -6.266190358e-19 | BP31: 571.2015536 | BR31: -0.9447513758 | BT31: =BR31-BW3/$K$1 -> -1.122120272
A32: 3 | B32: 120.5567632 | D32: 4.771087374 | F32: 0 | G32: 0 | H32: 118.047534 | I32: 0 | J32: 0 | K32: 0 | L32: 0 | M32: 0 | N32: 0 | O32: 0 | P32: 0 | Q32: 0 | R32: 0 | S32: 0 | T32: 0 | U32: 0 | V32: 0 | W32: 0 | X32: 0 | Y32: 0 | Z32: 0 | AB32: 219.751562 | AC32: 219.751562 | AD32: 219.751562 | AE32: 118.1346774 | AF32: 21.39808808 | AG32: 2.89855802 | AI32: 4.792343465 | AK32: =OFFSET(AA29,A32,A32) -> 219.751562 | AM32: -4.256919371e-37 | AN32: -0.004290682265 | AO32: 0.01413156652 | AP32: -0.009840884259 | AQ32: 1.226973471e-19 | AR32: 1.963157554e-18 | AT32: -4.256919371e-37 | AU32: -4.256919371e-37 | AV32: -4.256919371e-37 | AW32: -4.256919371e-37 | AX32: -4.256919371e-37 | AY32: -4.256919371e-37 | AZ32: -0.004290682265 | BA32: -0.004290682265 | BB32: -0.004290682265 | BC32: -0.004290682265 | BD32: -0.004290682265 | BE32: 0.009840884259 | BF32: 0.009840884259 | BG32: 0.009840884259 | BH32: 0.009840884259 | BI32: 1.734723476e-18 | BJ32: 1.734723476e-18 | BK32: 1.734723476e-18 | BL32: 1.857420823e-18 | BM32: 1.857420823e-18 | BN32: 3.820578377e-18 | BP32: 565.724328 | BR32: -0.6230504062 | BT32: =BR32-BW3/$K$1 -> -0.8004193027
A33: 4 | B33: 133.6744999 | D33: 4.771087374 | F33: 0 | G33: 0 | H33: 0 | I33: 118.047534 | J33: 0 | K33: 0 | L33: 0 | M33: 0 | N33: 0 | O33: 0 | P33: 0 | Q33: 0 | R33: 0 | S33: 0 | T33: 0 | U33: 0 | V33: 0 | W33: 0 | X33: 0 | Y33: 0 | Z33: 0 | AB33: 118.1346774 | AC33: 118.1346774 | AD33: 118.1346774 | AE33: 118.1346774 | AF33: 21.39808808 | AG33: 2.89855802 | AI33: 4.903465962 | AK33: =OFFSET(AA29,A33,A33) -> 118.1346774 | AM33: 3.58648881e-20 | AN33: -2.025044719e-18 | AO33: -0.009840884259 | AP33: 0.02017823445 | AQ33: -0.01033735019 | AR33: 0 | AT33: 3.58648881e-20 | AU33: 3.58648881e-20 | AV33: 3.58648881e-20 | AW33: 3.58648881e-20 | AX33: 3.58648881e-20 | AY33: 3.58648881e-20 | AZ33: -1.989179831e-18 | BA33: -1.989179831e-18 | BB33: -1.989179831e-18 | BC33: -1.989179831e-18 | BD33: -1.989179831e-18 | BE33: -0.009840884259 | BF33: -0.009840884259 | BG33: -0.009840884259 | BH33: -0.009840884259 | BI33: 0.01033735019 | BJ33: 0.01033735019 | BK33: 0.01033735019 | BL33: -1.734723476e-18 | BM33: -1.734723476e-18 | BN33: -1.734723476e-18 | BP33: 578.8420647 | BR33: 0.279343294 | BT33: =BR33-BW3/$K$1 -> 0.1019743975
A34: 5 | B34: 91.75121983 | D34: 4.771087374 | F34: 0 | G34: 0 | H34: 0 | I34: 0 | J34: 118.047534 | K34: 0 | L34: 0 | M34: 0 | N34: 0 | O34: 0 | P34: 0 | Q34: 0 | R34: 0 | S34: 0 | T34: 0 | U34: 0 | V34: 0 | W34: 0 | X34: 0 | Y34: 0 | Z34: 0 | AB34: 21.39808808 | AC34: 21.39808808 | AD34: 21.39808808 | AE34: 21.39808808 | AF34: 21.39808808 | AG34: 2.89855802 | AI34: 4.548326988 | AK34: =OFFSET(AA29,A34,A34) -> 21.39808808 | AM34: -2.234073252e-19 | AN34: -9.89963134e-20 | AO34: 0 | AP34: -0.01033735019 | AQ34: 0.06439277738 | AR34: -0.05405542719 | AT34: -2.234073252e-19 | AU34: -2.234073252e-19 | AV34: -2.234073252e-19 | AW34: -2.234073252e-19 | AX34: -2.234073252e-19 | AY34: -2.234073252e-19 | AZ34: -3.224036386e-19 | BA34: -3.224036386e-19 | BB34: -3.224036386e-19 | BC34: -3.224036386e-19 | BD34: -3.224036386e-19 | BE34: -3.224036386e-19 | BF34: -3.224036386e-19 | BG34: -3.224036386e-19 | BH34: -3.224036386e-19 | BI34: -0.01033735019 | BJ34: -0.01033735019 | BK34: -0.01033735019 | BL34: 0.05405542719 | BM34: 0.05405542719 | BN34: -6.938893904e-18 | BP34: 536.9187847 | BR34: -1.271195088 | BT34: =BR34-BW3/$K$1 -> -1.448563985
A35: 6 | B35: 133.6744999 | D35: 4.771087374 | F35: 0 | G35: 0 | H35: 0 | I35: 0 | J35: 0 | K35: 118.047534 | L35: 0 | M35: 0 | N35: 0 | O35: 0 | P35: 0 | Q35: 0 | R35: 0 | S35: 0 | T35: 0 | U35: 0 | V35: 0 | W35: 0 | X35: 0 | Y35: 0 | Z35: 0 | AB35: 2.89855802 | AC35: 2.89855802 | AD35: 2.89855802 | AE35: 2.89855802 | AF35: 2.89855802 | AG35: 2.89855802 | AI35: 4.903465962 | AK35: =OFFSET(AA29,A35,A35) -> 2.89855802 | AM35: 1.875424371e-19 | AN35: 4.330053113e-19 | AO35: 0 | AP35: 0 | AQ35: -0.05405542719 | AR35: 0.3990545588 | AT35: 1.875424371e-19 | AU35: 1.875424371e-19 | AV35: 1.875424371e-19 | AW35: 1.875424371e-19 | AX35: 1.875424371e-19 | AY35: 1.875424371e-19 | AZ35: 6.205477484e-19 | BA35: 6.205477484e-19 | BB35: 6.205477484e-19 | BC35: 6.205477484e-19 | BD35: 6.205477484e-19 | BE35: 6.205477484e-19 | BF35: 6.205477484e-19 | BG35: 6.205477484e-19 | BH35: 6.205477484e-19 | BI35: 6.205477484e-19 | BJ35: 6.205477484e-19 | BK35: 6.205477484e-19 | BL35: -0.05405542719 | BM35: -0.05405542719 | BN35: 0.3449991316 | BP35: 578.8420647 | BR35: -1.136016741 | BT35: =BR35-BW3/$K$1 -> -1.313385638
A36: 7 | B36: 60.64911064 | D36: 3.84187161 | F36: 0 | G36: 0 | H36: 0 | I36: 0 | J36: 0 | K36: 0 | L36: 46.61263353 | M36: 0 | N36: 0 | O36: 0 | P36: 0 | Q36: 0 | R36: 0 | S36: 0 | T36: 0 | U36: 0 | V36: 0 | W36: 0 | X36: 0 | Y36: 0 | Z36: 0 | AI36: 4.143001927 | BP36: 193.1162305
A37: 8 | B37: 55.69491253 | D37: 3.84187161 | F37: 0 | G37: 0 | H37: 0 | I37: 0 | J37: 0 | K37: 0 | L37: 0 | M37: 46.61263353 | N37: 0 | O37: 0 | P37: 0 | Q37: 0 | R37: 0 | S37: 0 | T37: 0 | U37: 0 | V37: 0 | W37: 0 | X37: 0 | Y37: 0 | Z37: 0 | AI37: 4.036717477 | BP37: 188.1620324
A38: 9 | B38: 37.04554885 | D38: 3.84187161 | F38: 0 | G38: 0 | H38: 0 | I38: 0 | J38: 0 | K38: 0 | L38: 0 | M38: 0 | N38: 46.61263353 | O38: 0 | P38: 0 | Q38: 0 | R38: 0 | S38: 0 | T38: 0 | U38: 0 | V38: 0 | W38: 0 | X38: 0 | Y38: 0 | Z38: 0 | AI38: 3.636625007 | BP38: 169.5126687
A39: 10 | B39: 34.38592399 | D39: 3.84187161 | F39: 0 | G39: 0 | H39: 0 | I39: 0 | J39: 0 | K39: 0 | L39: 0 | M39: 0 | N39: 0 | O39: 46.61263353 | P39: 0 | Q39: 0 | R39: 0 | S39: 0 | T39: 0 | U39: 0 | V39: 0 | W39: 0 | X39: 0 | Y39: 0 | Z39: 0 | AI39: 3.579566981 | BP39: 166.8530439
A40: 11 | B40: 39.05572809 | D40: 3.84187161 | F40: =IF($A40=F$4,IF($B40<0,-(EXP(-$D40)^(2-$H$1)),IF($B40=0,0,EXP($D40)^(2-$H$1))),0) -> 0 | G40: 0 | H40: 0 | I40: 0 | J40: 0 | K40: 0 | L40: 0 | M40: 0 | N40: 0 | O40: 0 | P40: =IF($A40=P$4,IF($B40<0,-(EXP(-$D40)^(2-$H$1)),IF($B40=0,0,EXP($D40)^(2-$H$1))),0) -> 46.61263353 | Q40: 0 | R40: 0 | S40: 0 | T40: 0 | U40: 0 | V40: 0 | W40: 0 | X40: 0 | Y40: 0 | Z40: 0 | AI40: 3.679750209 | BP40: 171.522848
A41: 12 | B41: 31.68558654 | D41: 3.234915347 | F41: 0 | G41: 0 | H41: 0 | I41: 0 | J41: 0 | K41: 0 | L41: 0 | M41: 0 | N41: 0 | O41: 0 | P41: 0 | Q41: 25.40422115 | R41: 0 | S41: 0 | T41: 0 | U41: 0 | V41: 0 | W41: 0 | X41: 0 | Y41: 0 | Z41: 0 | AI41: 3.482172106 | BP41: 88.46187026
A42: 13 | B42: 18.04216838 | D42: 3.234915347 | F42: 0 | G42: 0 | H42: 0 | I42: 0 | J42: 0 | K42: 0 | L42: 0 | M42: 0 | N42: 0 | O42: 0 | P42: 0 | Q42: 0 | R42: 25.40422115 | S42: 0 | T42: 0 | U42: 0 | V42: 0 | W42: 0 | X42: 0 | Y42: 0 | Z42: 0 | AI42: 2.94511891 | BP42: 74.8184521
A43: 14 | B43: 16.37627564 | D43: 3.234915347 | F43: 0 | G43: 0 | H43: 0 | I43: 0 | J43: 0 | K43: 0 | L43: 0 | M43: 0 | N43: 0 | O43: 0 | P43: 0 | Q43: 0 | R43: 0 | S43: 25.40422115 | T43: 0 | U43: 0 | V43: 0 | W43: 0 | X43: 0 | Y43: 0 | Z43: 0 | AI43: 2.87954348 | BP43: 73.15255937
A44: 15 | B44: 31.16025404 | D44: 3.234915347 | F44: 0 | G44: 0 | H44: 0 | I44: 0 | J44: 0 | K44: 0 | L44: 0 | M44: 0 | N44: 0 | O44: 0 | P44: 0 | Q44: 0 | R44: 0 | S44: 0 | T44: 25.40422115 | U44: 0 | V44: 0 | W44: 0 | X44: 0 | Y44: 0 | Z44: 0 | AI44: 3.461493161 | BP44: 87.93653776
A45: 16 | B45: 35.04924622 | D45: 3.473379422 | F45: 0 | G45: 0 | H45: 0 | I45: 0 | J45: 0 | K45: 0 | L45: 0 | M45: 0 | N45: 0 | O45: 0 | P45: 0 | Q45: 0 | R45: 0 | S45: 0 | T45: 0 | U45: 32.24552978 | V45: 0 | W45: 0 | X45: 0 | Y45: 0 | Z45: 0 | AI45: 3.560328418 | BP45: 114.804676
A46: 17 | B46: 30.74914957 | D46: 3.473379422 | F46: 0 | G46: 0 | H46: 0 | I46: 0 | J46: 0 | K46: 0 | L46: 0 | M46: 0 | N46: 0 | O46: 0 | P46: 0 | Q46: 0 | R46: 0 | S46: 0 | T46: 0 | U46: 0 | V46: 32.24552978 | W46: 0 | X46: 0 | Y46: 0 | Z46: 0 | AI46: 3.426973603 | BP46: 110.5045794
A47: 18 | B47: 30.74914957 | D47: 3.473379422 | F47: 0 | G47: 0 | H47: 0 | I47: 0 | J47: 0 | K47: 0 | L47: 0 | M47: 0 | N47: 0 | O47: 0 | P47: 0 | Q47: 0 | R47: 0 | S47: 0 | T47: 0 | U47: 0 | V47: 0 | W47: 32.24552978 | X47: 0 | Y47: 0 | Z47: 0 | AI47: 3.426973603 | BP47: 110.5045794
A48: 19 | B48: 7.028112252 | D48: 2.224598149 | F48: 0 | G48: 0 | H48: 0 | I48: 0 | J48: 0 | K48: 0 | L48: 0 | M48: 0 | N48: 0 | O48: 0 | P48: 0 | Q48: 0 | R48: 0 | S48: 0 | T48: 0 | U48: 0 | V48: 0 | W48: 0 | X48: 9.249765027 | Y48: 0 | Z48: 0 | AI48: 1.984413369 | BP48: 18.35535738
A49: 20 | B49: 11.02062073 | D49: 2.224598149 | F49: 0 | G49: 0 | H49: 0 | I49: 0 | J49: 0 | K49: 0 | L49: 0 | M49: 0 | N49: 0 | O49: 0 | P49: 0 | Q49: 0 | R49: 0 | S49: 0 | T49: 0 | U49: 0 | V49: 0 | W49: 0 | X49: 0 | Y49: 9.249765027 | Z49: 0 | AI49: 2.416046871 | BP49: 22.34786586
A50: 21 | B50: 2.89855802 | D50: 1.064213379 | F50: 0 | G50: 0 | H50: 0 | I50: 0 | J50: 0 | K50: 0 | L50: 0 | M50: 0 | N50: 0 | O50: 0 | P50: 0 | Q50: 0 | R50: 0 | S50: 0 | T50: 0 | U50: 0 | V50: 0 | W50: 0 | X50: 0 | Y50: 0 | Z50: 2.89855802 | AI50: 1.064213379 | BP50: 3.084684225
A52: Newton-Raphson Interation Sequence -- Iteration 3
B53: y(i) | D53: xb(i) | F53: W(i,i) | AB53: XWX | AI53: zz(i) | AK53: factor | AM53: xwx-1 | AT53: aa1(i,j) | BP53: aa2(j) | BR53: beta(j) | BT53: beta_diff = | BU53: =SUM(BT55:BT65) -> -3.108624469e-15 | BV53: beta_old = | BW53: =SUM(BR55:BR65) -> 1.064213379
B54: 1 | D54: 1 | F54: 1 | G54: 2 | H54: 3 | I54: 4 | J54: 5 | K54: 6 | L54: 7 | M54: 8 | N54: 9 | O54: 10 | P54: 11 | Q54: 12 | R54: 13 | S54: 14 | T54: 15 | U54: 16 | V54: 17 | W54: 18 | X54: 19 | Y54: 20 | Z54: 21 | AB54: 1 | AC54: 2 | AD54: 3 | AE54: 4 | AF54: 5 | AG54: 6 | AI54: 1 | AM54: 1 | AN54: 2 | AO54: 3 | AP54: 4 | AQ54: 5 | AR54: 6 | AT54: 1 | AU54: 2 | AV54: 3 | AW54: 4 | AX54: 5 | AY54: 6 | AZ54: 7 | BA54: 8 | BB54: 9 | BC54: 10 | BD54: 11 | BE54: 12 | BF54: 13 | BG54: 14 | BH54: 15 | BI54: 16 | BJ54: 17 | BK54: 18 | BL54: 19 | BM54: 20 | BN54: 21
A55: 1 | B55: =B30 -> 94.65883348 | D55: =MMULT(DesignMatrix,BR30:BR35) -> 4.759883696 | F55: =IF($A55=F$4,IF($B55<0,-(EXP(-$D55)^(2-$H$1)),IF($B55=0,0,EXP($D55)^(2-$H$1))),0) -> 116.7323487 | G55: 0 | H55: 0 | I55: 0 | J55: 0 | K55: 0 | L55: 0 | M55: 0 | N55: 0 | O55: 0 | P55: =IF($A55=P$4,IF($B55<0,-(EXP(-$D55)^(2-$H$1)),IF($B55=0,0,EXP($D55)^(2-$H$1))),0) -> 0 | Q55: 0 | R55: 0 | S55: 0 | T55: 0 | U55: 0 | V55: 0 | W55: 0 | X55: 0 | Y55: 0 | Z55: 0 | AB55: =MMULT(TRANSPOSE(DesignMatrix),MMULT(F55:Z75,DesignMatrix)) -> 1142.164553 | AC55: 441.7704606 | AD55: 214.8566553 | AE55: 117.5004691 | AF55: 20.95273917 | AG55: 2.89855802 | AI55: =IF(B55<0,D55+(B55+EXP(-D55))/-EXP(-D55),IF(B55=0,0,D55+(B55-EXP(D55))/EXP(D55))) -> 4.570788596 | AK55: =OFFSET(AA54,A55,A55) -> 1142.164553 | AM55: =MINVERSE(AB55:AG60) -> 0.001427767611 | AN55: -0.001427767611 | AO55: 2.683433796e-19 | AP55: 4.546656765e-19 | AQ55: 4.860171076e-20 | AR55: 0 | AT55: =MMULT(AM55:AR60,TRANSPOSE(DesignMatrix)) -> 0.001427767611 | AU55: 0.001427767611 | AV55: 0.001427767611 | AW55: 0.001427767611 | AX55: 0.001427767611 | AY55: 0.001427767611 | AZ55: 2.168404345e-19 | BA55: 2.168404345e-19 | BB55: 2.168404345e-19 | BC55: 2.168404345e-19 | BD55: 2.168404345e-19 | BE55: 4.851838141e-19 | BF55: 4.851838141e-19 | BG55: 4.851838141e-19 | BH55: 4.851838141e-19 | BI55: 9.398494906e-19 | BJ55: 9.398494906e-19 | BK55: 9.398494906e-19 | BL55: 9.884512013e-19 | BM55: 9.884512013e-19 | BN55: 9.884512013e-19 | BP55: =MMULT(F55:Z75,AI55:AI75) -> 533.5588882 | BR55: =MMULT(AT55:BN60,BP55:BP75) -> 4.759820464 | BT55: =BR55-BW28/$K$1 -> 4.582451568
A56: 2 | B56: =B31 -> 126.0339887 | D56: 4.759883696 | F56: 0 | G56: 116.7323487 | H56: 0 | I56: 0 | J56: 0 | K56: 0 | L56: 0 | M56: 0 | N56: 0 | O56: 0 | P56: 0 | Q56: 0 | R56: 0 | S56: 0 | T56: 0 | U56: 0 | V56: 0 | W56: 0 | X56: 0 | Y56: 0 | Z56: 0 | AB56: 441.7704606 | AC56: 441.7704606 | AD56: 214.8566553 | AE56: 117.5004691 | AF56: 20.95273917 | AG56: 2.89855802 | AI56: =IF(B56<0,D56+(B56+EXP(-D56))/-EXP(-D56),IF(B56=0,0,D56+(B56-EXP(D56))/EXP(D56))) -> 4.839567179 | AK56: =OFFSET(AA54,A56,A56) -> 441.7704606 | AM56: -0.001427767611 | AN56: 0.005834727332 | AO56: -0.004406959721 | AP56: -1.862446812e-18 | AQ56: 4.098262388e-19 | AR56: 0 | AT56: -0.001427767611 | AU56: -0.001427767611 | AV56: -0.001427767611 | AW56: -0.001427767611 | AX56: -0.001427767611 | AY56: -0.001427767611 | AZ56: 0.004406959721 | BA56: 0.004406959721 | BB56: 0.004406959721 | BC56: 0.004406959721 | BD56: 0.004406959721 | BE56: 0 | BF56: 0 | BG56: 0 | BH56: 0 | BI56: -1.862446812e-18 | BJ56: -1.862446812e-18 | BK56: -1.862446812e-18 | BL56: -1.452620573e-18 | BM56: -1.452620573e-18 | BN56: -1.452620573e-18 | BP56: 564.9340435 | BR56: -0.9450520758 | BT56: =BR56-BW28/$K$1 -> -1.122420972
A57: 3 | B57: 120.5567632 | D57: 4.759883696 | F57: 0 | G57: 0 | H57: 116.7323487 | I57: 0 | J57: 0 | K57: 0 | L57: 0 | M57: 0 | N57: 0 | O57: 0 | P57: 0 | Q57: 0 | R57: 0 | S57: 0 | T57: 0 | U57: 0 | V57: 0 | W57: 0 | X57: 0 | Y57: 0 | Z57: 0 | AB57: 214.8566553 | AC57: 214.8566553 | AD57: 214.8566553 | AE57: 117.5004691 | AF57: 20.95273917 | AG57: 2.89855802 | AI57: 4.792645947 | AK57: =OFFSET(AA54,A57,A57) -> 214.8566553 | AM57: 2.648642471e-19 | AN57: -0.004406959721 | AO57: 0.01467852067 | AP57: -0.01027156095 | AQ57: -2.892244622e-18 | AR57: -1.005998129e-18 | AT57: 2.648642471e-19 | AU57: 2.648642471e-19 | AV57: 2.648642471e-19 | AW57: 2.648642471e-19 | AX57: 2.648642471e-19 | AY57: 2.648642471e-19 | AZ57: -0.004406959721 | BA57: -0.004406959721 | BB57: -0.004406959721 | BC57: -0.004406959721 | BD57: -0.004406959721 | BE57: 0.01027156095 | BF57: 0.01027156095 | BG57: 0.01027156095 | BH57: 0.01027156095 | BI57: 5.204170428e-18 | BJ57: 5.204170428e-18 | BK57: 5.204170428e-18 | BL57: 2.311925806e-18 | BM57: 2.311925806e-18 | BN57: 1.305927676e-18 | BP57: 559.4568179 | BR57: -0.6236304469 | BT57: =BR57-BW28/$K$1 -> -0.8009993434
A58: 4 | B58: 133.6744999 | D58: 4.759883696 | F58: 0 | G58: 0 | H58: 0 | I58: 116.7323487 | J58: 0 | K58: 0 | L58: 0 | M58: 0 | N58: 0 | O58: 0 | P58: 0 | Q58: 0 | R58: 0 | S58: 0 | T58: 0 | U58: 0 | V58: 0 | W58: 0 | X58: 0 | Y58: 0 | Z58: 0 | AB58: 117.5004691 | AC58: 117.5004691 | AD58: 117.5004691 | AE58: 117.5004691 | AF58: 20.95273917 | AG58: 2.89855802 | AI58: 4.905020424 | AK58: =OFFSET(AA54,A58,A58) -> 117.5004691 | AM58: 1.193633853e-21 | AN58: -2.362163852e-18 | AO58: -0.01027156095 | AP58: 0.02062913228 | AQ58: -0.01035757133 | AR58: 0 | AT58: 1.193633853e-21 | AU58: 1.193633853e-21 | AV58: 1.193633853e-21 | AW58: 1.193633853e-21 | AX58: 1.193633853e-21 | AY58: 1.193633853e-21 | AZ58: -2.360970218e-18 | BA58: -2.360970218e-18 | BB58: -2.360970218e-18 | BC58: -2.360970218e-18 | BD58: -2.360970218e-18 | BE58: -0.01027156095 | BF58: -0.01027156095 | BG58: -0.01027156095 | BH58: -0.01027156095 | BI58: 0.01035757133 | BJ58: 0.01035757133 | BK58: 0.01035757133 | BL58: 0 | BM58: 0 | BN58: 0 | BP58: 572.5745546 | BR58: 0.2802853547 | BT58: =BR58-BW28/$K$1 -> 0.1029164582
A59: 5 | B59: 91.75121983 | D59: 4.759883696 | F59: 0 | G59: 0 | H59: 0 | I59: 0 | J59: 116.7323487 | K59: 0 | L59: 0 | M59: 0 | N59: 0 | O59: 0 | P59: 0 | Q59: 0 | R59: 0 | S59: 0 | T59: 0 | U59: 0 | V59: 0 | W59: 0 | X59: 0 | Y59: 0 | Z59: 0 | AB59: 20.95273917 | AC59: 20.95273917 | AD59: 20.95273917 | AE59: 20.95273917 | AF59: 20.95273917 | AG59: 2.89855802 | AI59: 4.545880216 | AK59: =OFFSET(AA54,A59,A59) -> 20.95273917 | AM59: -1.197191005e-19 | AN59: 1.510044425e-18 | AO59: -3.697314388e-18 | AP59: -0.01035757133 | AQ59: 0.06574640296 | AR59: -0.05538883163 | AT59: -1.197191005e-19 | AU59: -1.197191005e-19 | AV59: -1.197191005e-19 | AW59: -1.197191005e-19 | AX59: -1.197191005e-19 | AY59: -1.197191005e-19 | AZ59: 1.390325325e-18 | BA59: 1.390325325e-18 | BB59: 1.390325325e-18 | BC59: 1.390325325e-18 | BD59: 1.390325325e-18 | BE59: -2.306989063e-18 | BF59: -2.306989063e-18 | BG59: -2.306989063e-18 | BH59: -2.306989063e-18 | BI59: -0.01035757133 | BJ59: -0.01035757133 | BK59: -0.01035757133 | BL59: 0.05538883163 | BM59: 0.05538883163 | BN59: 0 | BP59: 530.6512745 | BR59: -1.271494944 | BT59: =BR59-BW28/$K$1 -> -1.448863841
A60: 6 | B60: 133.6744999 | D60: 4.759883696 | F60: 0 | G60: 0 | H60: 0 | I60: 0 | J60: 0 | K60: 116.7323487 | L60: 0 | M60: 0 | N60: 0 | O60: 0 | P60: 0 | Q60: 0 | R60: 0 | S60: 0 | T60: 0 | U60: 0 | V60: 0 | W60: 0 | X60: 0 | Y60: 0 | Z60: 0 | AB60: 2.89855802 | AC60: 2.89855802 | AD60: 2.89855802 | AE60: 2.89855802 | AF60: 2.89855802 | AG60: 2.89855802 | AI60: 4.905020424 | AK60: =OFFSET(AA54,A60,A60) -> 2.89855802 | AM60: -1.736405998e-19 | AN60: 3.102251733e-19 | AO60: -2.407689333e-18 | AP60: 2.778249597e-18 | AQ60: -0.05538883163 | AR60: 0.4003879633 | AT60: -1.736405998e-19 | AU60: -1.736405998e-19 | AV60: -1.736405998e-19 | AW60: -1.736405998e-19 | AX60: -1.736405998e-19 | AY60: -1.736405998e-19 | AZ60: 1.365845734e-19 | BA60: 1.365845734e-19 | BB60: 1.365845734e-19 | BC60: 1.365845734e-19 | BD60: 1.365845734e-19 | BE60: -2.27110476e-18 | BF60: -2.27110476e-18 | BG60: -2.27110476e-18 | BH60: -2.27110476e-18 | BI60: 5.071448377e-19 | BJ60: 5.071448377e-19 | BK60: 5.071448377e-19 | BL60: -0.05538883163 | BM60: -0.05538883163 | BN60: 0.3449991316 | BP60: 572.5745546 | BR60: -1.135714973 | BT60: =BR60-BW28/$K$1 -> -1.31308387
A61: 7 | B61: 60.64911064 | D61: 3.815132321 | F61: 0 | G61: 0 | H61: 0 | I61: 0 | J61: 0 | K61: 0 | L61: 45.38276106 | M61: 0 | N61: 0 | O61: 0 | P61: 0 | Q61: 0 | R61: 0 | S61: 0 | T61: 0 | U61: 0 | V61: 0 | W61: 0 | X61: 0 | Y61: 0 | Z61: 0 | AI61: 4.151523259 | BP61: 188.4075881
A62: 8 | B62: 55.69491253 | D62: 3.815132321 | F62: 0 | G62: 0 | H62: 0 | I62: 0 | J62: 0 | K62: 0 | L62: 0 | M62: 45.38276106 | N62: 0 | O62: 0 | P62: 0 | Q62: 0 | R62: 0 | S62: 0 | T62: 0 | U62: 0 | V62: 0 | W62: 0 | X62: 0 | Y62: 0 | Z62: 0 | AI62: 4.042358501 | BP62: 183.45339
A63: 9 | B63: 37.04554885 | D63: 3.815132321 | F63: 0 | G63: 0 | H63: 0 | I63: 0 | J63: 0 | K63: 0 | L63: 0 | M63: 0 | N63: 45.38276106 | O63: 0 | P63: 0 | Q63: 0 | R63: 0 | S63: 0 | T63: 0 | U63: 0 | V63: 0 | W63: 0 | X63: 0 | Y63: 0 | Z63: 0 | AI63: 3.631423529 | BP63: 164.8040263
A64: 10 | B64: 34.38592399 | D64: 3.815132321 | F64: 0 | G64: 0 | H64: 0 | I64: 0 | J64: 0 | K64: 0 | L64: 0 | M64: 0 | N64: 0 | O64: 45.38276106 | P64: 0 | Q64: 0 | R64: 0 | S64: 0 | T64: 0 | U64: 0 | V64: 0 | W64: 0 | X64: 0 | Y64: 0 | Z64: 0 | AI64: 3.57281923 | BP64: 162.1444014
A65: 11 | B65: 39.05572809 | D65: 3.815132321 | F65: =IF($A65=F$4,IF($B65<0,-(EXP(-$D65)^(2-$H$1)),IF($B65=0,0,EXP($D65)^(2-$H$1))),0) -> 0 | G65: 0 | H65: 0 | I65: 0 | J65: 0 | K65: 0 | L65: 0 | M65: 0 | N65: 0 | O65: 0 | P65: =IF($A65=P$4,IF($B65<0,-(EXP(-$D65)^(2-$H$1)),IF($B65=0,0,EXP($D65)^(2-$H$1))),0) -> 45.38276106 | Q65: 0 | R65: 0 | S65: 0 | T65: 0 | U65: 0 | V65: 0 | W65: 0 | X65: 0 | Y65: 0 | Z65: 0 | AI65: 3.675717423 | BP65: 166.8142055
A66: 12 | B66: 31.68558654 | D66: 3.192081914 | F66: 0 | G66: 0 | H66: 0 | I66: 0 | J66: 0 | K66: 0 | L66: 0 | M66: 0 | N66: 0 | O66: 0 | P66: 0 | Q66: 24.33904654 | R66: 0 | S66: 0 | T66: 0 | U66: 0 | V66: 0 | W66: 0 | X66: 0 | Y66: 0 | Z66: 0 | AI66: 3.493923648 | BP66: 85.03877027
A67: 13 | B67: 18.04216838 | D67: 3.192081914 | F67: 0 | G67: 0 | H67: 0 | I67: 0 | J67: 0 | K67: 0 | L67: 0 | M67: 0 | N67: 0 | O67: 0 | P67: 0 | Q67: 0 | R67: 24.33904654 | S67: 0 | T67: 0 | U67: 0 | V67: 0 | W67: 0 | X67: 0 | Y67: 0 | Z67: 0 | AI67: 2.933366843 | BP67: 71.39535212
A68: 14 | B68: 16.37627564 | D68: 3.192081914 | F68: 0 | G68: 0 | H68: 0 | I68: 0 | J68: 0 | K68: 0 | L68: 0 | M68: 0 | N68: 0 | O68: 0 | P68: 0 | Q68: 0 | R68: 0 | S68: 24.33904654 | T68: 0 | U68: 0 | V68: 0 | W68: 0 | X68: 0 | Y68: 0 | Z68: 0 | AI68: 2.864921568 | BP68: 69.72945938
A69: 15 | B69: 31.16025404 | D69: 3.192081914 | F69: 0 | G69: 0 | H69: 0 | I69: 0 | J69: 0 | K69: 0 | L69: 0 | M69: 0 | N69: 0 | O69: 0 | P69: 0 | Q69: 0 | R69: 0 | S69: 0 | T69: 24.33904654 | U69: 0 | V69: 0 | W69: 0 | X69: 0 | Y69: 0 | Z69: 0 | AI69: 3.472339708 | BP69: 84.51343778
A70: 16 | B70: 35.04924622 | D70: 3.471425208 | F70: 0 | G70: 0 | H70: 0 | I70: 0 | J70: 0 | K70: 0 | L70: 0 | M70: 0 | N70: 0 | O70: 0 | P70: 0 | Q70: 0 | R70: 0 | S70: 0 | T70: 0 | U70: 32.18257665 | V70: 0 | W70: 0 | X70: 0 | Y70: 0 | Z70: 0 | AI70: 3.560500412 | BP70: 114.5860774
A71: 17 | B71: 30.74914957 | D71: 3.471425208 | F71: 0 | G71: 0 | H71: 0 | I71: 0 | J71: 0 | K71: 0 | L71: 0 | M71: 0 | N71: 0 | O71: 0 | P71: 0 | Q71: 0 | R71: 0 | S71: 0 | T71: 0 | U71: 0 | V71: 32.18257665 | W71: 0 | X71: 0 | Y71: 0 | Z71: 0 | AI71: 3.426884739 | BP71: 110.2859808
A72: 18 | B72: 30.74914957 | D72: 3.471425208 | F72: 0 | G72: 0 | H72: 0 | I72: 0 | J72: 0 | K72: 0 | L72: 0 | M72: 0 | N72: 0 | O72: 0 | P72: 0 | Q72: 0 | R72: 0 | S72: 0 | T72: 0 | U72: 0 | V72: 0 | W72: 32.18257665 | X72: 0 | Y72: 0 | Z72: 0 | AI72: 3.426884739 | BP72: 110.2859808
A73: 19 | B73: 7.028112252 | D73: 2.20023012 | F73: 0 | G73: 0 | H73: 0 | I73: 0 | J73: 0 | K73: 0 | L73: 0 | M73: 0 | N73: 0 | O73: 0 | P73: 0 | Q73: 0 | R73: 0 | S73: 0 | T73: 0 | U73: 0 | V73: 0 | W73: 0 | X73: 9.027090576 | Y73: 0 | Z73: 0 | AI73: 1.978787973 | BP73: 17.86269826
A74: 20 | B74: 11.02062073 | D74: 2.20023012 | F74: 0 | G74: 0 | H74: 0 | I74: 0 | J74: 0 | K74: 0 | L74: 0 | M74: 0 | N74: 0 | O74: 0 | P74: 0 | Q74: 0 | R74: 0 | S74: 0 | T74: 0 | U74: 0 | V74: 0 | W74: 0 | X74: 0 | Y74: 9.027090576 | Z74: 0 | AI74: 2.421068732 | BP74: 21.85520673
A75: 21 | B75: 2.89855802 | D75: 1.064213379 | F75: 0 | G75: 0 | H75: 0 | I75: 0 | J75: 0 | K75: 0 | L75: 0 | M75: 0 | N75: 0 | O75: 0 | P75: 0 | Q75: 0 | R75: 0 | S75: 0 | T75: 0 | U75: 0 | V75: 0 | W75: 0 | X75: 0 | Y75: 0 | Z75: 2.89855802 | AI75: 1.064213379 | BP75: 3.084684225
A77: Newton-Raphson Interation Sequence -- Iteration 4
B78: y(i) | D78: xb(i) | F78: W(i,i) | AB78: XWX | AI78: zz(i) | AK78: factor | AM78: xwx-1 | AT78: aa1(i,j) | BP78: aa2(j) | BR78: beta(j) | BT78: beta_diff = | BU78: =SUM(BT80:BT90) -> 2.886579864e-15 | BV78: beta_old = | BW78: =SUM(BR80:BR90) -> 1.064213379
B79: 1 | D79: 1 | F79: 1 | G79: 2 | H79: 3 | I79: 4 | J79: 5 | K79: 6 | L79: 7 | M79: 8 | N79: 9 | O79: 10 | P79: 11 | Q79: 12 | R79: 13 | S79: 14 | T79: 15 | U79: 16 | V79: 17 | W79: 18 | X79: 19 | Y79: 20 | Z79: 21 | AB79: 1 | AC79: 2 | AD79: 3 | AE79: 4 | AF79: 5 | AG79: 6 | AI79: 1 | AM79: 1 | AN79: 2 | AO79: 3 | AP79: 4 | AQ79: 5 | AR79: 6 | AT79: 1 | AU79: 2 | AV79: 3 | AW79: 4 | AX79: 5 | AY79: 6 | AZ79: 7 | BA79: 8 | BB79: 9 | BC79: 10 | BD79: 11 | BE79: 12 | BF79: 13 | BG79: 14 | BH79: 15 | BI79: 16 | BJ79: 17 | BK79: 18 | BL79: 19 | BM79: 20 | BN79: 21
A80: 1 | B80: =B55 -> 94.65883348 | D80: =MMULT(DesignMatrix,BR55:BR60) -> 4.759820464 | F80: =IF($A80=F$4,IF($B80<0,-(EXP(-$D80)^(2-$H$1)),IF($B80=0,0,EXP($D80)^(2-$H$1))),0) -> 116.7249677 | G80: 0 | H80: 0 | I80: 0 | J80: 0 | K80: 0 | L80: 0 | M80: 0 | N80: 0 | O80: 0 | P80: =IF($A80=P$4,IF($B80<0,-(EXP(-$D80)^(2-$H$1)),IF($B80=0,0,EXP($D80)^(2-$H$1))),0) -> 0 | Q80: 0 | R80: 0 | S80: 0 | T80: 0 | U80: 0 | V80: 0 | W80: 0 | X80: 0 | Y80: 0 | Z80: 0 | AB80: =MMULT(TRANSPOSE(DesignMatrix),MMULT(F80:Z100,DesignMatrix)) -> 1141.940211 | AC80: 441.5904043 | AD80: 214.7591651 | AE80: 117.4948372 | AF80: 20.94729182 | AG80: 2.89855802 | AI80: =IF(B80<0,D80+(B80+EXP(-D80))/-EXP(-D80),IF(B80=0,0,D80+(B80-EXP(D80))/EXP(D80))) -> 4.57077664 | AK80: =OFFSET(AA79,A80,A80) -> 1141.940211 | AM80: =MINVERSE(AB80:AG85) -> 0.001427857895 | AN80: -0.001427857895 | AO80: -3.888900712e-19 | AP80: 2.603096687e-19 | AQ80: 2.430562945e-20 | AR80: 0 | AT80: =MMULT(AM80:AR85,TRANSPOSE(DesignMatrix)) -> 0.001427857895 | AU80: 0.001427857895 | AV80: 0.001427857895 | AW80: 0.001427857895 | AX80: 0.001427857895 | AY80: 0.001427857895 | AZ80: -4.33680869e-19 | BA80: -4.33680869e-19 | BB80: -4.33680869e-19 | BC80: -4.33680869e-19 | BD80: -4.33680869e-19 | BE80: -8.225709402e-19 | BF80: -8.225709402e-19 | BG80: -8.225709402e-19 | BH80: -8.225709402e-19 | BI80: -5.622612715e-19 | BJ80: -5.622612715e-19 | BK80: -5.622612715e-19 | BL80: -5.379556421e-19 | BM80: -5.379556421e-19 | BN80: -5.379556421e-19 | BP80: =MMULT(F80:Z100,AI80:AI100) -> 533.5237558 | BR80: =MMULT(AT80:BN85,BP80:BP100) -> 4.759820462 | BT80: =BR80-BW53/$K$1 -> 4.582451566
A81: 2 | B81: =B56 -> 126.0339887 | D81: 4.759820464 | F81: 0 | G81: 116.7249677 | H81: 0 | I81: 0 | J81: 0 | K81: 0 | L81: 0 | M81: 0 | N81: 0 | O81: 0 | P81: 0 | Q81: 0 | R81: 0 | S81: 0 | T81: 0 | U81: 0 | V81: 0 | W81: 0 | X81: 0 | Y81: 0 | Z81: 0 | AB81: 441.5904043 | AC81: 441.5904043 | AD81: 214.7591651 | AE81: 117.4948372 | AF81: 20.94729182 | AG81: 2.89855802 | AI81: =IF(B81<0,D81+(B81+EXP(-D81))/-EXP(-D81),IF(B81=0,0,D81+(B81-EXP(D81))/EXP(D81))) -> 4.839572219 | AK81: =OFFSET(AA79,A81,A81) -> 441.5904043 | AM81: -0.001427857895 | AN81: 0.005836421741 | AO81: -0.004408563846 | AP81: 1.109094586e-18 | AQ81: -7.173927838e-19 | AR81: 4.099387336e-19 | AT81: -0.001427857895 | AU81: -0.001427857895 | AV81: -0.001427857895 | AW81: -0.001427857895 | AX81: -0.001427857895 | AY81: -0.001427857895 | AZ81: 0.004408563846 | BA81: 0.004408563846 | BB81: 0.004408563846 | BC81: 0.004408563846 | BD81: 0.004408563846 | BE81: 8.67361738e-19 | BF81: 8.67361738e-19 | BG81: 8.67361738e-19 | BH81: 8.67361738e-19 | BI81: 1.976456324e-18 | BJ81: 1.976456324e-18 | BK81: 1.976456324e-18 | BL81: 1.25906354e-18 | BM81: 1.25906354e-18 | BN81: 1.669002274e-18 | BP81: 564.8989111 | BR81: -0.94505214 | BT81: =BR81-BW53/$K$1 -> -1.122421036
A82: 3 | B82: 120.5567632 | D82: 4.759820464 | F82: 0 | G82: 0 | H82: 116.7249677 | I82: 0 | J82: 0 | K82: 0 | L82: 0 | M82: 0 | N82: 0 | O82: 0 | P82: 0 | Q82: 0 | R82: 0 | S82: 0 | T82: 0 | U82: 0 | V82: 0 | W82: 0 | X82: 0 | Y82: 0 | Z82: 0 | AB82: 214.7591651 | AC82: 214.7591651 | AD82: 214.7591651 | AE82: 117.4948372 | AF82: 20.94729182 | AG82: 2.89855802 | AI82: 4.792648021 | AK82: =OFFSET(AA79,A82,A82) -> 214.7591651 | AM82: 4.077245609e-19 | AN82: -0.004408563846 | AO82: 0.01468982545 | AP82: -0.0102812616 | AQ82: 6.29006745e-19 | AR82: 0 | AT82: 4.077245609e-19 | AU82: 4.077245609e-19 | AV82: 4.077245609e-19 | AW82: 4.077245609e-19 | AX82: 4.077245609e-19 | AY82: 4.077245609e-19 | AZ82: -0.004408563846 | BA82: -0.004408563846 | BB82: -0.004408563846 | BC82: -0.004408563846 | BD82: -0.004408563846 | BE82: 0.0102812616 | BF82: 0.0102812616 | BG82: 0.0102812616 | BH82: 0.0102812616 | BI82: -1.734723476e-18 | BJ82: -1.734723476e-18 | BK82: -1.734723476e-18 | BL82: -1.105716731e-18 | BM82: -1.105716731e-18 | BN82: -1.105716731e-18 | BP82: 559.4216855 | BR82: -0.6236308265 | BT82: =BR82-BW53/$K$1 -> -0.8009997229
A83: 4 | B83: 133.6744999 | D83: 4.759820464 | F83: 0 | G83: 0 | H83: 0 | I83: 116.7249677 | J83: 0 | K83: 0 | L83: 0 | M83: 0 | N83: 0 | O83: 0 | P83: 0 | Q83: 0 | R83: 0 | S83: 0 | T83: 0 | U83: 0 | V83: 0 | W83: 0 | X83: 0 | Y83: 0 | Z83: 0 | AB83: 117.4948372 | AC83: 117.4948372 | AD83: 117.4948372 | AE83: 117.4948372 | AF83: 20.94729182 | AG83: 2.89855802 | AI83: 4.905029604 | AK83: =OFFSET(AA79,A83,A83) -> 117.4948372 | AM83: -2.853623337e-19 | AN83: 1.001946023e-18 | AO83: -0.0102812616 | AP83: 0.02063885274 | AQ83: -0.01035759114 | AR83: 0 | AT83: -2.853623337e-19 | AU83: -2.853623337e-19 | AV83: -2.853623337e-19 | AW83: -2.853623337e-19 | AX83: -2.853623337e-19 | AY83: -2.853623337e-19 | AZ83: 7.165836897e-19 | BA83: 7.165836897e-19 | BB83: 7.165836897e-19 | BC83: 7.165836897e-19 | BD83: 7.165836897e-19 | BE83: -0.0102812616 | BF83: -0.0102812616 | BG83: -0.0102812616 | BH83: -0.0102812616 | BI83: 0.01035759114 | BJ83: 0.01035759114 | BK83: 0.01035759114 | BL83: 0 | BM83: 0 | BN83: 0 | BP83: 572.5394222 | BR83: 0.2802858005 | BT83: =BR83-BW53/$K$1 -> 0.102916904
A84: 5 | B84: 91.75121983 | D84: 4.759820464 | F84: 0 | G84: 0 | H84: 0 | I84: 0 | J84: 116.7249677 | K84: 0 | L84: 0 | M84: 0 | N84: 0 | O84: 0 | P84: 0 | Q84: 0 | R84: 0 | S84: 0 | T84: 0 | U84: 0 | V84: 0 | W84: 0 | X84: 0 | Y84: 0 | Z84: 0 | AB84: 20.94729182 | AC84: 20.94729182 | AD84: 20.94729182 | AE84: 20.94729182 | AF84: 20.94729182 | AG84: 2.89855802 | AI84: 4.545866686 | AK84: =OFFSET(AA79,A84,A84) -> 20.94729182 | AM84: 5.335360269e-36 | AN84: 1.935151335e-19 | AO84: 1.922266122e-19 | AP84: -0.01035759114 | AQ84: 0.06576313986 | AR84: -0.05540554873 | AT84: 5.335360269e-36 | AU84: 5.335360269e-36 | AV84: 5.335360269e-36 | AW84: 5.335360269e-36 | AX84: 5.335360269e-36 | AY84: 5.335360269e-36 | AZ84: 1.935151335e-19 | BA84: 1.935151335e-19 | BB84: 1.935151335e-19 | BC84: 1.935151335e-19 | BD84: 1.935151335e-19 | BE84: 3.857417457e-19 | BF84: 3.857417457e-19 | BG84: 3.857417457e-19 | BH84: 3.857417457e-19 | BI84: -0.01035759114 | BJ84: -0.01035759114 | BK84: -0.01035759114 | BL84: 0.05540554873 | BM84: 0.05540554873 | BN84: 0 | BP84: 530.6161422 | BR84: -1.27149499 | BT84: =BR84-BW53/$K$1 -> -1.448863886
A85: 6 | B85: 133.6744999 | D85: 4.759820464 | F85: 0 | G85: 0 | H85: 0 | I85: 0 | J85: 0 | K85: 116.7249677 | L85: 0 | M85: 0 | N85: 0 | O85: 0 | P85: 0 | Q85: 0 | R85: 0 | S85: 0 | T85: 0 | U85: 0 | V85: 0 | W85: 0 | X85: 0 | Y85: 0 | Z85: 0 | AB85: 2.89855802 | AC85: 2.89855802 | AD85: 2.89855802 | AE85: 2.89855802 | AF85: 2.89855802 | AG85: 2.89855802 | AI85: 4.905029604 | AK85: =OFFSET(AA79,A85,A85) -> 2.89855802 | AM85: -3.855756819e-35 | AN85: 2.729806498e-19 | AO85: -1.389182798e-18 | AP85: 2.778365596e-18 | AQ85: -0.05540554873 | AR85: 0.4004046804 | AT85: -3.855756819e-35 | AU85: -3.855756819e-35 | AV85: -3.855756819e-35 | AW85: -3.855756819e-35 | AX85: -3.855756819e-35 | AY85: -3.855756819e-35 | AZ85: 2.729806498e-19 | BA85: 2.729806498e-19 | BB85: 2.729806498e-19 | BC85: 2.729806498e-19 | BD85: 2.729806498e-19 | BE85: -1.116202148e-18 | BF85: -1.116202148e-18 | BG85: -1.116202148e-18 | BH85: -1.116202148e-18 | BI85: 1.662163448e-18 | BJ85: 1.662163448e-18 | BK85: 1.662163448e-18 | BL85: -0.05540554873 | BM85: -0.05540554873 | BN85: 0.3449991316 | BP85: 572.5394222 | BR85: -1.135714928 | BT85: =BR85-BW53/$K$1 -> -1.313083824
A86: 7 | B86: 60.64911064 | D86: 3.814768389 | F86: 0 | G86: 0 | H86: 0 | I86: 0 | J86: 0 | K86: 0 | L86: 45.36624782 | M86: 0 | N86: 0 | O86: 0 | P86: 0 | Q86: 0 | R86: 0 | S86: 0 | T86: 0 | U86: 0 | V86: 0 | W86: 0 | X86: 0 | Y86: 0 | Z86: 0 | AI86: 4.151645771 | BP86: 188.3445909
A87: 8 | B87: 55.69491253 | D87: 3.814768389 | F87: 0 | G87: 0 | H87: 0 | I87: 0 | J87: 0 | K87: 0 | L87: 0 | M87: 45.36624782 | N87: 0 | O87: 0 | P87: 0 | Q87: 0 | R87: 0 | S87: 0 | T87: 0 | U87: 0 | V87: 0 | W87: 0 | X87: 0 | Y87: 0 | Z87: 0 | AI87: 4.042441278 | BP87: 183.3903928
A88: 9 | B88: 37.04554885 | D88: 3.814768389 | F88: 0 | G88: 0 | H88: 0 | I88: 0 | J88: 0 | K88: 0 | L88: 0 | M88: 0 | N88: 45.36624782 | O88: 0 | P88: 0 | Q88: 0 | R88: 0 | S88: 0 | T88: 0 | U88: 0 | V88: 0 | W88: 0 | X88: 0 | Y88: 0 | Z88: 0 | AI88: 3.631356725 | BP88: 164.7410291
A89: 10 | B89: 34.38592399 | D89: 3.814768389 | F89: 0 | G89: 0 | H89: 0 | I89: 0 | J89: 0 | K89: 0 | L89: 0 | M89: 0 | N89: 0 | O89: 45.36624782 | P89: 0 | Q89: 0 | R89: 0 | S89: 0 | T89: 0 | U89: 0 | V89: 0 | W89: 0 | X89: 0 | Y89: 0 | Z89: 0 | AI89: 3.572731095 | BP89: 162.0814043
A90: 11 | B90: 39.05572809 | D90: 3.814768389 | F90: =IF($A90=F$4,IF($B90<0,-(EXP(-$D90)^(2-$H$1)),IF($B90=0,0,EXP($D90)^(2-$H$1))),0) -> 0 | G90: 0 | H90: 0 | I90: 0 | J90: 0 | K90: 0 | L90: 0 | M90: 0 | N90: 0 | O90: 0 | P90: =IF($A90=P$4,IF($B90<0,-(EXP(-$D90)^(2-$H$1)),IF($B90=0,0,EXP($D90)^(2-$H$1))),0) -> 45.36624782 | Q90: 0 | R90: 0 | S90: 0 | T90: 0 | U90: 0 | V90: 0 | W90: 0 | X90: 0 | Y90: 0 | Z90: 0 | AI90: 3.675666743 | BP90: 166.7512084
A91: 12 | B91: 31.68558654 | D91: 3.191137942 | F91: 0 | G91: 0 | H91: 0 | I91: 0 | J91: 0 | K91: 0 | L91: 0 | M91: 0 | N91: 0 | O91: 0 | P91: 0 | Q91: 24.31608199 | R91: 0 | S91: 0 | T91: 0 | U91: 0 | V91: 0 | W91: 0 | X91: 0 | Y91: 0 | Z91: 0 | AI91: 3.494209158 | BP91: 84.96547638
A92: 13 | B92: 18.04216838 | D92: 3.191137942 | F92: 0 | G92: 0 | H92: 0 | I92: 0 | J92: 0 | K92: 0 | L92: 0 | M92: 0 | N92: 0 | O92: 0 | P92: 0 | Q92: 0 | R92: 24.31608199 | S92: 0 | T92: 0 | U92: 0 | V92: 0 | W92: 0 | X92: 0 | Y92: 0 | Z92: 0 | AI92: 2.933122953 | BP92: 71.32205822
A93: 14 | B93: 16.37627564 | D93: 3.191137942 | F93: 0 | G93: 0 | H93: 0 | I93: 0 | J93: 0 | K93: 0 | L93: 0 | M93: 0 | N93: 0 | O93: 0 | P93: 0 | Q93: 0 | R93: 0 | S93: 24.31608199 | T93: 0 | U93: 0 | V93: 0 | W93: 0 | X93: 0 | Y93: 0 | Z93: 0 | AI93: 2.864613037 | BP93: 69.65616548
A94: 15 | B94: 31.16025404 | D94: 3.191137942 | F94: 0 | G94: 0 | H94: 0 | I94: 0 | J94: 0 | K94: 0 | L94: 0 | M94: 0 | N94: 0 | O94: 0 | P94: 0 | Q94: 0 | R94: 0 | S94: 0 | T94: 24.31608199 | U94: 0 | V94: 0 | W94: 0 | X94: 0 | Y94: 0 | Z94: 0 | AI94: 3.472604835 | BP94: 84.44014388
A95: 16 | B95: 35.04924622 | D95: 3.471423296 | F95: 0 | G95: 0 | H95: 0 | I95: 0 | J95: 0 | K95: 0 | L95: 0 | M95: 0 | N95: 0 | O95: 0 | P95: 0 | Q95: 0 | R95: 0 | S95: 0 | T95: 0 | U95: 32.18251512 | V95: 0 | W95: 0 | X95: 0 | Y95: 0 | Z95: 0 | AI95: 3.560500582 | BP95: 114.5858638
A96: 17 | B96: 30.74914957 | D96: 3.471423296 | F96: 0 | G96: 0 | H96: 0 | I96: 0 | J96: 0 | K96: 0 | L96: 0 | M96: 0 | N96: 0 | O96: 0 | P96: 0 | Q96: 0 | R96: 0 | S96: 0 | T96: 0 | U96: 0 | V96: 32.18251512 | W96: 0 | X96: 0 | Y96: 0 | Z96: 0 | AI96: 3.426884653 | BP96: 110.2857672
A97: 18 | B97: 30.74914957 | D97: 3.471423296 | F97: 0 | G97: 0 | H97: 0 | I97: 0 | J97: 0 | K97: 0 | L97: 0 | M97: 0 | N97: 0 | O97: 0 | P97: 0 | Q97: 0 | R97: 0 | S97: 0 | T97: 0 | U97: 0 | V97: 0 | W97: 32.18251512 | X97: 0 | Y97: 0 | Z97: 0 | AI97: 3.426884653 | BP97: 110.2857672
A98: 19 | B98: 7.028112252 | D98: 2.199928352 | F98: 0 | G98: 0 | H98: 0 | I98: 0 | J98: 0 | K98: 0 | L98: 0 | M98: 0 | N98: 0 | O98: 0 | P98: 0 | Q98: 0 | R98: 0 | S98: 0 | T98: 0 | U98: 0 | V98: 0 | W98: 0 | X98: 9.0243669 | Y98: 0 | Z98: 0 | AI98: 1.978721184 | BP98: 17.85670596
A99: 20 | B99: 11.02062073 | D99: 2.199928352 | F99: 0 | G99: 0 | H99: 0 | I99: 0 | J99: 0 | K99: 0 | L99: 0 | M99: 0 | N99: 0 | O99: 0 | P99: 0 | Q99: 0 | R99: 0 | S99: 0 | T99: 0 | U99: 0 | V99: 0 | W99: 0 | X99: 0 | Y99: 9.0243669 | Z99: 0 | AI99: 2.421135429 | BP99: 21.84921443
A100: 21 | B100: 2.89855802 | D100: 1.064213379 | F100: 0 | G100: 0 | H100: 0 | I100: 0 | J100: 0 | K100: 0 | L100: 0 | M100: 0 | N100: 0 | O100: 0 | P100: 0 | Q100: 0 | R100: 0 | S100: 0 | T100: 0 | U100: 0 | V100: 0 | W100: 0 | X100: 0 | Y100: 0 | Z100: 2.89855802 | AI100: 1.064213379 | BP100: 3.084684225
A102: Newton-Raphson Interation Sequence -- Iteration 5
B103: y(i) | D103: xb(i) | F103: W(i,i) | AB103: XWX | AI103: zz(i) | AK103: factor | AM103: xwx-1 | AT103: aa1(i,j) | BP103: aa2(j) | BR103: beta(j) | BT103: beta_diff = | BU103: =SUM(BT105:BT115) -> 0 | BV103: beta_old = | BW103: =SUM(BR105:BR115) -> 1.064213379
B104: 1 | D104: 1 | F104: 1 | G104: 2 | H104: 3 | I104: 4 | J104: 5 | K104: 6 | L104: 7 | M104: 8 | N104: 9 | O104: 10 | P104: 11 | Q104: 12 | R104: 13 | S104: 14 | T104: 15 | U104: 16 | V104: 17 | W104: 18 | X104: 19 | Y104: 20 | Z104: 21 | AB104: 1 | AC104: 2 | AD104: 3 | AE104: 4 | AF104: 5 | AG104: 6 | AI104: 1 | AM104: 1 | AN104: 2 | AO104: 3 | AP104: 4 | AQ104: 5 | AR104: 6 | AT104: 1 | AU104: 2 | AV104: 3 | AW104: 4 | AX104: 5 | AY104: 6 | AZ104: 7 | BA104: 8 | BB104: 9 | BC104: 10 | BD104: 11 | BE104: 12 | BF104: 13 | BG104: 14 | BH104: 15 | BI104: 16 | BJ104: 17 | BK104: 18 | BL104: 19 | BM104: 20 | BN104: 21
A105: 1 | B105: =B80 -> 94.65883348 | D105: =MMULT(DesignMatrix,BR80:BR85) -> 4.759820462 | F105: =IF($A105=F$4,IF($B105<0,-(EXP(-$D105)^(2-$H$1)),IF($B105=0,0,EXP($D105)^(2-$H$1))),0) -> 116.7249675 | G105: 0 | H105: 0 | I105: 0 | J105: 0 | K105: 0 | L105: 0 | M105: 0 | N105: 0 | O105: 0 | P105: =IF($A105=P$4,IF($B105<0,-(EXP(-$D105)^(2-$H$1)),IF($B105=0,0,EXP($D105)^(2-$H$1))),0) -> 0 | Q105: 0 | R105: 0 | S105: 0 | T105: 0 | U105: 0 | V105: 0 | W105: 0 | X105: 0 | Y105: 0 | Z105: 0 | AB105: =MMULT(TRANSPOSE(DesignMatrix),MMULT(F105:Z125,DesignMatrix)) -> 1141.94015 | AC105: 441.590345 | AD105: 214.759121 | AE105: 117.4948364 | AF105: 20.947291 | AG105: 2.89855802 | AI105: =IF(B105<0,D105+(B105+EXP(-D105))/-EXP(-D105),IF(B105=0,0,D105+(B105-EXP(D105))/EXP(D105))) -> 4.57077664 | AK105: =OFFSET(AA104,A105,A105) -> 1141.94015 | AM105: =MINVERSE(AB105:AG110) -> 0.001427857898 | AN105: -0.001427857898 | AO105: 1.352869162e-19 | AP105: -6.005885129e-19 | AQ105: 1.944450459e-19 | AR105: 0 | AT105: =MMULT(AM105:AR110,TRANSPOSE(DesignMatrix)) -> 0.001427857898 | AU105: 0.001427857898 | AV105: 0.001427857898 | AW105: 0.001427857898 | AX105: 0.001427857898 | AY105: 0.001427857898 | AZ105: -6.505213035e-19 | BA105: -6.505213035e-19 | BB105: -6.505213035e-19 | BC105: -6.505213035e-19 | BD105: -6.505213035e-19 | BE105: -5.152343873e-19 | BF105: -5.152343873e-19 | BG105: -5.152343873e-19 | BH105: -5.152343873e-19 | BI105: -1.1158229e-18 | BJ105: -1.1158229e-18 | BK105: -1.1158229e-18 | BL105: -9.213778542e-19 | BM105: -9.213778542e-19 | BN105: -9.213778542e-19 | BP105: =MMULT(F105:Z125,AI105:AI125) -> 533.5237547 | BR105: =MMULT(AT105:BN110,BP105:BP125) -> 4.759820462 | BT105: =BR105-BW78/$K$1 -> 4.582451566
A106: 2 | B106: =B81 -> 126.0339887 | D106: 4.759820462 | F106: 0 | G106: 116.7249675 | H106: 0 | I106: 0 | J106: 0 | K106: 0 | L106: 0 | M106: 0 | N106: 0 | O106: 0 | P106: 0 | Q106: 0 | R106: 0 | S106: 0 | T106: 0 | U106: 0 | V106: 0 | W106: 0 | X106: 0 | Y106: 0 | Z106: 0 | AB106: 441.590345 | AC106: 441.590345 | AD106: 214.759121 | AE106: 117.4948364 | AF106: 20.947291 | AG106: 2.89855802 | AI106: =IF(B106<0,D106+(B106+EXP(-D106))/-EXP(-D106),IF(B106=0,0,D106+(B106-EXP(D106))/EXP(D106))) -> 4.839572219 | AK106: =OFFSET(AA104,A106,A106) -> 441.590345 | AM106: -0.001427857898 | AN106: 0.005836422036 | AO106: -0.004408564138 | AP106: 1.760476696e-18 | AQ106: -9.223622271e-19 | AR106: -4.099387676e-19 | AT106: -0.001427857898 | AU106: -0.001427857898 | AV106: -0.001427857898 | AW106: -0.001427857898 | AX106: -0.001427857898 | AY106: -0.001427857898 | AZ106: 0.004408564138 | BA106: 0.004408564138 | BB106: 0.004408564138 | BC106: 0.004408564138 | BD106: 0.004408564138 | BE106: 0 | BF106: 0 | BG106: 0 | BH106: 0 | BI106: 1.760476696e-18 | BJ106: 1.760476696e-18 | BK106: 1.760476696e-18 | BL106: 8.381144691e-19 | BM106: 8.381144691e-19 | BN106: 4.281757015e-19 | BP106: 564.89891 | BR106: -0.94505214 | BT106: =BR106-BW78/$K$1 -> -1.122421036
A107: 3 | B107: 120.5567632 | D107: 4.759820462 | F107: 0 | G107: 0 | H107: 116.7249675 | I107: 0 | J107: 0 | K107: 0 | L107: 0 | M107: 0 | N107: 0 | O107: 0 | P107: 0 | Q107: 0 | R107: 0 | S107: 0 | T107: 0 | U107: 0 | V107: 0 | W107: 0 | X107: 0 | Y107: 0 | Z107: 0 | AB107: 214.759121 | AC107: 214.759121 | AD107: 214.759121 | AE107: 117.4948364 | AF107: 20.947291 | AG107: 2.89855802 | AI107: 4.792648021 | AK107: =OFFSET(AA104,A107,A107) -> 214.759121 | AM107: 2.650434658e-19 | AN107: -0.004408564138 | AO107: 0.01468983032 | AP107: -0.01028126618 | AQ107: 3.145034159e-18 | AR107: 1.006410931e-18 | AT107: 2.650434658e-19 | AU107: 2.650434658e-19 | AV107: 2.650434658e-19 | AW107: 2.650434658e-19 | AX107: 2.650434658e-19 | AY107: 2.650434658e-19 | AZ107: -0.004408564138 | BA107: -0.004408564138 | BB107: -0.004408564138 | BC107: -0.004408564138 | BD107: -0.004408564138 | BE107: 0.01028126618 | BF107: 0.01028126618 | BG107: 0.01028126618 | BH107: 0.01028126618 | BI107: -1.734723476e-18 | BJ107: -1.734723476e-18 | BK107: -1.734723476e-18 | BL107: 1.410310683e-18 | BM107: 1.410310683e-18 | BN107: 2.416721614e-18 | BP107: 559.4216844 | BR107: -0.6236308265 | BT107: =BR107-BW78/$K$1 -> -0.8009997229
A108: 4 | B108: 133.6744999 | D108: 4.759820462 | F108: 0 | G108: 0 | H108: 0 | I108: 116.7249675 | J108: 0 | K108: 0 | L108: 0 | M108: 0 | N108: 0 | O108: 0 | P108: 0 | Q108: 0 | R108: 0 | S108: 0 | T108: 0 | U108: 0 | V108: 0 | W108: 0 | X108: 0 | Y108: 0 | Z108: 0 | AB108: 117.4948364 | AC108: 117.4948364 | AD108: 117.4948364 | AE108: 117.4948364 | AF108: 20.947291 | AG108: 2.89855802 | AI108: 4.905029604 | AK108: =OFFSET(AA104,A108,A108) -> 117.4948364 | AM108: -3.487589149e-20 | AN108: 1.217556956e-18 | AO108: -0.01028126618 | AP108: 0.02063885732 | AQ108: -0.01035759114 | AR108: -2.086362028e-18 | AT108: -3.487589149e-20 | AU108: -3.487589149e-20 | AV108: -3.487589149e-20 | AW108: -3.487589149e-20 | AX108: -3.487589149e-20 | AY108: -3.487589149e-20 | AZ108: 1.182681064e-18 | BA108: 1.182681064e-18 | BB108: 1.182681064e-18 | BC108: 1.182681064e-18 | BD108: 1.182681064e-18 | BE108: -0.01028126618 | BF108: -0.01028126618 | BG108: -0.01028126618 | BH108: -0.01028126618 | BI108: 0.01035759114 | BJ108: 0.01035759114 | BK108: 0.01035759114 | BL108: 1.734723476e-18 | BM108: 1.734723476e-18 | BN108: -3.516385522e-19 | BP108: 572.5394211 | BR108: 0.2802858005 | BT108: =BR108-BW78/$K$1 -> 0.102916904
A109: 5 | B109: 91.75121983 | D109: 4.759820462 | F109: 0 | G109: 0 | H109: 0 | I109: 0 | J109: 116.7249675 | K109: 0 | L109: 0 | M109: 0 | N109: 0 | O109: 0 | P109: 0 | Q109: 0 | R109: 0 | S109: 0 | T109: 0 | U109: 0 | V109: 0 | W109: 0 | X109: 0 | Y109: 0 | Z109: 0 | AB109: 20.947291 | AC109: 20.947291 | AD109: 20.947291 | AE109: 20.947291 | AF109: 20.947291 | AG109: 2.89855802 | AI109: 4.545866685 | AK109: =OFFSET(AA104,A109,A109) -> 20.947291 | AM109: 6.03929543e-20 | AN109: -1.079341931e-18 | AO109: 3.458361122e-18 | AP109: -0.01035759114 | AQ109: 0.06576314239 | AR109: -0.05540555125 | AT109: 6.03929543e-20 | AU109: 6.03929543e-20 | AV109: 6.03929543e-20 | AW109: 6.03929543e-20 | AX109: 6.03929543e-20 | AY109: 6.03929543e-20 | AZ109: -1.018948977e-18 | BA109: -1.018948977e-18 | BB109: -1.018948977e-18 | BC109: -1.018948977e-18 | BD109: -1.018948977e-18 | BE109: 2.439412145e-18 | BF109: 2.439412145e-18 | BG109: 2.439412145e-18 | BH109: 2.439412145e-18 | BI109: -0.01035759114 | BJ109: -0.01035759114 | BK109: -0.01035759114 | BL109: 0.05540555125 | BM109: 0.05540555125 | BN109: 0 | BP109: 530.6161411 | BR109: -1.27149499 | BT109: =BR109-BW78/$K$1 -> -1.448863886
A110: 6 | B110: 133.6744999 | D110: 4.759820462 | F110: 0 | G110: 0 | H110: 0 | I110: 0 | J110: 0 | K110: 116.7249675 | L110: 0 | M110: 0 | N110: 0 | O110: 0 | P110: 0 | Q110: 0 | R110: 0 | S110: 0 | T110: 0 | U110: 0 | V110: 0 | W110: 0 | X110: 0 | Y110: 0 | Z110: 0 | AB110: 2.89855802 | AC110: 2.89855802 | AD110: 2.89855802 | AE110: 2.89855802 | AF110: 2.89855802 | AG110: 2.89855802 | AI110: 4.905029604 | AK110: =OFFSET(AA104,A110,A110) -> 2.89855802 | AM110: -1.857877008e-20 | AN110: 7.317489435e-19 | AO110: -1.686443128e-18 | AP110: -2.778365613e-18 | AQ110: -0.05540555125 | AR110: 0.4004046829 | AT110: -1.857877008e-20 | AU110: -1.857877008e-20 | AV110: -1.857877008e-20 | AW110: -1.857877008e-20 | AX110: -1.857877008e-20 | AY110: -1.857877008e-20 | AZ110: 7.131701734e-19 | BA110: 7.131701734e-19 | BB110: 7.131701734e-19 | BC110: 7.131701734e-19 | BD110: 7.131701734e-19 | BE110: -9.732729545e-19 | BF110: -9.732729545e-19 | BG110: -9.732729545e-19 | BH110: -9.732729545e-19 | BI110: -3.751638568e-18 | BJ110: -3.751638568e-18 | BK110: -3.751638568e-18 | BL110: -0.05540555125 | BM110: -0.05540555125 | BN110: 0.3449991316 | BP110: 572.5394211 | BR110: -1.135714928 | BT110: =BR110-BW78/$K$1 -> -1.313083824
A111: 7 | B111: 60.64911064 | D111: 3.814768322 | F111: 0 | G111: 0 | H111: 0 | I111: 0 | J111: 0 | K111: 0 | L111: 45.36624482 | M111: 0 | N111: 0 | O111: 0 | P111: 0 | Q111: 0 | R111: 0 | S111: 0 | T111: 0 | U111: 0 | V111: 0 | W111: 0 | X111: 0 | Y111: 0 | Z111: 0 | AI111: 4.151645793 | BP111: 188.3445795
A112: 8 | B112: 55.69491253 | D112: 3.814768322 | F112: 0 | G112: 0 | H112: 0 | I112: 0 | J112: 0 | K112: 0 | L112: 0 | M112: 45.36624482 | N112: 0 | O112: 0 | P112: 0 | Q112: 0 | R112: 0 | S112: 0 | T112: 0 | U112: 0 | V112: 0 | W112: 0 | X112: 0 | Y112: 0 | Z112: 0 | AI112: 4.042441293 | BP112: 183.3903813
A113: 9 | B113: 37.04554885 | D113: 3.814768322 | F113: 0 | G113: 0 | H113: 0 | I113: 0 | J113: 0 | K113: 0 | L113: 0 | M113: 0 | N113: 45.36624482 | O113: 0 | P113: 0 | Q113: 0 | R113: 0 | S113: 0 | T113: 0 | U113: 0 | V113: 0 | W113: 0 | X113: 0 | Y113: 0 | Z113: 0 | AI113: 3.631356713 | BP113: 164.7410177
A114: 10 | B114: 34.38592399 | D114: 3.814768322 | F114: 0 | G114: 0 | H114: 0 | I114: 0 | J114: 0 | K114: 0 | L114: 0 | M114: 0 | N114: 0 | O114: 45.36624482 | P114: 0 | Q114: 0 | R114: 0 | S114: 0 | T114: 0 | U114: 0 | V114: 0 | W114: 0 | X114: 0 | Y114: 0 | Z114: 0 | AI114: 3.572731079 | BP114: 162.0813928
A115: 11 | B115: 39.05572809 | D115: 3.814768322 | F115: =IF($A115=F$4,IF($B115<0,-(EXP(-$D115)^(2-$H$1)),IF($B115=0,0,EXP($D115)^(2-$H$1))),0) -> 0 | G115: 0 | H115: 0 | I115: 0 | J115: 0 | K115: 0 | L115: 0 | M115: 0 | N115: 0 | O115: 0 | P115: =IF($A115=P$4,IF($B115<0,-(EXP(-$D115)^(2-$H$1)),IF($B115=0,0,EXP($D115)^(2-$H$1))),0) -> 45.36624482 | Q115: 0 | R115: 0 | S115: 0 | T115: 0 | U115: 0 | V115: 0 | W115: 0 | X115: 0 | Y115: 0 | Z115: 0 | AI115: 3.675666734 | BP115: 166.7511969
A116: 12 | B116: 31.68558654 | D116: 3.191137496 | F116: 0 | G116: 0 | H116: 0 | I116: 0 | J116: 0 | K116: 0 | L116: 0 | M116: 0 | N116: 0 | O116: 0 | P116: 0 | Q116: 24.31607115 | R116: 0 | S116: 0 | T116: 0 | U116: 0 | V116: 0 | W116: 0 | X116: 0 | Y116: 0 | Z116: 0 | AI116: 3.494209293 | BP116: 84.96544178
A117: 13 | B117: 18.04216838 | D117: 3.191137496 | F117: 0 | G117: 0 | H117: 0 | I117: 0 | J117: 0 | K117: 0 | L117: 0 | M117: 0 | N117: 0 | O117: 0 | P117: 0 | Q117: 0 | R117: 24.31607115 | S117: 0 | T117: 0 | U117: 0 | V117: 0 | W117: 0 | X117: 0 | Y117: 0 | Z117: 0 | AI117: 2.933122838 | BP117: 71.32202362
A118: 14 | B118: 16.37627564 | D118: 3.191137496 | F118: 0 | G118: 0 | H118: 0 | I118: 0 | J118: 0 | K118: 0 | L118: 0 | M118: 0 | N118: 0 | O118: 0 | P118: 0 | Q118: 0 | R118: 0 | S118: 24.31607115 | T118: 0 | U118: 0 | V118: 0 | W118: 0 | X118: 0 | Y118: 0 | Z118: 0 | AI118: 2.864612892 | BP118: 69.65613089
A119: 15 | B119: 31.16025404 | D119: 3.191137496 | F119: 0 | G119: 0 | H119: 0 | I119: 0 | J119: 0 | K119: 0 | L119: 0 | M119: 0 | N119: 0 | O119: 0 | P119: 0 | Q119: 0 | R119: 0 | S119: 0 | T119: 24.31607115 | U119: 0 | V119: 0 | W119: 0 | X119: 0 | Y119: 0 | Z119: 0 | AI119: 3.47260496 | BP119: 84.44010928
A120: 16 | B120: 35.04924622 | D120: 3.471423296 | F120: 0 | G120: 0 | H120: 0 | I120: 0 | J120: 0 | K120: 0 | L120: 0 | M120: 0 | N120: 0 | O120: 0 | P120: 0 | Q120: 0 | R120: 0 | S120: 0 | T120: 0 | U120: 32.18251512 | V120: 0 | W120: 0 | X120: 0 | Y120: 0 | Z120: 0 | AI120: 3.560500582 | BP120: 114.5858638
A121: 17 | B121: 30.74914957 | D121: 3.471423296 | F121: 0 | G121: 0 | H121: 0 | I121: 0 | J121: 0 | K121: 0 | L121: 0 | M121: 0 | N121: 0 | O121: 0 | P121: 0 | Q121: 0 | R121: 0 | S121: 0 | T121: 0 | U121: 0 | V121: 32.18251512 | W121: 0 | X121: 0 | Y121: 0 | Z121: 0 | AI121: 3.426884653 | BP121: 110.2857672
A122: 18 | B122: 30.74914957 | D122: 3.471423296 | F122: 0 | G122: 0 | H122: 0 | I122: 0 | J122: 0 | K122: 0 | L122: 0 | M122: 0 | N122: 0 | O122: 0 | P122: 0 | Q122: 0 | R122: 0 | S122: 0 | T122: 0 | U122: 0 | V122: 0 | W122: 32.18251512 | X122: 0 | Y122: 0 | Z122: 0 | AI122: 3.426884653 | BP122: 110.2857672
A123: 19 | B123: 7.028112252 | D123: 2.199928307 | F123: 0 | G123: 0 | H123: 0 | I123: 0 | J123: 0 | K123: 0 | L123: 0 | M123: 0 | N123: 0 | O123: 0 | P123: 0 | Q123: 0 | R123: 0 | S123: 0 | T123: 0 | U123: 0 | V123: 0 | W123: 0 | X123: 9.024366489 | Y123: 0 | Z123: 0 | AI123: 1.978721174 | BP123: 17.85670505
A124: 20 | B124: 11.02062073 | D124: 2.199928307 | F124: 0 | G124: 0 | H124: 0 | I124: 0 | J124: 0 | K124: 0 | L124: 0 | M124: 0 | N124: 0 | O124: 0 | P124: 0 | Q124: 0 | R124: 0 | S124: 0 | T124: 0 | U124: 0 | V124: 0 | W124: 0 | X124: 0 | Y124: 9.024366489 | Z124: 0 | AI124: 2.42113544 | BP124: 21.84921353
A125: 21 | B125: 2.89855802 | D125: 1.064213379 | F125: 0 | G125: 0 | H125: 0 | I125: 0 | J125: 0 | K125: 0 | L125: 0 | M125: 0 | N125: 0 | O125: 0 | P125: 0 | Q125: 0 | R125: 0 | S125: 0 | T125: 0 | U125: 0 | V125: 0 | W125: 0 | X125: 0 | Y125: 0 | Z125: 2.89855802 | AI125: 1.064213379 | BP125: 3.084684225
A127: Newton-Raphson Interation Sequence -- Iteration 6
B128: y(i) | D128: xb(i) | F128: W(i,i) | AB128: XWX | AI128: zz(i) | AK128: factor | AM128: xwx-1 | AT128: aa1(i,j) | BP128: aa2(j) | BR128: beta(j) | BT128: beta_diff = | BU128: =SUM(BT130:BT140) -> -2.886579864e-15 | BV128: beta_old = | BW128: =SUM(BR130:BR140) -> 1.064213379
B129: 1 | D129: 1 | F129: 1 | G129: 2 | H129: 3 | I129: 4 | J129: 5 | K129: 6 | L129: 7 | M129: 8 | N129: 9 | O129: 10 | P129: 11 | Q129: 12 | R129: 13 | S129: 14 | T129: 15 | U129: 16 | V129: 17 | W129: 18 | X129: 19 | Y129: 20 | Z129: 21 | AB129: 1 | AC129: 2 | AD129: 3 | AE129: 4 | AF129: 5 | AG129: 6 | AI129: 1 | AM129: 1 | AN129: 2 | AO129: 3 | AP129: 4 | AQ129: 5 | AR129: 6 | AT129: 1 | AU129: 2 | AV129: 3 | AW129: 4 | AX129: 5 | AY129: 6 | AZ129: 7 | BA129: 8 | BB129: 9 | BC129: 10 | BD129: 11 | BE129: 12 | BF129: 13 | BG129: 14 | BH129: 15 | BI129: 16 | BJ129: 17 | BK129: 18 | BL129: 19 | BM129: 20 | BN129: 21
A130: 1 | B130: =B105 -> 94.65883348 | D130: =MMULT(DesignMatrix,BR105:BR110) -> 4.759820462 | F130: =IF($A130=F$4,IF($B130<0,-(EXP(-$D130)^(2-$H$1)),IF($B130=0,0,EXP($D130)^(2-$H$1))),0) -> 116.7249675 | G130: 0 | H130: 0 | I130: 0 | J130: 0 | K130: 0 | L130: 0 | M130: 0 | N130: 0 | O130: 0 | P130: =IF($A130=P$4,IF($B130<0,-(EXP(-$D130)^(2-$H$1)),IF($B130=0,0,EXP($D130)^(2-$H$1))),0) -> 0 | Q130: 0 | R130: 0 | S130: 0 | T130: 0 | U130: 0 | V130: 0 | W130: 0 | X130: 0 | Y130: 0 | Z130: 0 | AB130: =MMULT(TRANSPOSE(DesignMatrix),MMULT(F130:Z150,DesignMatrix)) -> 1141.94015 | AC130: 441.590345 | AD130: 214.759121 | AE130: 117.4948364 | AF130: 20.947291 | AG130: 2.89855802 | AI130: =IF(B130<0,D130+(B130+EXP(-D130))/-EXP(-D130),IF(B130=0,0,D130+(B130-EXP(D130))/EXP(D130))) -> 4.57077664 | AK130: =OFFSET(AA129,A130,A130) -> 1141.94015 | AM130: =MINVERSE(AB130:AG135) -> 0.001427857898 | AN130: -0.001427857898 | AO130: 2.957906486e-20 | AP130: 2.077950289e-20 | AQ130: 1.458337845e-19 | AR130: -1.944450459e-19 | AT130: =MMULT(AM130:AR135,TRANSPOSE(DesignMatrix)) -> 0.001427857898 | AU130: 0.001427857898 | AV130: 0.001427857898 | AW130: 0.001427857898 | AX130: 0.001427857898 | AY130: 0.001427857898 | AZ130: 4.33680869e-19 | BA130: 4.33680869e-19 | BB130: 4.33680869e-19 | BC130: 4.33680869e-19 | BD130: 4.33680869e-19 | BE130: 4.632599339e-19 | BF130: 4.632599339e-19 | BG130: 4.632599339e-19 | BH130: 4.632599339e-19 | BI130: 4.840394368e-19 | BJ130: 4.840394368e-19 | BK130: 4.840394368e-19 | BL130: 6.298732212e-19 | BM130: 6.298732212e-19 | BN130: 4.354281753e-19 | BP130: =MMULT(F130:Z150,AI130:AI150) -> 533.5237547 | BR130: =MMULT(AT130:BN135,BP130:BP150) -> 4.759820462 | BT130: =BR130-BW103/$K$1 -> 4.582451566
A131: 2 | B131: =B106 -> 126.0339887 | D131: 4.759820462 | F131: 0 | G131: 116.7249675 | H131: 0 | I131: 0 | J131: 0 | K131: 0 | L131: 0 | M131: 0 | N131: 0 | O131: 0 | P131: 0 | Q131: 0 | R131: 0 | S131: 0 | T131: 0 | U131: 0 | V131: 0 | W131: 0 | X131: 0 | Y131: 0 | Z131: 0 | AB131: 441.590345 | AC131: 441.590345 | AD131: 214.759121 | AE131: 117.4948364 | AF131: 20.947291 | AG131: 2.89855802 | AI131: =IF(B131<0,D131+(B131+EXP(-D131))/-EXP(-D131),IF(B131=0,0,D131+(B131-EXP(D131))/EXP(D131))) -> 4.839572219 | AK131: =OFFSET(AA129,A131,A131) -> 441.590345 | AM131: -0.001427857898 | AN131: 0.005836422036 | AO131: -0.004408564138 | AP131: 4.008203007e-19 | AQ131: 7.173928433e-19 | AR131: 4.099387676e-19 | AT131: -0.001427857898 | AU131: -0.001427857898 | AV131: -0.001427857898 | AW131: -0.001427857898 | AX131: -0.001427857898 | AY131: -0.001427857898 | AZ131: 0.004408564138 | BA131: 0.004408564138 | BB131: 0.004408564138 | BC131: 0.004408564138 | BD131: 0.004408564138 | BE131: 0 | BF131: 0 | BG131: 0 | BH131: 0 | BI131: 4.008203007e-19 | BJ131: 4.008203007e-19 | BK131: 4.008203007e-19 | BL131: 1.118213144e-18 | BM131: 1.118213144e-18 | BN131: 1.528151912e-18 | BP131: 564.89891 | BR131: -0.94505214 | BT131: =BR131-BW103/$K$1 -> -1.122421036
A132: 3 | B132: 120.5567632 | D132: 4.759820462 | F132: 0 | G132: 0 | H132: 116.7249675 | I132: 0 | J132: 0 | K132: 0 | L132: 0 | M132: 0 | N132: 0 | O132: 0 | P132: 0 | Q132: 0 | R132: 0 | S132: 0 | T132: 0 | U132: 0 | V132: 0 | W132: 0 | X132: 0 | Y132: 0 | Z132: 0 | AB132: 214.759121 | AC132: 214.759121 | AD132: 214.759121 | AE132: 117.4948364 | AF132: 20.947291 | AG132: 2.89855802 | AI132: 4.792648021 | AK132: =OFFSET(AA129,A132,A132) -> 214.759121 | AM132: 4.077246963e-19 | AN132: -0.004408564138 | AO132: 0.01468983032 | AP132: -0.01028126618 | AQ132: -2.012821862e-18 | AR132: 1.006410931e-18 | AT132: 4.077246963e-19 | AU132: 4.077246963e-19 | AV132: 4.077246963e-19 | AW132: 4.077246963e-19 | AX132: 4.077246963e-19 | AY132: 4.077246963e-19 | AZ132: -0.004408564138 | BA132: -0.004408564138 | BB132: -0.004408564138 | BC132: -0.004408564138 | BD132: -0.004408564138 | BE132: 0.01028126618 | BF132: 0.01028126618 | BG132: 0.01028126618 | BH132: 0.01028126618 | BI132: 0 | BJ132: 0 | BK132: 0 | BL132: -2.012821862e-18 | BM132: -2.012821862e-18 | BN132: -1.006410931e-18 | BP132: 559.4216844 | BR132: -0.6236308265 | BT132: =BR132-BW103/$K$1 -> -0.8009997229
A133: 4 | B133: 133.6744999 | D133: 4.759820462 | F133: 0 | G133: 0 | H133: 0 | I133: 116.7249675 | J133: 0 | K133: 0 | L133: 0 | M133: 0 | N133: 0 | O133: 0 | P133: 0 | Q133: 0 | R133: 0 | S133: 0 | T133: 0 | U133: 0 | V133: 0 | W133: 0 | X133: 0 | Y133: 0 | Z133: 0 | AB133: 117.4948364 | AC133: 117.4948364 | AD133: 117.4948364 | AE133: 117.4948364 | AF133: 20.947291 | AG133: 2.89855802 | AI133: 4.905029604 | AK133: =OFFSET(AA129,A133,A133) -> 117.4948364 | AM133: -2.85362461e-19 | AN133: -1.289427182e-18 | AO133: -0.01028126618 | AP133: 0.02063885732 | AQ133: -0.01035759114 | AR133: -4.172724056e-18 | AT133: -2.85362461e-19 | AU133: -2.85362461e-19 | AV133: -2.85362461e-19 | AW133: -2.85362461e-19 | AX133: -2.85362461e-19 | AY133: -2.85362461e-19 | AZ133: -1.574789643e-18 | BA133: -1.574789643e-18 | BB133: -1.574789643e-18 | BC133: -1.574789643e-18 | BD133: -1.574789643e-18 | BE133: -0.01028126618 | BF133: -0.01028126618 | BG133: -0.01028126618 | BH133: -0.01028126618 | BI133: 0.01035759114 | BJ133: 0.01035759114 | BK133: 0.01035759114 | BL133: 0 | BM133: 0 | BN133: -4.172724056e-18 | BP133: 572.5394211 | BR133: 0.2802858005 | BT133: =BR133-BW103/$K$1 -> 0.102916904
A134: 5 | B134: 91.75121983 | D134: 4.759820462 | F134: 0 | G134: 0 | H134: 0 | I134: 0 | J134: 116.7249675 | K134: 0 | L134: 0 | M134: 0 | N134: 0 | O134: 0 | P134: 0 | Q134: 0 | R134: 0 | S134: 0 | T134: 0 | U134: 0 | V134: 0 | W134: 0 | X134: 0 | Y134: 0 | Z134: 0 | AB134: 20.947291 | AC134: 20.947291 | AD134: 20.947291 | AE134: 20.947291 | AF134: 20.947291 | AG134: 2.89855802 | AI134: 4.545866685 | AK134: =OFFSET(AA129,A134,A134) -> 20.947291 | AM134: -4.26590413e-35 | AN134: 1.391495433e-18 | AO134: -1.53695394e-18 | AP134: -0.01035759114 | AQ134: 0.06576314239 | AR134: -0.05540555125 | AT134: -4.26590413e-35 | AU134: -4.26590413e-35 | AV134: -4.26590413e-35 | AW134: -4.26590413e-35 | AX134: -4.26590413e-35 | AY134: -4.26590413e-35 | AZ134: 1.391495433e-18 | BA134: 1.391495433e-18 | BB134: 1.391495433e-18 | BC134: 1.391495433e-18 | BD134: 1.391495433e-18 | BE134: -1.454585068e-19 | BF134: -1.454585068e-19 | BG134: -1.454585068e-19 | BH134: -1.454585068e-19 | BI134: -0.01035759114 | BJ134: -0.01035759114 | BK134: -0.01035759114 | BL134: 0.05540555125 | BM134: 0.05540555125 | BN134: 1.387778781e-17 | BP134: 530.6161411 | BR134: -1.27149499 | BT134: =BR134-BW103/$K$1 -> -1.448863886
A135: 6 | B135: 133.6744999 | D135: 4.759820462 | F135: 0 | G135: 0 | H135: 0 | I135: 0 | J135: 0 | K135: 116.7249675 | L135: 0 | M135: 0 | N135: 0 | O135: 0 | P135: 0 | Q135: 0 | R135: 0 | S135: 0 | T135: 0 | U135: 0 | V135: 0 | W135: 0 | X135: 0 | Y135: 0 | Z135: 0 | AB135: 2.89855802 | AC135: 2.89855802 | AD135: 2.89855802 | AE135: 2.89855802 | AF135: 2.89855802 | AG135: 2.89855802 | AI135: 4.905029604 | AK135: =OFFSET(AA129,A135,A135) -> 2.89855802 | AM135: -1.515346855e-35 | AN135: -7.431508032e-20 | AO135: -5.459612427e-19 | AP135: 1.389182807e-18 | AQ135: -0.05540555125 | AR135: 0.4004046829 | AT135: -1.515346855e-35 | AU135: -1.515346855e-35 | AV135: -1.515346855e-35 | AW135: -1.515346855e-35 | AX135: -1.515346855e-35 | AY135: -1.515346855e-35 | AZ135: -7.431508032e-20 | BA135: -7.431508032e-20 | BB135: -7.431508032e-20 | BC135: -7.431508032e-20 | BD135: -7.431508032e-20 | BE135: -6.20276323e-19 | BF135: -6.20276323e-19 | BG135: -6.20276323e-19 | BH135: -6.20276323e-19 | BI135: 7.689064836e-19 | BJ135: 7.689064836e-19 | BK135: 7.689064836e-19 | BL135: -0.05540555125 | BM135: -0.05540555125 | BN135: 0.3449991316 | BP135: 572.5394211 | BR135: -1.135714928 | BT135: =BR135-BW103/$K$1 -> -1.313083824
A136: 7 | B136: 60.64911064 | D136: 3.814768322 | F136: 0 | G136: 0 | H136: 0 | I136: 0 | J136: 0 | K136: 0 | L136: 45.36624482 | M136: 0 | N136: 0 | O136: 0 | P136: 0 | Q136: 0 | R136: 0 | S136: 0 | T136: 0 | U136: 0 | V136: 0 | W136: 0 | X136: 0 | Y136: 0 | Z136: 0 | AI136: 4.151645793 | BP136: 188.3445795
A137: 8 | B137: 55.69491253 | D137: 3.814768322 | F137: 0 | G137: 0 | H137: 0 | I137: 0 | J137: 0 | K137: 0 | L137: 0 | M137: 45.36624482 | N137: 0 | O137: 0 | P137: 0 | Q137: 0 | R137: 0 | S137: 0 | T137: 0 | U137: 0 | V137: 0 | W137: 0 | X137: 0 | Y137: 0 | Z137: 0 | AI137: 4.042441293 | BP137: 183.3903813
A138: 9 | B138: 37.04554885 | D138: 3.814768322 | F138: 0 | G138: 0 | H138: 0 | I138: 0 | J138: 0 | K138: 0 | L138: 0 | M138: 0 | N138: 45.36624482 | O138: 0 | P138: 0 | Q138: 0 | R138: 0 | S138: 0 | T138: 0 | U138: 0 | V138: 0 | W138: 0 | X138: 0 | Y138: 0 | Z138: 0 | AI138: 3.631356713 | BP138: 164.7410177
A139: 10 | B139: 34.38592399 | D139: 3.814768322 | F139: 0 | G139: 0 | H139: 0 | I139: 0 | J139: 0 | K139: 0 | L139: 0 | M139: 0 | N139: 0 | O139: 45.36624482 | P139: 0 | Q139: 0 | R139: 0 | S139: 0 | T139: 0 | U139: 0 | V139: 0 | W139: 0 | X139: 0 | Y139: 0 | Z139: 0 | AI139: 3.572731079 | BP139: 162.0813928
A140: 11 | B140: 39.05572809 | D140: 3.814768322 | F140: =IF($A140=F$4,IF($B140<0,-(EXP(-$D140)^(2-$H$1)),IF($B140=0,0,EXP($D140)^(2-$H$1))),0) -> 0 | G140: 0 | H140: 0 | I140: 0 | J140: 0 | K140: 0 | L140: 0 | M140: 0 | N140: 0 | O140: 0 | P140: =IF($A140=P$4,IF($B140<0,-(EXP(-$D140)^(2-$H$1)),IF($B140=0,0,EXP($D140)^(2-$H$1))),0) -> 45.36624482 | Q140: 0 | R140: 0 | S140: 0 | T140: 0 | U140: 0 | V140: 0 | W140: 0 | X140: 0 | Y140: 0 | Z140: 0 | AI140: 3.675666734 | BP140: 166.7511969
A141: 12 | B141: 31.68558654 | D141: 3.191137496 | F141: 0 | G141: 0 | H141: 0 | I141: 0 | J141: 0 | K141: 0 | L141: 0 | M141: 0 | N141: 0 | O141: 0 | P141: 0 | Q141: 24.31607115 | R141: 0 | S141: 0 | T141: 0 | U141: 0 | V141: 0 | W141: 0 | X141: 0 | Y141: 0 | Z141: 0 | AI141: 3.494209293 | BP141: 84.96544178
A142: 13 | B142: 18.04216838 | D142: 3.191137496 | F142: 0 | G142: 0 | H142: 0 | I142: 0 | J142: 0 | K142: 0 | L142: 0 | M142: 0 | N142: 0 | O142: 0 | P142: 0 | Q142: 0 | R142: 24.31607115 | S142: 0 | T142: 0 | U142: 0 | V142: 0 | W142: 0 | X142: 0 | Y142: 0 | Z142: 0 | AI142: 2.933122838 | BP142: 71.32202362
A143: 14 | B143: 16.37627564 | D143: 3.191137496 | F143: 0 | G143: 0 | H143: 0 | I143: 0 | J143: 0 | K143: 0 | L143: 0 | M143: 0 | N143: 0 | O143: 0 | P143: 0 | Q143: 0 | R143: 0 | S143: 24.31607115 | T143: 0 | U143: 0 | V143: 0 | W143: 0 | X143: 0 | Y143: 0 | Z143: 0 | AI143: 2.864612892 | BP143: 69.65613089
A144: 15 | B144: 31.16025404 | D144: 3.191137496 | F144: 0 | G144: 0 | H144: 0 | I144: 0 | J144: 0 | K144: 0 | L144: 0 | M144: 0 | N144: 0 | O144: 0 | P144: 0 | Q144: 0 | R144: 0 | S144: 0 | T144: 24.31607115 | U144: 0 | V144: 0 | W144: 0 | X144: 0 | Y144: 0 | Z144: 0 | AI144: 3.47260496 | BP144: 84.44010928
A145: 16 | B145: 35.04924622 | D145: 3.471423296 | F145: 0 | G145: 0 | H145: 0 | I145: 0 | J145: 0 | K145: 0 | L145: 0 | M145: 0 | N145: 0 | O145: 0 | P145: 0 | Q145: 0 | R145: 0 | S145: 0 | T145: 0 | U145: 32.18251512 | V145: 0 | W145: 0 | X145: 0 | Y145: 0 | Z145: 0 | AI145: 3.560500582 | BP145: 114.5858638
A146: 17 | B146: 30.74914957 | D146: 3.471423296 | F146: 0 | G146: 0 | H146: 0 | I146: 0 | J146: 0 | K146: 0 | L146: 0 | M146: 0 | N146: 0 | O146: 0 | P146: 0 | Q146: 0 | R146: 0 | S146: 0 | T146: 0 | U146: 0 | V146: 32.18251512 | W146: 0 | X146: 0 | Y146: 0 | Z146: 0 | AI146: 3.426884653 | BP146: 110.2857672
A147: 18 | B147: 30.74914957 | D147: 3.471423296 | F147: 0 | G147: 0 | H147: 0 | I147: 0 | J147: 0 | K147: 0 | L147: 0 | M147: 0 | N147: 0 | O147: 0 | P147: 0 | Q147: 0 | R147: 0 | S147: 0 | T147: 0 | U147: 0 | V147: 0 | W147: 32.18251512 | X147: 0 | Y147: 0 | Z147: 0 | AI147: 3.426884653 | BP147: 110.2857672
A148: 19 | B148: 7.028112252 | D148: 2.199928307 | F148: 0 | G148: 0 | H148: 0 | I148: 0 | J148: 0 | K148: 0 | L148: 0 | M148: 0 | N148: 0 | O148: 0 | P148: 0 | Q148: 0 | R148: 0 | S148: 0 | T148: 0 | U148: 0 | V148: 0 | W148: 0 | X148: 9.024366489 | Y148: 0 | Z148: 0 | AI148: 1.978721174 | BP148: 17.85670505
A149: 20 | B149: 11.02062073 | D149: 2.199928307 | F149: 0 | G149: 0 | H149: 0 | I149: 0 | J149: 0 | K149: 0 | L149: 0 | M149: 0 | N149: 0 | O149: 0 | P149: 0 | Q149: 0 | R149: 0 | S149: 0 | T149: 0 | U149: 0 | V149: 0 | W149: 0 | X149: 0 | Y149: 9.024366489 | Z149: 0 | AI149: 2.42113544 | BP149: 21.84921353
A150: 21 | B150: 2.89855802 | D150: 1.064213379 | F150: 0 | G150: 0 | H150: 0 | I150: 0 | J150: 0 | K150: 0 | L150: 0 | M150: 0 | N150: 0 | O150: 0 | P150: 0 | Q150: 0 | R150: 0 | S150: 0 | T150: 0 | U150: 0 | V150: 0 | W150: 0 | X150: 0 | Y150: 0 | Z150: 2.89855802 | AI150: 1.064213379 | BP150: 3.084684225
